Body_Code,Body_Name,Service,GL Code,GL Code Desc,Posting Date,Doc Number,Doc Net Amount,Supplier Name
http://statistics.data.gov.uk/id/local-authority/38,Oxfordshire County Council,ICT Operations & Maintenance,5086,Other Communications,11/05/2016,2200158983,"1,467.46",(aq) Ltd
http://statistics.data.gov.uk/id/local-authority/38,Oxfordshire County Council,SEN TRANSPORT,4330,Transport to School Activities,11/05/2016,3110093102,540,001 Alpha Cars Ltd
http://statistics.data.gov.uk/id/local-authority/38,Oxfordshire County Council,MEADOWBROOK TRANSPT,4330,Transport to School Activities,11/05/2016,3110093118,672,001 Alpha Cars Ltd
http://statistics.data.gov.uk/id/local-authority/38,Oxfordshire County Council,DISABILITIES TEAM-N,5227,Other Transport Arrangements,16/05/2016,3110094183,690,001 Alpha Cars Ltd
http://statistics.data.gov.uk/id/local-authority/38,Oxfordshire County Council,SEN TRANSPORT,4330,Transport to School Activities,24/05/2016,3110097480,693,001 Alpha Cars Ltd
http://statistics.data.gov.uk/id/local-authority/38,Oxfordshire County Council,LOOKED AFTER NORTH,4330,Transport to School Activities,16/05/2016,3110094180,754,001 Alpha Cars Ltd
http://statistics.data.gov.uk/id/local-authority/38,Oxfordshire County Council,TRANSPORT COSTS,4330,Transport to School Activities,16/05/2016,3110094184,756,001 Alpha Cars Ltd
http://statistics.data.gov.uk/id/local-authority/38,Oxfordshire County Council,POST 16 SEN,4330,Transport to School Activities,11/05/2016,3110093106,"1,008.00",001 Alpha Cars Ltd
http://statistics.data.gov.uk/id/local-authority/38,Oxfordshire County Council,SEN TRANSPORT,4330,Transport to School Activities,11/05/2016,3110093120,"1,044.12",001 Alpha Cars Ltd
http://statistics.data.gov.uk/id/local-authority/38,Oxfordshire County Council,SEN TRANSPORT,4330,Transport to School Activities,11/05/2016,3110093100,"1,050.00",001 Alpha Cars Ltd
http://statistics.data.gov.uk/id/local-authority/38,Oxfordshire County Council,SEN TRANSPORT,4330,Transport to School Activities,11/05/2016,3110093121,"1,080.00",001 Alpha Cars Ltd
http://statistics.data.gov.uk/id/local-authority/38,Oxfordshire County Council,MEADOWBROOK TRANSPT,4330,Transport to School Activities,11/05/2016,3110093119,"1,200.00",001 Alpha Cars Ltd
http://statistics.data.gov.uk/id/local-authority/38,Oxfordshire County Council,SEN TRANSPORT,4330,Transport to School Activities,11/05/2016,3110093112,"1,400.00",001 Alpha Cars Ltd
http://statistics.data.gov.uk/id/local-authority/38,Oxfordshire County Council,SEN TRANSPORT,4330,Transport to School Activities,11/05/2016,3110093098,"2,310.00",001 Alpha Cars Ltd
http://statistics.data.gov.uk/id/local-authority/38,Oxfordshire County Council,CSB - DIDCOT,5689,,04/05/2016,3110090556,559.34,1 to 1 Care
http://statistics.data.gov.uk/id/local-authority/38,Oxfordshire County Council,CSB - DIDCOT,5689,,04/05/2016,3110090553,599.95,1 to 1 Care
http://statistics.data.gov.uk/id/local-authority/38,Oxfordshire County Council,CSB - DIDCOT,5689,,04/05/2016,3110090563,702.84,1 to 1 Care
http://statistics.data.gov.uk/id/local-authority/38,Oxfordshire County Council,CSB - CITY,5689,,04/05/2016,3110090550,"1,006.03",1 to 1 Care
http://statistics.data.gov.uk/id/local-authority/38,Oxfordshire County Council,CSB - DIDCOT,5689,,04/05/2016,3110090555,"1,051.64",1 to 1 Care
http://statistics.data.gov.uk/id/local-authority/38,Oxfordshire County Council,PD COMM SUPP - CITY,5689,,04/05/2016,3110090573,"1,053.73",1 to 1 Care
http://statistics.data.gov.uk/id/local-authority/38,Oxfordshire County Council,CSB - DIDCOT,5689,,04/05/2016,3110090564,"1,064.68",1 to 1 Care
http://statistics.data.gov.uk/id/local-authority/38,Oxfordshire County Council,CSB - DIDCOT,5689,,04/05/2016,3110090566,"1,146.47",1 to 1 Care
http://statistics.data.gov.uk/id/local-authority/38,Oxfordshire County Council,CSB - DIDCOT,5689,,04/05/2016,3110090561,"1,274.52",1 to 1 Care
http://statistics.data.gov.uk/id/local-authority/38,Oxfordshire County Council,CSB - ABINGDON,5689,,04/05/2016,3110090569,"1,335.78",1 to 1 Care
http://statistics.data.gov.uk/id/local-authority/38,Oxfordshire County Council,CSB - DIDCOT,5689,,04/05/2016,3110090567,"1,360.37",1 to 1 Care
http://statistics.data.gov.uk/id/local-authority/38,Oxfordshire County Council,CSB - DIDCOT,5689,,04/05/2016,3110090560,"1,564.42",1 to 1 Care
http://statistics.data.gov.uk/id/local-authority/38,Oxfordshire County Council,CSB - DIDCOT,5689,,04/05/2016,3110090565,"1,817.68",1 to 1 Care
http://statistics.data.gov.uk/id/local-authority/38,Oxfordshire County Council,LD CLIENTS SOUTH,5689,,04/05/2016,3110090572,"1,853.78",1 to 1 Care
http://statistics.data.gov.uk/id/local-authority/38,Oxfordshire County Council,CSB - ABINGDON,5689,,04/05/2016,3110090570,"2,138.25",1 to 1 Care
http://statistics.data.gov.uk/id/local-authority/38,Oxfordshire County Council,CSB - ABINGDON,5689,,04/05/2016,3110090568,"2,434.29",1 to 1 Care
http://statistics.data.gov.uk/id/local-authority/38,Oxfordshire County Council,CSB - CITY,5689,,04/05/2016,3110090551,"2,444.09",1 to 1 Care
http://statistics.data.gov.uk/id/local-authority/38,Oxfordshire County Council,CSB - CITY,5689,,04/05/2016,3110090552,"2,843.35",1 to 1 Care
http://statistics.data.gov.uk/id/local-authority/38,Oxfordshire County Council,MAINSTREAM-SECONDARY,4330,Transport to School Activities,16/05/2016,3110094050,560,1St Taxis
http://statistics.data.gov.uk/id/local-authority/38,Oxfordshire County Council,MAINSTREAM-PRIMARY,4330,Transport to School Activities,16/05/2016,3110094049,840,1St Taxis
http://statistics.data.gov.uk/id/local-authority/38,Oxfordshire County Council,MAINSTREAM-SECONDARY,4330,Transport to School Activities,16/05/2016,3110094048,980,1St Taxis
http://statistics.data.gov.uk/id/local-authority/38,Oxfordshire County Council,SEN TRANSPORT,4330,Transport to School Activities,19/05/2016,3110096581,"1,310.00",1St Taxis
http://statistics.data.gov.uk/id/local-authority/38,Oxfordshire County Council,MH SPOT FUNDING,5686,,12/05/2016,3110093296,"10,194.58",2 CARE-A PART OF THE RICHMOND FELLO
http://statistics.data.gov.uk/id/local-authority/38,Oxfordshire County Council,NHS HEALTHCHECK PROG,4933,,09/05/2016,3110092916,747,27 Beaumont Street
http://statistics.data.gov.uk/id/local-authority/38,Oxfordshire County Council,NHS HEALTHCHECK PROG,4933,,09/05/2016,3110092951,516,28 Beaumont Street
http://statistics.data.gov.uk/id/local-authority/38,Oxfordshire County Council,MASH PROJECT,2040,Agency Staff,04/05/2016,2200154326,-732.96,3D Recruit Ltd
http://statistics.data.gov.uk/id/local-authority/38,Oxfordshire County Council,FAMILY SUPPORT CITY3,2040,Agency Staff,16/05/2016,2200160671,538.95,3D Recruit Ltd
http://statistics.data.gov.uk/id/local-authority/38,Oxfordshire County Council,MASH PROJECT,2040,Agency Staff,20/05/2016,2200165492,610.8,3D Recruit Ltd
http://statistics.data.gov.uk/id/local-authority/38,Oxfordshire County Council,Delayed Patient Care Beds,2040,Agency Staff,16/05/2016,2200160775,689.17,3D Recruit Ltd
http://statistics.data.gov.uk/id/local-authority/38,Oxfordshire County Council,MASH PROJECT,2040,Agency Staff,04/05/2016,2200154324,732.96,3D Recruit Ltd
http://statistics.data.gov.uk/id/local-authority/38,Oxfordshire County Council,MASH PROJECT,2040,Agency Staff,06/05/2016,2200156060,732.96,3D Recruit Ltd
http://statistics.data.gov.uk/id/local-authority/38,Oxfordshire County Council,CM & SW COUNTY TEAM,2040,Agency Staff,06/05/2016,2200155762,760.48,3D Recruit Ltd
http://statistics.data.gov.uk/id/local-authority/38,Oxfordshire County Council,SOUTH HOSPITAL TEAM,2040,Agency Staff,09/05/2016,2200156909,890.45,3D Recruit Ltd
http://statistics.data.gov.uk/id/local-authority/38,Oxfordshire County Council,SOUTH HOSPITAL TEAM,2040,Agency Staff,31/05/2016,2200168066,901.6,3D Recruit Ltd
http://statistics.data.gov.uk/id/local-authority/38,Oxfordshire County Council,SOUTH HOSPITAL TEAM,2040,Agency Staff,16/05/2016,2200160767,905.31,3D Recruit Ltd
http://statistics.data.gov.uk/id/local-authority/38,Oxfordshire County Council,Delayed Patient Care Beds,2040,Agency Staff,20/05/2016,2200165497,"1,005.90",3D Recruit Ltd
http://statistics.data.gov.uk/id/local-authority/38,Oxfordshire County Council,SOUTH HOSPITAL TEAM,2040,Agency Staff,09/05/2016,2200156780,"1,022.67",3D Recruit Ltd
http://statistics.data.gov.uk/id/local-authority/38,Oxfordshire County Council,CM & SW COUNTY TEAM,2040,Agency Staff,12/05/2016,2200160338,"1,036.11",3D Recruit Ltd
http://statistics.data.gov.uk/id/local-authority/38,Oxfordshire County Council,LOCALITY TEAM - CITY,2040,Agency Staff,01/05/2016,2200155362,"1,056.20",3D Recruit Ltd
http://statistics.data.gov.uk/id/local-authority/38,Oxfordshire County Council,Delayed Patient Care Beds,2040,Agency Staff,09/05/2016,2200156731,"1,058.00",3D Recruit Ltd
http://statistics.data.gov.uk/id/local-authority/38,Oxfordshire County Council,Delayed Patient Care Beds,2040,Agency Staff,03/05/2016,2200153947,"1,066.38",3D Recruit Ltd
http://statistics.data.gov.uk/id/local-authority/38,Oxfordshire County Council,SOUTH HOSPITAL TEAM,2040,Agency Staff,09/05/2016,2200156785,"1,069.25",3D Recruit Ltd
http://statistics.data.gov.uk/id/local-authority/38,Oxfordshire County Council,LOCALITY TEAM - CITY,2040,Agency Staff,13/05/2016,2200160369,"1,075.66",3D Recruit Ltd
http://statistics.data.gov.uk/id/local-authority/38,Oxfordshire County Council,FAMILY SUPPORT N'TH2,2040,Agency Staff,18/05/2016,2200162785,"1,131.27",3D Recruit Ltd
http://statistics.data.gov.uk/id/local-authority/38,Oxfordshire County Council,Delayed Patient Care Beds,2040,Agency Staff,06/05/2016,2200156453,"1,166.97",3D Recruit Ltd
http://statistics.data.gov.uk/id/local-authority/38,Oxfordshire County Council,FAMILY SUPPORT CITY3,2040,Agency Staff,17/05/2016,2200161348,"1,184.88",3D Recruit Ltd
http://statistics.data.gov.uk/id/local-authority/38,Oxfordshire County Council,CM & SW COUNTY TEAM,2040,Agency Staff,06/05/2016,2200155752,"1,188.30",3D Recruit Ltd
http://statistics.data.gov.uk/id/local-authority/38,Oxfordshire County Council,CM & SW COUNTY TEAM,2040,Agency Staff,10/05/2016,2200158081,"1,188.30",3D Recruit Ltd
http://statistics.data.gov.uk/id/local-authority/38,Oxfordshire County Council,CM & SW COUNTY TEAM,2040,Agency Staff,01/05/2016,2200155401,"1,210.16",3D Recruit Ltd
http://statistics.data.gov.uk/id/local-authority/38,Oxfordshire County Council,MASH PROJECT,2040,Agency Staff,18/05/2016,2200162231,"1,221.60",3D Recruit Ltd
http://statistics.data.gov.uk/id/local-authority/38,Oxfordshire County Council,MASH PROJECT,2040,Agency Staff,18/05/2016,2200162232,"1,221.60",3D Recruit Ltd
http://statistics.data.gov.uk/id/local-authority/38,Oxfordshire County Council,CM & SW COUNTY TEAM,2040,Agency Staff,06/05/2016,2200155760,"1,225.72",3D Recruit Ltd
http://statistics.data.gov.uk/id/local-authority/38,Oxfordshire County Council,Delayed Patient Care Beds,2040,Agency Staff,10/05/2016,2200158133,"1,257.38",3D Recruit Ltd
http://statistics.data.gov.uk/id/local-authority/38,Oxfordshire County Council,FPT SOUTH/VALE,2040,Agency Staff,18/05/2016,2200162222,"1,258.50",3D Recruit Ltd
http://statistics.data.gov.uk/id/local-authority/38,Oxfordshire County Council,CM & SW COUNTY TEAM,2040,Agency Staff,13/05/2016,2200160379,"1,258.64",3D Recruit Ltd
http://statistics.data.gov.uk/id/local-authority/38,Oxfordshire County Council,LOCALITY TEAM - CITY,2040,Agency Staff,13/05/2016,2200160362,"1,263.68",3D Recruit Ltd
http://statistics.data.gov.uk/id/local-authority/38,Oxfordshire County Council,LOCALITY TEAM - CITY,2040,Agency Staff,20/05/2016,2200165489,"1,267.28",3D Recruit Ltd
http://statistics.data.gov.uk/id/local-authority/38,Oxfordshire County Council,CM & SW COUNTY TEAM,2040,Agency Staff,06/05/2016,2200155757,"1,271.88",3D Recruit Ltd
http://statistics.data.gov.uk/id/local-authority/38,Oxfordshire County Council,CM & SW COUNTY TEAM,2040,Agency Staff,10/05/2016,2200157613,"1,271.88",3D Recruit Ltd
http://statistics.data.gov.uk/id/local-authority/38,Oxfordshire County Council,Delayed Patient Care Beds,2040,Agency Staff,10/05/2016,2200158136,"1,274.14",3D Recruit Ltd
http://statistics.data.gov.uk/id/local-authority/38,Oxfordshire County Council,LOCALITY TEAM - CITY,2040,Agency Staff,24/05/2016,2200165428,"1,286.52",3D Recruit Ltd
http://statistics.data.gov.uk/id/local-authority/38,Oxfordshire County Council,Delayed Patient Care Beds,2040,Agency Staff,06/05/2016,2200156455,"1,290.91",3D Recruit Ltd
http://statistics.data.gov.uk/id/local-authority/38,Oxfordshire County Council,Delayed Patient Care Beds,2040,Agency Staff,20/05/2016,2200165505,"1,293.49",3D Recruit Ltd
http://statistics.data.gov.uk/id/local-authority/38,Oxfordshire County Council,LOCALITY TEAM - CITY,2040,Agency Staff,01/05/2016,2200155361,"1,299.79",3D Recruit Ltd
http://statistics.data.gov.uk/id/local-authority/38,Oxfordshire County Council,Delayed Patient Care Beds,2040,Agency Staff,10/05/2016,2200158134,"1,307.67",3D Recruit Ltd
http://statistics.data.gov.uk/id/local-authority/38,Oxfordshire County Council,CM & SW COUNTY TEAM,2040,Agency Staff,01/05/2016,2200156051,"1,315.47",3D Recruit Ltd
http://statistics.data.gov.uk/id/local-authority/38,Oxfordshire County Council,CM & SW COUNTY TEAM,2040,Agency Staff,06/05/2016,2200155746,"1,315.47",3D Recruit Ltd
http://statistics.data.gov.uk/id/local-authority/38,Oxfordshire County Council,FAMILY SUPPORT CITY3,2040,Agency Staff,16/05/2016,2200160659,"1,323.15",3D Recruit Ltd
http://statistics.data.gov.uk/id/local-authority/38,Oxfordshire County Council,SOUTH HOSPITAL TEAM,2040,Agency Staff,09/05/2016,2200156777,"1,347.33",3D Recruit Ltd
http://statistics.data.gov.uk/id/local-authority/38,Oxfordshire County Council,FAMILY SUPPORT N'TH2,2040,Agency Staff,16/05/2016,2200160858,"1,357.94",3D Recruit Ltd
http://statistics.data.gov.uk/id/local-authority/38,Oxfordshire County Council,FAMILY SUPPORT CITY3,2040,Agency Staff,20/05/2016,2200165502,"1,359.56",3D Recruit Ltd
http://statistics.data.gov.uk/id/local-authority/38,Oxfordshire County Council,FAMILY SUPPORT CITY3,2040,Agency Staff,16/05/2016,2200160733,"1,379.86",3D Recruit Ltd
http://statistics.data.gov.uk/id/local-authority/38,Oxfordshire County Council,CM & SW COUNTY TEAM,2040,Agency Staff,06/05/2016,2200155940,"1,419.05",3D Recruit Ltd
http://statistics.data.gov.uk/id/local-authority/38,Oxfordshire County Council,FAMILY SUPPORT N'TH2,2040,Agency Staff,26/05/2016,2200167045,"1,429.31",3D Recruit Ltd
http://statistics.data.gov.uk/id/local-authority/38,Oxfordshire County Council,FAMILY SUPPORT N'TH2,2040,Agency Staff,09/05/2016,2200156676,"1,434.76",3D Recruit Ltd
http://statistics.data.gov.uk/id/local-authority/38,Oxfordshire County Council,FAMILY SUPPORT N'TH2,2040,Agency Staff,09/05/2016,2200156680,"1,454.51",3D Recruit Ltd
http://statistics.data.gov.uk/id/local-authority/38,Oxfordshire County Council,FAMILY SUPPORT N'TH2,2040,Agency Staff,01/05/2016,2200155769,"1,459.19",3D Recruit Ltd
http://statistics.data.gov.uk/id/local-authority/38,Oxfordshire County Council,MASH PROJECT,2040,Agency Staff,20/05/2016,2200165495,"1,506.64",3D Recruit Ltd
http://statistics.data.gov.uk/id/local-authority/38,Oxfordshire County Council,FPT SOUTH/VALE,2040,Agency Staff,10/05/2016,2200157540,"1,541.74",3D Recruit Ltd
http://statistics.data.gov.uk/id/local-authority/38,Oxfordshire County Council,FPT SOUTH/VALE,2040,Agency Staff,26/05/2016,2200166778,"1,627.69",3D Recruit Ltd
http://statistics.data.gov.uk/id/local-authority/38,Oxfordshire County Council,,1162,VAT - Input Adjustment,27/05/2016,3110099350,"5,317.30",8th Day Cleaning & Ironing
http://statistics.data.gov.uk/id/local-authority/38,Oxfordshire County Council,LEGAL SERVICES,5251,Legal Costs,20/05/2016,2200164035,500,A Leong
http://statistics.data.gov.uk/id/local-authority/38,Oxfordshire County Council,LEGAL SERVICES,5251,Legal Costs,04/05/2016,2200154299,675,A Leong
http://statistics.data.gov.uk/id/local-authority/38,Oxfordshire County Council,LEGAL SERVICES,5251,Legal Costs,04/05/2016,2200154305,675,A Leong
http://statistics.data.gov.uk/id/local-authority/38,Oxfordshire County Council,LEGAL SERVICES,5251,Legal Costs,04/05/2016,2200154430,"1,175.00",A Leong
http://statistics.data.gov.uk/id/local-authority/38,Oxfordshire County Council,LEGAL SERVICES,5251,Legal Costs,04/05/2016,2200154427,"1,350.00",A Leong
http://statistics.data.gov.uk/id/local-authority/38,Oxfordshire County Council,LEGAL SERVICES,5251,Legal Costs,04/05/2016,2200154435,"1,850.00",A Leong
http://statistics.data.gov.uk/id/local-authority/38,Oxfordshire County Council,FOSTERING MAIN,5542,B*Payments to carers,04/05/2016,3110089550,623.54,Redacted Personal Data
http://statistics.data.gov.uk/id/local-authority/38,Oxfordshire County Council,FOSTERING MAIN,5549,B*Fostering Allowance - Regulation 38,04/05/2016,3110089583,567.46,Redacted Personal Data
http://statistics.data.gov.uk/id/local-authority/38,Oxfordshire County Council,FOSTERING MAIN,5549,B*Fostering Allowance - Regulation 38,11/05/2016,3110092615,567.46,Redacted Personal Data
http://statistics.data.gov.uk/id/local-authority/38,Oxfordshire County Council,FOSTERING MAIN,5549,B*Fostering Allowance - Regulation 38,18/05/2016,3110094700,567.46,Redacted Personal Data
http://statistics.data.gov.uk/id/local-authority/38,Oxfordshire County Council,FOSTERING MAIN,5549,B*Fostering Allowance - Regulation 38,25/05/2016,3110097724,567.46,Redacted Personal Data
http://statistics.data.gov.uk/id/local-authority/38,Oxfordshire County Council,DISBTY FAM PLACEMENT,5545,B*Fostering Enhancements - Level 2,04/05/2016,3110089552,522.44,Redacted Personal Data
http://statistics.data.gov.uk/id/local-authority/38,Oxfordshire County Council,DISBTY FAM PLACEMENT,5544,B*Fostering - Temp/Respite,25/05/2016,3110097709,560.89,Redacted Personal Data
http://statistics.data.gov.uk/id/local-authority/38,Oxfordshire County Council,DISBTY FAM PLACEMENT,5544,B*Fostering - Temp/Respite,18/05/2016,3110094665,717.91,Redacted Personal Data
http://statistics.data.gov.uk/id/local-authority/38,Oxfordshire County Council,DISBTY FAM PLACEMENT,5544,B*Fostering - Temp/Respite,11/05/2016,3110092599,"1,139.14",Redacted Personal Data
http://statistics.data.gov.uk/id/local-authority/38,Oxfordshire County Council,MANAGEMENT & ADMIN,3100,Educational and Vocational Training,12/05/2016,2200160151,954,A&P Wild Ltd
http://statistics.data.gov.uk/id/local-authority/38,Oxfordshire County Council,MAINSTREAM-PRIMARY,4330,Transport to School Activities,25/05/2016,3110098378,524.5,A2B Castle Cars Ltd
http://statistics.data.gov.uk/id/local-authority/38,Oxfordshire County Council,MAINSTREAM-SECONDARY,4330,Transport to School Activities,25/05/2016,3110098379,530,A2B Castle Cars Ltd
http://statistics.data.gov.uk/id/local-authority/38,Oxfordshire County Council,CARE HOME SPOT SOUTH,5686,,12/05/2016,3110093533,"42,566.00",Abbey Crest Nursing Home
http://statistics.data.gov.uk/id/local-authority/38,Oxfordshire County Council,SEN DELEGATION,5537,Payments to Other Establishments,24/05/2016,3110097529,"15,448.94",Abbey Woods Academy
http://statistics.data.gov.uk/id/local-authority/38,Oxfordshire County Council,CSB - BANBURY,5689,,04/05/2016,3110091366,523.18,Abicare Services Ltd (Homecare)
http://statistics.data.gov.uk/id/local-authority/38,Oxfordshire County Council,CSB - BANBURY,5689,,04/05/2016,3110091361,532.45,Abicare Services Ltd (Homecare)
http://statistics.data.gov.uk/id/local-authority/38,Oxfordshire County Council,CSB - BANBURY,5689,,04/05/2016,3110091362,576.13,Abicare Services Ltd (Homecare)
http://statistics.data.gov.uk/id/local-authority/38,Oxfordshire County Council,CMPB WITNEY,5689,,27/05/2016,3110099316,578.31,Abicare Services Ltd (Homecare)
http://statistics.data.gov.uk/id/local-authority/38,Oxfordshire County Council,CSB - BANBURY,5689,,04/05/2016,3110091368,587.59,Abicare Services Ltd (Homecare)
http://statistics.data.gov.uk/id/local-authority/38,Oxfordshire County Council,CSB - BANBURY,5689,,04/05/2016,3110091369,644.64,Abicare Services Ltd (Homecare)
http://statistics.data.gov.uk/id/local-authority/38,Oxfordshire County Council,CMPB WITNEY,5689,,04/05/2016,3110091373,738.11,Abicare Services Ltd (Homecare)
http://statistics.data.gov.uk/id/local-authority/38,Oxfordshire County Council,CSB - BANBURY,5689,,04/05/2016,3110091365,"2,262.82",Abicare Services Ltd (Homecare)
http://statistics.data.gov.uk/id/local-authority/38,Oxfordshire County Council,CSB - BANBURY,5689,,04/05/2016,3110091360,"10,397.69",Abicare Services Ltd (Homecare)
http://statistics.data.gov.uk/id/local-authority/38,Oxfordshire County Council,CRISIS RESPONSE,5689,,28/05/2016,3500018185,"28,507.48",Abicare Services Ltd (Homecare)
http://statistics.data.gov.uk/id/local-authority/38,Oxfordshire County Council,LD CLIENTS SOUTH,5899,Adult Social Care - Direct Payments,18/05/2016,3110095538,"6,427.92",Redacted Personal Data
http://statistics.data.gov.uk/id/local-authority/38,Oxfordshire County Council,MALTFIELD HOUSE,3103,Other Training Courses and Qualification,11/05/2016,2200165763,500,Abingdon & Witney College
http://statistics.data.gov.uk/id/local-authority/38,Oxfordshire County Council,40 THE MOORS,3103,Other Training Courses and Qualification,11/05/2016,2200165764,500,Abingdon & Witney College
http://statistics.data.gov.uk/id/local-authority/38,Oxfordshire County Council,EAST OXFORD HUB,4111,Security Costs,04/05/2016,2200154913,954.33,Abingdon & Witney College
http://statistics.data.gov.uk/id/local-authority/38,Oxfordshire County Council,CSC SUPP & SERVICES,5051,Provision of Courses,03/05/2016,2200155648,"1,000.00",Abingdon & Witney College
http://statistics.data.gov.uk/id/local-authority/38,Oxfordshire County Council,CAP CHRGES-EARL,8441,Miscellaneous Grants to others,04/05/2016,2200154211,"1,646.40",Abingdon Kindergarten
http://statistics.data.gov.uk/id/local-authority/38,Oxfordshire County Council,CAP CHRGES-EARL,8441,Miscellaneous Grants to others,20/05/2016,2200164108,"7,000.00",Abingdon Kindergarten
http://statistics.data.gov.uk/id/local-authority/38,Oxfordshire County Council,NHS HEALTHCHECK PROG,4933,,09/05/2016,3110093247,"1,170.00",Abingdon Surgery
http://statistics.data.gov.uk/id/local-authority/38,Oxfordshire County Council,NHS HEALTHCHECK PROG,4933,,09/05/2016,3110092891,"1,680.00",Abingdon Surgery
http://statistics.data.gov.uk/id/local-authority/38,Oxfordshire County Council,NHS HEALTHCHECK PROG,4933,,09/05/2016,3110092927,"1,953.00",Abingdon Surgery
http://statistics.data.gov.uk/id/local-authority/38,Oxfordshire County Council,MAINSTREAM-PRIMARY,4330,Transport to School Activities,19/05/2016,3110096568,500,Abingdon Taxis FKN Autotaxis
http://statistics.data.gov.uk/id/local-authority/38,Oxfordshire County Council,LITTLEMORE HUB,5227,Other Transport Arrangements,17/05/2016,3110094290,559,Abingdon Taxis FKN Autotaxis
http://statistics.data.gov.uk/id/local-authority/38,Oxfordshire County Council,SEN TRANSPORT,5227,Other Transport Arrangements,19/05/2016,3110096566,560,Abingdon Taxis FKN Autotaxis
http://statistics.data.gov.uk/id/local-authority/38,Oxfordshire County Council,MAINSTREAM-SECONDARY,4330,Transport to School Activities,19/05/2016,3110096602,600,Abingdon Taxis FKN Autotaxis
http://statistics.data.gov.uk/id/local-authority/38,Oxfordshire County Council,LD CLIENTS SOUTH,5227,Other Transport Arrangements,17/05/2016,3110094282,601.46,Abingdon Taxis FKN Autotaxis
http://statistics.data.gov.uk/id/local-authority/38,Oxfordshire County Council,SEN TRANSPORT,4330,Transport to School Activities,19/05/2016,3110096604,699.72,Abingdon Taxis FKN Autotaxis
http://statistics.data.gov.uk/id/local-authority/38,Oxfordshire County Council,LD CLIENTS SOUTH,5227,Other Transport Arrangements,17/05/2016,3110094285,731,Abingdon Taxis FKN Autotaxis
http://statistics.data.gov.uk/id/local-authority/38,Oxfordshire County Council,SEN TRANSPORT,4330,Transport to School Activities,19/05/2016,3110096603,900,Abingdon Taxis FKN Autotaxis
http://statistics.data.gov.uk/id/local-authority/38,Oxfordshire County Council,LD CLIENTS SOUTH,5227,Other Transport Arrangements,17/05/2016,3110094280,919.44,Abingdon Taxis FKN Autotaxis
http://statistics.data.gov.uk/id/local-authority/38,Oxfordshire County Council,LD CLIENTS SOUTH,5227,Other Transport Arrangements,17/05/2016,3110094279,"1,167.00",Abingdon Taxis FKN Autotaxis
http://statistics.data.gov.uk/id/local-authority/38,Oxfordshire County Council,SEN TRANSPORT,4330,Transport to School Activities,19/05/2016,3110096592,"1,236.68",Abingdon Taxis FKN Autotaxis
http://statistics.data.gov.uk/id/local-authority/38,Oxfordshire County Council,SEN TRANSPORT,4330,Transport to School Activities,19/05/2016,3110096600,"1,249.95",Abingdon Taxis FKN Autotaxis
http://statistics.data.gov.uk/id/local-authority/38,Oxfordshire County Council,SEN TRANSPORT,4330,Transport to School Activities,19/05/2016,3110096594,"1,260.00",Abingdon Taxis FKN Autotaxis
http://statistics.data.gov.uk/id/local-authority/38,Oxfordshire County Council,SEN TRANSPORT,4330,Transport to School Activities,19/05/2016,3110096567,"1,285.00",Abingdon Taxis FKN Autotaxis
http://statistics.data.gov.uk/id/local-authority/38,Oxfordshire County Council,SEN TRANSPORT,4330,Transport to School Activities,19/05/2016,3110096563,"1,500.00",Abingdon Taxis FKN Autotaxis
http://statistics.data.gov.uk/id/local-authority/38,Oxfordshire County Council,SEN TRANSPORT,4330,Transport to School Activities,19/05/2016,3110096598,"1,557.08",Abingdon Taxis FKN Autotaxis
http://statistics.data.gov.uk/id/local-authority/38,Oxfordshire County Council,SEN TRANSPORT,4330,Transport to School Activities,19/05/2016,3110096578,"1,736.00",Abingdon Taxis FKN Autotaxis
http://statistics.data.gov.uk/id/local-authority/38,Oxfordshire County Council,SEN TRANSPORT,4330,Transport to School Activities,19/05/2016,3110096584,"1,820.00",Abingdon Taxis FKN Autotaxis
http://statistics.data.gov.uk/id/local-authority/38,Oxfordshire County Council,SEN TRANSPORT,4330,Transport to School Activities,19/05/2016,3110096570,"1,932.00",Abingdon Taxis FKN Autotaxis
http://statistics.data.gov.uk/id/local-authority/38,Oxfordshire County Council,SEN TRANSPORT,4330,Transport to School Activities,19/05/2016,3110096580,"1,960.00",Abingdon Taxis FKN Autotaxis
http://statistics.data.gov.uk/id/local-authority/38,Oxfordshire County Council,SEN TRANSPORT,4330,Transport to School Activities,19/05/2016,3110096588,"1,960.00",Abingdon Taxis FKN Autotaxis
http://statistics.data.gov.uk/id/local-authority/38,Oxfordshire County Council,SEN TRANSPORT,4330,Transport to School Activities,19/05/2016,3110096574,"2,394.00",Abingdon Taxis FKN Autotaxis
http://statistics.data.gov.uk/id/local-authority/38,Oxfordshire County Council,SEN TRANSPORT,4330,Transport to School Activities,19/05/2016,3110096564,"2,800.00",Abingdon Taxis FKN Autotaxis
http://statistics.data.gov.uk/id/local-authority/38,Oxfordshire County Council,ON ST PARK ABINGDON,5526,Payments to Private Contractors,09/05/2016,2200157220,"13,239.97",Abingdon Town Council
http://statistics.data.gov.uk/id/local-authority/38,Oxfordshire County Council,L&D CORE PROGRAMME,3100,Educational and Vocational Training,16/05/2016,2200161214,"2,358.00",AC EDUCATION
http://statistics.data.gov.uk/id/local-authority/38,Oxfordshire County Council,CARE HOME SPOT SOUTH,5686,,12/05/2016,3110093633,"67,768.20",Acacia Lodge Care Home
http://statistics.data.gov.uk/id/local-authority/38,Oxfordshire County Council,LOCALITY TEAM - VALE,1362,Creditors GR/IR -,09/05/2016,2200156669,"1,280.00",Access Independent Limited
http://statistics.data.gov.uk/id/local-authority/38,Oxfordshire County Council,LOCALITY TEAM - VALE,2040,Agency Staff,27/05/2016,2200167669,"1,280.00",Access Independent Limited
http://statistics.data.gov.uk/id/local-authority/38,Oxfordshire County Council,MAINSTREAM-SECONDARY,4330,Transport to School Activities,19/05/2016,3110096585,742.5,Ace Taxis (West Oxfordshire) Ltd
http://statistics.data.gov.uk/id/local-authority/38,Oxfordshire County Council,MAINSTREAM-SECONDARY,4330,Transport to School Activities,19/05/2016,3110096587,833,Ace Taxis (West Oxfordshire) Ltd
http://statistics.data.gov.uk/id/local-authority/38,Oxfordshire County Council,PD COMM SUPP - CITY,5899,Adult Social Care - Direct Payments,18/05/2016,3110095162,"2,424.00",Redacted Personal Data
http://statistics.data.gov.uk/id/local-authority/38,Oxfordshire County Council,CSB - BANBURY,5689,,04/05/2016,3110090062,507.53,Acquire Care Ltd
http://statistics.data.gov.uk/id/local-authority/38,Oxfordshire County Council,CSB - CITY,5689,,04/05/2016,3110090097,552.11,Acquire Care Ltd
http://statistics.data.gov.uk/id/local-authority/38,Oxfordshire County Council,CSB - CITY,5689,,04/05/2016,3110090112,554.45,Acquire Care Ltd
http://statistics.data.gov.uk/id/local-authority/38,Oxfordshire County Council,PD COMM SUPP - CITY,5689,,04/05/2016,3110090125,573.67,Acquire Care Ltd
http://statistics.data.gov.uk/id/local-authority/38,Oxfordshire County Council,CSB - BANBURY,5689,,04/05/2016,3110090069,584.69,Acquire Care Ltd
http://statistics.data.gov.uk/id/local-authority/38,Oxfordshire County Council,CSB - BANBURY,5689,,04/05/2016,3110090055,621.49,Acquire Care Ltd
http://statistics.data.gov.uk/id/local-authority/38,Oxfordshire County Council,CSB - CITY,5689,,04/05/2016,3110090086,624.38,Acquire Care Ltd
http://statistics.data.gov.uk/id/local-authority/38,Oxfordshire County Council,CSB - CITY,5689,,04/05/2016,3110090094,642.72,Acquire Care Ltd
http://statistics.data.gov.uk/id/local-authority/38,Oxfordshire County Council,PD COMM SUPP BANB,5689,,04/05/2016,3110090118,646.19,Acquire Care Ltd
http://statistics.data.gov.uk/id/local-authority/38,Oxfordshire County Council,CSB - CITY,5689,,04/05/2016,3110090114,651.92,Acquire Care Ltd
http://statistics.data.gov.uk/id/local-authority/38,Oxfordshire County Council,CSB - BANBURY,5689,,04/05/2016,3110090061,655.11,Acquire Care Ltd
http://statistics.data.gov.uk/id/local-authority/38,Oxfordshire County Council,CSB - CITY,5689,,04/05/2016,3110090075,658.52,Acquire Care Ltd
http://statistics.data.gov.uk/id/local-authority/38,Oxfordshire County Council,CSB - CITY,5689,,04/05/2016,3110090079,675.06,Acquire Care Ltd
http://statistics.data.gov.uk/id/local-authority/38,Oxfordshire County Council,CSB - CITY,5689,,04/05/2016,3110090095,686.69,Acquire Care Ltd
http://statistics.data.gov.uk/id/local-authority/38,Oxfordshire County Council,CSB - CITY,5689,,04/05/2016,3110090091,693.56,Acquire Care Ltd
http://statistics.data.gov.uk/id/local-authority/38,Oxfordshire County Council,CSB - CITY,5689,,04/05/2016,3110090096,704.29,Acquire Care Ltd
http://statistics.data.gov.uk/id/local-authority/38,Oxfordshire County Council,CSB - ABINGDON,5689,,04/05/2016,3110090115,706.83,Acquire Care Ltd
http://statistics.data.gov.uk/id/local-authority/38,Oxfordshire County Council,CSB - CITY,5689,,04/05/2016,3110090084,720.1,Acquire Care Ltd
http://statistics.data.gov.uk/id/local-authority/38,Oxfordshire County Council,CSB - CITY,5689,,04/05/2016,3110090085,749.37,Acquire Care Ltd
http://statistics.data.gov.uk/id/local-authority/38,Oxfordshire County Council,CSB - CITY,5689,,04/05/2016,3110090098,873.14,Acquire Care Ltd
http://statistics.data.gov.uk/id/local-authority/38,Oxfordshire County Council,CSB - CITY,5689,,04/05/2016,3110090108,880.78,Acquire Care Ltd
http://statistics.data.gov.uk/id/local-authority/38,Oxfordshire County Council,CSB - CITY,5689,,04/05/2016,3110090109,890.28,Acquire Care Ltd
http://statistics.data.gov.uk/id/local-authority/38,Oxfordshire County Council,CSB - CITY,5689,,04/05/2016,3110090102,899.54,Acquire Care Ltd
http://statistics.data.gov.uk/id/local-authority/38,Oxfordshire County Council,CSB - BANBURY,5689,,04/05/2016,3110090059,905.22,Acquire Care Ltd
http://statistics.data.gov.uk/id/local-authority/38,Oxfordshire County Council,CSB - CITY,5689,,04/05/2016,3110090110,932.11,Acquire Care Ltd
http://statistics.data.gov.uk/id/local-authority/38,Oxfordshire County Council,CSB - ABINGDON,5689,,04/05/2016,3110090116,943.48,Acquire Care Ltd
http://statistics.data.gov.uk/id/local-authority/38,Oxfordshire County Council,CSB - CITY,5689,,04/05/2016,3110090072,952.75,Acquire Care Ltd
http://statistics.data.gov.uk/id/local-authority/38,Oxfordshire County Council,CSB - CITY,5689,,04/05/2016,3110090105,958.04,Acquire Care Ltd
http://statistics.data.gov.uk/id/local-authority/38,Oxfordshire County Council,CSB - CITY,5689,,04/05/2016,3110090071,"1,004.82",Acquire Care Ltd
http://statistics.data.gov.uk/id/local-authority/38,Oxfordshire County Council,CSB - CITY,5689,,04/05/2016,3110090100,"1,096.53",Acquire Care Ltd
http://statistics.data.gov.uk/id/local-authority/38,Oxfordshire County Council,CSB - BANBURY,5689,,04/05/2016,3110090068,"1,142.18",Acquire Care Ltd
http://statistics.data.gov.uk/id/local-authority/38,Oxfordshire County Council,CSB - BANBURY,5689,,04/05/2016,3110090056,"1,398.67",Acquire Care Ltd
http://statistics.data.gov.uk/id/local-authority/38,Oxfordshire County Council,CSB - CITY,5689,,04/05/2016,3110090092,"1,398.74",Acquire Care Ltd
http://statistics.data.gov.uk/id/local-authority/38,Oxfordshire County Council,CSB - BANBURY,5689,,04/05/2016,3110090063,"1,566.21",Acquire Care Ltd
http://statistics.data.gov.uk/id/local-authority/38,Oxfordshire County Council,CSB - BANBURY,5689,,04/05/2016,3110090060,"1,597.67",Acquire Care Ltd
http://statistics.data.gov.uk/id/local-authority/38,Oxfordshire County Council,CSB - CITY,5689,,04/05/2016,3110090106,"1,621.20",Acquire Care Ltd
http://statistics.data.gov.uk/id/local-authority/38,Oxfordshire County Council,CSB - CITY,5689,,04/05/2016,3110090101,"1,762.78",Acquire Care Ltd
http://statistics.data.gov.uk/id/local-authority/38,Oxfordshire County Council,PD COMM SUPP - CITY,5689,,04/05/2016,3110090124,"1,797.65",Acquire Care Ltd
http://statistics.data.gov.uk/id/local-authority/38,Oxfordshire County Council,CSB - CITY,5689,,04/05/2016,3110090099,"1,832.49",Acquire Care Ltd
http://statistics.data.gov.uk/id/local-authority/38,Oxfordshire County Council,CSB - CITY,5689,,04/05/2016,3110090107,"1,960.17",Acquire Care Ltd
http://statistics.data.gov.uk/id/local-authority/38,Oxfordshire County Council,CSB - BANBURY,5689,,04/05/2016,3110090066,"2,000.77",Acquire Care Ltd
http://statistics.data.gov.uk/id/local-authority/38,Oxfordshire County Council,CSB - CITY,5689,,04/05/2016,3110090093,"2,038.90",Acquire Care Ltd
http://statistics.data.gov.uk/id/local-authority/38,Oxfordshire County Council,CSB - CITY,5689,,04/05/2016,3110090070,"2,045.89",Acquire Care Ltd
http://statistics.data.gov.uk/id/local-authority/38,Oxfordshire County Council,CSB - BANBURY,5689,,04/05/2016,3110090057,"2,052.04",Acquire Care Ltd
http://statistics.data.gov.uk/id/local-authority/38,Oxfordshire County Council,CSB - CITY,5689,,04/05/2016,3110090088,"2,103.17",Acquire Care Ltd
http://statistics.data.gov.uk/id/local-authority/38,Oxfordshire County Council,CSB - CITY,5689,,04/05/2016,3110090080,"2,109.33",Acquire Care Ltd
http://statistics.data.gov.uk/id/local-authority/38,Oxfordshire County Council,CSB - CITY,5689,,04/05/2016,3110090073,"2,157.05",Acquire Care Ltd
http://statistics.data.gov.uk/id/local-authority/38,Oxfordshire County Council,CSB - CITY,5689,,04/05/2016,3110090104,"2,159.55",Acquire Care Ltd
http://statistics.data.gov.uk/id/local-authority/38,Oxfordshire County Council,CSB - CITY,5689,,04/05/2016,3110090089,"2,183.21",Acquire Care Ltd
http://statistics.data.gov.uk/id/local-authority/38,Oxfordshire County Council,CSB - CITY,5689,,04/05/2016,3110090082,"2,262.42",Acquire Care Ltd
http://statistics.data.gov.uk/id/local-authority/38,Oxfordshire County Council,PD COMM SUPP - CITY,5689,,04/05/2016,3110090119,"2,284.66",Acquire Care Ltd
http://statistics.data.gov.uk/id/local-authority/38,Oxfordshire County Council,CSB - CITY,5689,,04/05/2016,3110090076,"2,456.93",Acquire Care Ltd
http://statistics.data.gov.uk/id/local-authority/38,Oxfordshire County Council,PD COMM SUPP - CITY,5689,,04/05/2016,3110090122,"2,510.14",Acquire Care Ltd
http://statistics.data.gov.uk/id/local-authority/38,Oxfordshire County Council,CSB - BANBURY,5689,,04/05/2016,3110090065,"2,722.26",Acquire Care Ltd
http://statistics.data.gov.uk/id/local-authority/38,Oxfordshire County Council,CSB - BANBURY,5689,,04/05/2016,3110090054,"2,745.60",Acquire Care Ltd
http://statistics.data.gov.uk/id/local-authority/38,Oxfordshire County Council,CSB - CITY,5689,,04/05/2016,3110090083,"2,876.97",Acquire Care Ltd
http://statistics.data.gov.uk/id/local-authority/38,Oxfordshire County Council,CSB - BANBURY,5689,,06/05/2016,3110091599,"3,770.00",Acquire Care Ltd
http://statistics.data.gov.uk/id/local-authority/38,Oxfordshire County Council,CHILDREN CENTRES REV,4940,Other Services,24/05/2016,2200166495,"184,203.75",Action for Children
http://statistics.data.gov.uk/id/local-authority/38,Oxfordshire County Council,RESIDENTIAL TREATMEN,5686,,03/05/2016,2200153442,"4,075.00",Action on Addiction
http://statistics.data.gov.uk/id/local-authority/38,Oxfordshire County Council,PD RES PURCH - CITY,5686,,12/05/2016,3110093292,"11,247.02",ACTION ON HEARING LOSS
http://statistics.data.gov.uk/id/local-authority/38,Oxfordshire County Council,HN IN SEC SCHOOLS,5537,Payments to Other Establishments,19/05/2016,3110096413,"3,199.00",Activate Learning Education Trust
http://statistics.data.gov.uk/id/local-authority/38,Oxfordshire County Council,LD CLIENTS SOUTH,5899,Adult Social Care - Direct Payments,18/05/2016,3110095780,"1,171.48",Redacted Personal Data
http://statistics.data.gov.uk/id/local-authority/38,Oxfordshire County Council,LD CLIENTS SOUTH,5899,Adult Social Care - Direct Payments,18/05/2016,3110095578,"2,076.92",Redacted Personal Data
http://statistics.data.gov.uk/id/local-authority/38,Oxfordshire County Council,DIRECTOR'S OFFICE,5990,B*Recharge (Core Services from Busine,18/05/2016,2200162287,780,ADCS LTD
http://statistics.data.gov.uk/id/local-authority/38,Oxfordshire County Council,Adoption Support Fund,5365,Non-Staff Subsistence and Expenses,19/05/2016,2200165754,"8,700.00",AdoptionPlus
http://statistics.data.gov.uk/id/local-authority/38,Oxfordshire County Council,PD COMM SUPP BANB,5899,Adult Social Care - Direct Payments,18/05/2016,3110095319,792,Redacted Personal Data
http://statistics.data.gov.uk/id/local-authority/38,Oxfordshire County Council,ICT Operations & Maintenance,5039,ITC Services,20/05/2016,2200164172,577.61,ADT Fire & Security PLC
http://statistics.data.gov.uk/id/local-authority/38,Oxfordshire County Council,ICT Operations & Maintenance,5039,ITC Services,20/05/2016,2200164173,"1,636.79",ADT Fire & Security PLC
http://statistics.data.gov.uk/id/local-authority/38,Oxfordshire County Council,DAY SERVICES,5690,,12/05/2016,3110093319,"-10,061.17",ADVANCE HOUSING & SUPPORT LTD
http://statistics.data.gov.uk/id/local-authority/38,Oxfordshire County Council,LD CLIENTS NORTH,5688,,12/05/2016,3110093361,"20,360.08",ADVANCE HOUSING & SUPPORT LTD
http://statistics.data.gov.uk/id/local-authority/38,Oxfordshire County Council,LD EXT RESP CONTRACT,5544,B*Fostering - Temp/Respite,12/05/2016,3110093294,"28,631.85",ADVANCE HOUSING & SUPPORT LTD
http://statistics.data.gov.uk/id/local-authority/38,Oxfordshire County Council,SM DISABILITIES,5899,Adult Social Care - Direct Payments,26/05/2016,3110098423,517.18,Advance Oxford
http://statistics.data.gov.uk/id/local-authority/38,Oxfordshire County Council,SM DISABILITIES,5899,Adult Social Care - Direct Payments,26/05/2016,3110098434,517.18,Advance Oxford
http://statistics.data.gov.uk/id/local-authority/38,Oxfordshire County Council,ContrO ASC Payments Control Account,5899,Adult Social Care - Direct Payments,26/05/2016,3110098422,585.39,Advance Oxford
http://statistics.data.gov.uk/id/local-authority/38,Oxfordshire County Council,SM DISABILITIES,5899,Adult Social Care - Direct Payments,26/05/2016,3110098431,799.28,Advance Oxford
http://statistics.data.gov.uk/id/local-authority/38,Oxfordshire County Council,SM DISABILITIES,5899,Adult Social Care - Direct Payments,26/05/2016,3110098426,846.3,Advance Oxford
http://statistics.data.gov.uk/id/local-authority/38,Oxfordshire County Council,ContrO ASC Payments Control Account,5899,Adult Social Care - Direct Payments,26/05/2016,3110098429,854.88,Advance Oxford
http://statistics.data.gov.uk/id/local-authority/38,Oxfordshire County Council,SM DISABILITIES,5899,Adult Social Care - Direct Payments,26/05/2016,3110098425,960,Advance Oxford
http://statistics.data.gov.uk/id/local-authority/38,Oxfordshire County Council,ContrO ASC Payments Control Account,5899,Adult Social Care - Direct Payments,26/05/2016,3110098442,"1,333.80",Advance Oxford
http://statistics.data.gov.uk/id/local-authority/38,Oxfordshire County Council,SM DISABILITIES,5899,Adult Social Care - Direct Payments,26/05/2016,3110098436,"2,025.33",Advance Oxford
http://statistics.data.gov.uk/id/local-authority/38,Oxfordshire County Council,SM DISABILITIES,5899,Adult Social Care - Direct Payments,26/05/2016,3110098438,"2,603.70",Advance Oxford
http://statistics.data.gov.uk/id/local-authority/38,Oxfordshire County Council,SM DISABILITIES,5899,Adult Social Care - Direct Payments,26/05/2016,3110098439,"2,603.70",Advance Oxford
http://statistics.data.gov.uk/id/local-authority/38,Oxfordshire County Council,SM DISABILITIES,5899,Adult Social Care - Direct Payments,10/05/2016,3110092235,"2,788.45",Advance Oxford
http://statistics.data.gov.uk/id/local-authority/38,Oxfordshire County Council,SM DISABILITIES,5899,Adult Social Care - Direct Payments,10/05/2016,3110092236,"2,788.45",Advance Oxford
http://statistics.data.gov.uk/id/local-authority/38,Oxfordshire County Council,GYPSY & TRAVELLER SV,4861,Hired and Contracted Services,11/05/2016,2200161671,588,Advanced Pest Control Ltd
http://statistics.data.gov.uk/id/local-authority/38,Oxfordshire County Council,MAJOR INFASTRUCTURE,5526,Payments to Private Contractors,26/05/2016,2200166814,"-8,902.45",AECOM Infrastructure & Environment
http://statistics.data.gov.uk/id/local-authority/38,Oxfordshire County Council,MAJOR INFASTRUCTURE,5526,Payments to Private Contractors,10/05/2016,2200157765,"4,291.47",AECOM Infrastructure & Environment
http://statistics.data.gov.uk/id/local-authority/38,Oxfordshire County Council,MAJOR INFASTRUCTURE,5526,Payments to Private Contractors,18/05/2016,2200162734,"4,745.04",AECOM Infrastructure & Environment
http://statistics.data.gov.uk/id/local-authority/38,Oxfordshire County Council,MAJOR INFASTRUCTURE,5526,Payments to Private Contractors,18/05/2016,2200162741,"5,938.64",AECOM Infrastructure & Environment
http://statistics.data.gov.uk/id/local-authority/38,Oxfordshire County Council,MAJOR INFASTRUCTURE,5526,Payments to Private Contractors,09/05/2016,2200156701,"6,094.92",AECOM Infrastructure & Environment
http://statistics.data.gov.uk/id/local-authority/38,Oxfordshire County Council,MAJOR INFASTRUCTURE,5526,Payments to Private Contractors,04/05/2016,2200154500,"6,400.00",AECOM Infrastructure & Environment
http://statistics.data.gov.uk/id/local-authority/38,Oxfordshire County Council,MAJOR INFASTRUCTURE,5526,Payments to Private Contractors,18/05/2016,2200162738,"6,400.00",AECOM Infrastructure & Environment
http://statistics.data.gov.uk/id/local-authority/38,Oxfordshire County Council,MAJOR INFASTRUCTURE,5526,Payments to Private Contractors,10/05/2016,2200157767,"6,563.76",AECOM Infrastructure & Environment
http://statistics.data.gov.uk/id/local-authority/38,Oxfordshire County Council,MAJOR INFASTRUCTURE,5526,Payments to Private Contractors,06/05/2016,2200156461,"7,360.00",AECOM Infrastructure & Environment
http://statistics.data.gov.uk/id/local-authority/38,Oxfordshire County Council,MAJOR INFASTRUCTURE,5526,Payments to Private Contractors,01/05/2016,2200160716,"7,758.85",AECOM Infrastructure & Environment
http://statistics.data.gov.uk/id/local-authority/38,Oxfordshire County Council,MAJOR INFASTRUCTURE,5526,Payments to Private Contractors,18/05/2016,2200162737,"7,759.30",AECOM Infrastructure & Environment
http://statistics.data.gov.uk/id/local-authority/38,Oxfordshire County Council,MAJOR INFASTRUCTURE,5526,Payments to Private Contractors,01/05/2016,2200160730,"8,902.45",AECOM Infrastructure & Environment
http://statistics.data.gov.uk/id/local-authority/38,Oxfordshire County Council,MAJOR INFASTRUCTURE,5526,Payments to Private Contractors,18/05/2016,2200162736,"11,200.00",AECOM Infrastructure & Environment
http://statistics.data.gov.uk/id/local-authority/38,Oxfordshire County Council,MAJOR INFASTRUCTURE,5526,Payments to Private Contractors,01/05/2016,2200160727,"12,895.30",AECOM Infrastructure & Environment
http://statistics.data.gov.uk/id/local-authority/38,Oxfordshire County Council,LD CLIENTS SOUTH,5686,,12/05/2016,3110093287,"7,295.58",AFFINITY TRUST
http://statistics.data.gov.uk/id/local-authority/38,Oxfordshire County Council,VOIDS/VACANCY COSTS,5688,,12/05/2016,3110093324,"240,781.61",AFFINITY TRUST
http://statistics.data.gov.uk/id/local-authority/38,Oxfordshire County Council,BUCKS GYPSY &TRAV SV,3956,Non System - Water - Metered,24/05/2016,2200166129,659.36,AFFINITY WATER
http://statistics.data.gov.uk/id/local-authority/38,Oxfordshire County Council,BUCKS GYPSY &TRAV SV,3956,Non System - Water - Metered,17/05/2016,2200163204,"1,595.18",AFFINITY WATER
http://statistics.data.gov.uk/id/local-authority/38,Oxfordshire County Council,EXTERNAL DAY CARE,5505,Payments to Health Authorities,05/05/2016,3500017646,"9,067.00",Age Concern Chalgrove Area
http://statistics.data.gov.uk/id/local-authority/38,Oxfordshire County Council,SCH CAUSING CONCERN,4494,Purchase of IT Equipment,23/05/2016,2200164398,"2,214.00",Agile Collective Ltd
http://statistics.data.gov.uk/id/local-authority/38,Oxfordshire County Council,CSB - DIDCOT,5899,Adult Social Care - Direct Payments,18/05/2016,3110095111,"1,532.00",Redacted Personal Data
http://statistics.data.gov.uk/id/local-authority/38,Oxfordshire County Council,COMPOSTING,5526,Payments to Private Contractors,01/05/2016,2200160127,596.31,Agrivert (Ardley) Limited
http://statistics.data.gov.uk/id/local-authority/38,Oxfordshire County Council,COMPOSTING,5526,Payments to Private Contractors,04/05/2016,2200161349,"1,994.72",Agrivert (Ardley) Limited
http://statistics.data.gov.uk/id/local-authority/38,Oxfordshire County Council,COMPOSTING,5526,Payments to Private Contractors,01/05/2016,2200160195,"3,277.56",Agrivert (Ardley) Limited
http://statistics.data.gov.uk/id/local-authority/38,Oxfordshire County Council,COMPOSTING,5526,Payments to Private Contractors,01/05/2016,2200160144,"12,950.02",Agrivert (Ardley) Limited
http://statistics.data.gov.uk/id/local-authority/38,Oxfordshire County Council,COMPOSTING,5526,Payments to Private Contractors,01/05/2016,2200160199,"14,732.83",Agrivert (Ardley) Limited
http://statistics.data.gov.uk/id/local-authority/38,Oxfordshire County Council,COMPOSTING,5526,Payments to Private Contractors,01/05/2016,2200160125,"18,631.24",Agrivert (Ardley) Limited
http://statistics.data.gov.uk/id/local-authority/38,Oxfordshire County Council,COMPOSTING,5526,Payments to Private Contractors,04/05/2016,2200166769,"18,696.87",Agrivert (Ardley) Limited
http://statistics.data.gov.uk/id/local-authority/38,Oxfordshire County Council,COMPOSTING,5526,Payments to Private Contractors,01/05/2016,2200160145,"19,278.86",Agrivert (Ardley) Limited
http://statistics.data.gov.uk/id/local-authority/38,Oxfordshire County Council,COMPOSTING,5526,Payments to Private Contractors,01/05/2016,2200160129,"20,513.68",Agrivert (Ardley) Limited
http://statistics.data.gov.uk/id/local-authority/38,Oxfordshire County Council,COMPOSTING,5526,Payments to Private Contractors,04/05/2016,2200160288,699.9,Agrivert (Biogas) Limited
http://statistics.data.gov.uk/id/local-authority/38,Oxfordshire County Council,COMPOSTING,5526,Payments to Private Contractors,01/05/2016,2200155235,"12,452.39",Agrivert (Biogas) Limited
http://statistics.data.gov.uk/id/local-authority/38,Oxfordshire County Council,COMPOSTING,5526,Payments to Private Contractors,01/05/2016,2200160123,"17,331.35",Agrivert (Biogas) Limited
http://statistics.data.gov.uk/id/local-authority/38,Oxfordshire County Council,GP + PHARMACY SERVS,4934,,06/05/2016,3110092108,868,Ahmeys Midnight Pharmacy
http://statistics.data.gov.uk/id/local-authority/38,Oxfordshire County Council,GP + PHARMACY SERVS,4934,,06/05/2016,3110092168,"1,120.00",Ahmeys Midnight Pharmacy
http://statistics.data.gov.uk/id/local-authority/38,Oxfordshire County Council,GP + PHARMACY SERVS,4934,,06/05/2016,3110092107,"1,036.00",Ahmeys Pharmacy
http://statistics.data.gov.uk/id/local-authority/38,Oxfordshire County Council,LD CLIENTS SOUTH,5899,Adult Social Care - Direct Payments,18/05/2016,3110095521,"1,184.48",Redacted Personal Data
http://statistics.data.gov.uk/id/local-authority/38,Oxfordshire County Council,DATA & SYSTEMS/MISC,4495,IT Software,09/05/2016,2200157533,"34,493.00",Airbus Defence & Space Ltd
http://statistics.data.gov.uk/id/local-authority/38,Oxfordshire County Council,MAINSTREAM-SECONDARY,4330,Transport to School Activities,05/05/2016,3110091526,686,Airport Transfers Banbury Ltd
http://statistics.data.gov.uk/id/local-authority/38,Oxfordshire County Council,MAINSTREAM-SECONDARY,4330,Transport to School Activities,05/05/2016,3110091523,910,Airport Transfers Banbury Ltd
http://statistics.data.gov.uk/id/local-authority/38,Oxfordshire County Council,MAINSTREAM-SECONDARY,4330,Transport to School Activities,05/05/2016,3110091521,966,Airport Transfers Banbury Ltd
http://statistics.data.gov.uk/id/local-authority/38,Oxfordshire County Council,MAINSTREAM-SECONDARY,4330,Transport to School Activities,05/05/2016,3110091522,"1,110.00",Airport Transfers Banbury Ltd
http://statistics.data.gov.uk/id/local-authority/38,Oxfordshire County Council,DISABILITIES TEAM-C,5227,Other Transport Arrangements,13/05/2016,3110093961,"1,386.00",Airport Transfers Banbury Ltd
http://statistics.data.gov.uk/id/local-authority/38,Oxfordshire County Council,SEN TRANSPORT,4330,Transport to School Activities,05/05/2016,3110091527,"1,665.00",Airport Transfers Banbury Ltd
http://statistics.data.gov.uk/id/local-authority/38,Oxfordshire County Council,SEN TRANSPORT,4330,Transport to School Activities,05/05/2016,3110091524,"2,850.00",Airport Transfers Banbury Ltd
http://statistics.data.gov.uk/id/local-authority/38,Oxfordshire County Council,COMMUNICATIONS,5079,Telephone - Calls,12/05/2016,2200159847,"3,588.08",Airwave Solutions Ltd
http://statistics.data.gov.uk/id/local-authority/38,Oxfordshire County Council,LOCALITY TEAM -SOUTH,2040,Agency Staff,19/05/2016,2200162959,"1,321.10",Ajana Ltd
http://statistics.data.gov.uk/id/local-authority/38,Oxfordshire County Council,LOCALITY TEAM -SOUTH,2040,Agency Staff,17/05/2016,2200163827,"2,544.85",Ajana Ltd
http://statistics.data.gov.uk/id/local-authority/38,Oxfordshire County Council,SEN TRANSPORT,5227,Other Transport Arrangements,27/05/2016,3110099361,517.1,AKR Ltd
http://statistics.data.gov.uk/id/local-authority/38,Oxfordshire County Council,SEN TRANSPORT,5227,Other Transport Arrangements,27/05/2016,3110099386,570,AKR Ltd
http://statistics.data.gov.uk/id/local-authority/38,Oxfordshire County Council,SEN TRANSPORT,5227,Other Transport Arrangements,27/05/2016,3110099365,627,AKR Ltd
http://statistics.data.gov.uk/id/local-authority/38,Oxfordshire County Council,SEN TRANSPORT,5227,Other Transport Arrangements,27/05/2016,3110099369,734.92,AKR Ltd
http://statistics.data.gov.uk/id/local-authority/38,Oxfordshire County Council,SEN TRANSPORT,5227,Other Transport Arrangements,27/05/2016,3110099391,760,AKR Ltd
http://statistics.data.gov.uk/id/local-authority/38,Oxfordshire County Council,SEN TRANSPORT,5227,Other Transport Arrangements,27/05/2016,3110099376,798,AKR Ltd
http://statistics.data.gov.uk/id/local-authority/38,Oxfordshire County Council,MAINSTREAM-PRIMARY,4330,Transport to School Activities,03/05/2016,3110089213,"1,120.00",AKR Ltd
http://statistics.data.gov.uk/id/local-authority/38,Oxfordshire County Council,MAINSTREAM-PRIMARY,4330,Transport to School Activities,27/05/2016,3110099381,"1,520.00",AKR Ltd
http://statistics.data.gov.uk/id/local-authority/38,Oxfordshire County Council,SEN TRANSPORT,4330,Transport to School Activities,27/05/2016,3110099359,"1,896.33",AKR Ltd
http://statistics.data.gov.uk/id/local-authority/38,Oxfordshire County Council,SEN TRANSPORT,4330,Transport to School Activities,27/05/2016,3110099383,"2,090.00",AKR Ltd
http://statistics.data.gov.uk/id/local-authority/38,Oxfordshire County Council,MAINSTREAM-PRIMARY,4330,Transport to School Activities,27/05/2016,3110099378,"2,375.00",AKR Ltd
http://statistics.data.gov.uk/id/local-authority/38,Oxfordshire County Council,SEN TRANSPORT,4330,Transport to School Activities,27/05/2016,3110099388,"2,660.00",AKR Ltd
http://statistics.data.gov.uk/id/local-authority/38,Oxfordshire County Council,SEN TRANSPORT,4330,Transport to School Activities,27/05/2016,3110099363,"2,872.04",AKR Ltd
http://statistics.data.gov.uk/id/local-authority/38,Oxfordshire County Council,SEN TRANSPORT,4330,Transport to School Activities,27/05/2016,3110099371,"3,382.00",AKR Ltd
http://statistics.data.gov.uk/id/local-authority/38,Oxfordshire County Council,SEN TRANSPORT,4330,Transport to School Activities,27/05/2016,3110099367,"3,415.06",AKR Ltd
http://statistics.data.gov.uk/id/local-authority/38,Oxfordshire County Council,SEN TRANSPORT,4330,Transport to School Activities,27/05/2016,3110099373,"4,522.00",AKR Ltd
http://statistics.data.gov.uk/id/local-authority/38,Oxfordshire County Council,LD CLIENTS NORTH,5686,,12/05/2016,3110093732,"32,259.31",ALBANY FARM CARE
http://statistics.data.gov.uk/id/local-authority/38,Oxfordshire County Council,LD CLIENTS NORTH,5686,,25/05/2016,3110097794,"39,543.68",ALBANY FARM CARE
http://statistics.data.gov.uk/id/local-authority/38,Oxfordshire County Council,LEGAL SERVICES,5251,Legal Costs,01/05/2016,2200161449,550,Alex Perry
http://statistics.data.gov.uk/id/local-authority/38,Oxfordshire County Council,LEGAL SERVICES,5251,Legal Costs,04/05/2016,2200154709,550,Alexander Forbes
http://statistics.data.gov.uk/id/local-authority/38,Oxfordshire County Council,LEGAL SERVICES,5251,Legal Costs,04/05/2016,2200154712,650,Alexander Forbes
http://statistics.data.gov.uk/id/local-authority/38,Oxfordshire County Council,LEGAL SERVICES,5251,Legal Costs,04/05/2016,2200154496,"3,400.00",Alexander Forbes
http://statistics.data.gov.uk/id/local-authority/38,Oxfordshire County Council,LD CLIENTS SOUTH,5899,Adult Social Care - Direct Payments,18/05/2016,3110095582,"2,995.08",Redacted Personal Data
http://statistics.data.gov.uk/id/local-authority/38,Oxfordshire County Council,ContrO ASC Payments Control Account,5899,Adult Social Care - Direct Payments,26/05/2016,3110098410,705.25,Redacted Personal Data
http://statistics.data.gov.uk/id/local-authority/38,Oxfordshire County Council,LD CLIENTS CITY,5899,Adult Social Care - Direct Payments,18/05/2016,3110095099,"5,388.00",Redacted Personal Data
http://statistics.data.gov.uk/id/local-authority/38,Oxfordshire County Council,LD CLIENTS CITY,5899,Adult Social Care - Direct Payments,18/05/2016,3110095058,"6,654.76",Redacted Personal Data
http://statistics.data.gov.uk/id/local-authority/38,Oxfordshire County Council,LD CLIENTS SOUTH,5899,Adult Social Care - Direct Payments,18/05/2016,3110095776,753.24,Redacted Personal Data
http://statistics.data.gov.uk/id/local-authority/38,Oxfordshire County Council,LD CLIENTS NORTH,5899,Adult Social Care - Direct Payments,18/05/2016,3110095532,"4,493.16",Redacted Personal Data
http://statistics.data.gov.uk/id/local-authority/38,Oxfordshire County Council,INSTRU PURCHASE SCHM,4407,Equipment,20/05/2016,2200163695,917.5,ALL FLUTES PLUS
http://statistics.data.gov.uk/id/local-authority/38,Oxfordshire County Council,MH COMMUNITY SUP'T,5899,Adult Social Care - Direct Payments,18/05/2016,3110095325,640,Redacted Personal Data
http://statistics.data.gov.uk/id/local-authority/38,Oxfordshire County Council,PROCUREMENT,4232,Vehicle Fuel,03/05/2016,2200154271,"3,560.82",Allstar Business Solutions Ltd
http://statistics.data.gov.uk/id/local-authority/38,Oxfordshire County Council,LD CLIENTS SOUTH,5686,,12/05/2016,3110093717,"25,080.95",Alocare Group
http://statistics.data.gov.uk/id/local-authority/38,Oxfordshire County Council,ABINGDON DAY SERVICE,4270,HTM / Other Vehicle - Hire Charges,11/05/2016,2200160506,568.74,Alphabet (GB) Ltd
http://statistics.data.gov.uk/id/local-authority/38,Oxfordshire County Council,EYASP,5668,Technical and Professional Consultant F,23/05/2016,2200164896,"5,000.00",Alto Innovations Ltd
http://statistics.data.gov.uk/id/local-authority/38,Oxfordshire County Council,PD COMM SUPP AB'DON,5689,,04/05/2016,3110090013,501.82,Amber Healthcare Personnel Ltd
http://statistics.data.gov.uk/id/local-authority/38,Oxfordshire County Council,CSB - CITY,5689,,04/05/2016,3110089969,514.48,Amber Healthcare Personnel Ltd
http://statistics.data.gov.uk/id/local-authority/38,Oxfordshire County Council,CSB - ABINGDON,5689,,04/05/2016,3110089979,540.57,Amber Healthcare Personnel Ltd
http://statistics.data.gov.uk/id/local-authority/38,Oxfordshire County Council,CSB - ABINGDON,5689,,04/05/2016,3110090001,553.12,Amber Healthcare Personnel Ltd
http://statistics.data.gov.uk/id/local-authority/38,Oxfordshire County Council,CSB - ABINGDON,5689,,04/05/2016,3110089991,555.41,Amber Healthcare Personnel Ltd
http://statistics.data.gov.uk/id/local-authority/38,Oxfordshire County Council,CSB - ABINGDON,5689,,04/05/2016,3110090009,561.13,Amber Healthcare Personnel Ltd
http://statistics.data.gov.uk/id/local-authority/38,Oxfordshire County Council,PD COMM SUPP AB'DON,5689,,04/05/2016,3110090014,564.26,Amber Healthcare Personnel Ltd
http://statistics.data.gov.uk/id/local-authority/38,Oxfordshire County Council,CSB - ABINGDON,5689,,04/05/2016,3110089983,631.85,Amber Healthcare Personnel Ltd
http://statistics.data.gov.uk/id/local-authority/38,Oxfordshire County Council,CSB - ABINGDON,5689,,04/05/2016,3110089984,660.56,Amber Healthcare Personnel Ltd
http://statistics.data.gov.uk/id/local-authority/38,Oxfordshire County Council,CSB - ABINGDON,5689,,04/05/2016,3110089987,664.31,Amber Healthcare Personnel Ltd
http://statistics.data.gov.uk/id/local-authority/38,Oxfordshire County Council,CSB - ABINGDON,5689,,04/05/2016,3110089988,664.6,Amber Healthcare Personnel Ltd
http://statistics.data.gov.uk/id/local-authority/38,Oxfordshire County Council,PD COMM SUPP AB'DON,5689,,04/05/2016,3110090017,683.17,Amber Healthcare Personnel Ltd
http://statistics.data.gov.uk/id/local-authority/38,Oxfordshire County Council,CSB - ABINGDON,5689,,04/05/2016,3110089993,743.25,Amber Healthcare Personnel Ltd
http://statistics.data.gov.uk/id/local-authority/38,Oxfordshire County Council,CSB - ABINGDON,5689,,04/05/2016,3110089999,781.92,Amber Healthcare Personnel Ltd
http://statistics.data.gov.uk/id/local-authority/38,Oxfordshire County Council,CSB - ABINGDON,5689,,04/05/2016,3110089985,814.51,Amber Healthcare Personnel Ltd
http://statistics.data.gov.uk/id/local-authority/38,Oxfordshire County Council,CSB - ABINGDON,5689,,04/05/2016,3110089970,849.95,Amber Healthcare Personnel Ltd
http://statistics.data.gov.uk/id/local-authority/38,Oxfordshire County Council,CSB - ABINGDON,5689,,04/05/2016,3110089986,984.02,Amber Healthcare Personnel Ltd
http://statistics.data.gov.uk/id/local-authority/38,Oxfordshire County Council,PD COMM SUPP AB'DON,5689,,04/05/2016,3110090016,"1,067.51",Amber Healthcare Personnel Ltd
http://statistics.data.gov.uk/id/local-authority/38,Oxfordshire County Council,CSB - ABINGDON,5689,,04/05/2016,3110090002,"1,113.63",Amber Healthcare Personnel Ltd
http://statistics.data.gov.uk/id/local-authority/38,Oxfordshire County Council,CSB - ABINGDON,5689,,04/05/2016,3110090010,"1,211.17",Amber Healthcare Personnel Ltd
http://statistics.data.gov.uk/id/local-authority/38,Oxfordshire County Council,CSB - ABINGDON,5689,,04/05/2016,3110089996,"1,289.13",Amber Healthcare Personnel Ltd
http://statistics.data.gov.uk/id/local-authority/38,Oxfordshire County Council,CSB - ABINGDON,5689,,04/05/2016,3110090007,"1,292.29",Amber Healthcare Personnel Ltd
http://statistics.data.gov.uk/id/local-authority/38,Oxfordshire County Council,CSB - ABINGDON,5689,,04/05/2016,3110090011,"1,486.10",Amber Healthcare Personnel Ltd
http://statistics.data.gov.uk/id/local-authority/38,Oxfordshire County Council,CSB - ABINGDON,5689,,04/05/2016,3110090003,"2,003.40",Amber Healthcare Personnel Ltd
http://statistics.data.gov.uk/id/local-authority/38,Oxfordshire County Council,PD COMM SUPP AB'DON,5689,,04/05/2016,3110090018,"2,077.10",Amber Healthcare Personnel Ltd
http://statistics.data.gov.uk/id/local-authority/38,Oxfordshire County Council,CSB - ABINGDON,5689,,04/05/2016,3110090004,"2,435.33",Amber Healthcare Personnel Ltd
http://statistics.data.gov.uk/id/local-authority/38,Oxfordshire County Council,CSB - ABINGDON,5689,,04/05/2016,3110089992,"2,601.58",Amber Healthcare Personnel Ltd
http://statistics.data.gov.uk/id/local-authority/38,Oxfordshire County Council,CMPB WITNEY,5689,,16/05/2016,3110093977,"5,336.00",Amber Healthcare Personnel Ltd
http://statistics.data.gov.uk/id/local-authority/38,Oxfordshire County Council,COMM DRAWDOWN FUNDNG,8004,Design Consultant,06/05/2016,2200156447,"10,786.21",AMEC Foster Wheeler Environment &
http://statistics.data.gov.uk/id/local-authority/38,Oxfordshire County Council,OXFORD LOCALITY,5668,Technical and Professional Consultant F,01/05/2016,2200160392,"11,750.00",AMEC Foster Wheeler Environment &
http://statistics.data.gov.uk/id/local-authority/38,Oxfordshire County Council,COMM DRAWDOWN FUNDNG,8004,Design Consultant,09/05/2016,2200157152,"31,492.66",AMEC Foster Wheeler Environment &
http://statistics.data.gov.uk/id/local-authority/38,Oxfordshire County Council,LD CLIENTS SOUTH,5899,Adult Social Care - Direct Payments,18/05/2016,3110095003,574.04,Redacted Personal Data
http://statistics.data.gov.uk/id/local-authority/38,Oxfordshire County Council,AIM HIGHER FUNDING,5195,Grant Aid and Donations,09/05/2016,2200156671,"5,000.00",Amnimation Station
http://statistics.data.gov.uk/id/local-authority/38,Oxfordshire County Council,LD CLIENTS SOUTH,5899,Adult Social Care - Direct Payments,18/05/2016,3110095739,"2,171.48",Redacted Personal Data
http://statistics.data.gov.uk/id/local-authority/38,Oxfordshire County Council,SEN TRANSPORT,5227,Other Transport Arrangements,23/05/2016,3110097339,656.18,Ancil Services
http://statistics.data.gov.uk/id/local-authority/38,Oxfordshire County Council,SEN TRANSPORT,5227,Other Transport Arrangements,26/05/2016,3110099271,890.53,Ancil Services
http://statistics.data.gov.uk/id/local-authority/38,Oxfordshire County Council,SEN TRANSPORT,4330,Transport to School Activities,23/05/2016,3110097340,"1,884.68",Ancil Services
http://statistics.data.gov.uk/id/local-authority/38,Oxfordshire County Council,SEN TRANSPORT,4330,Transport to School Activities,23/05/2016,3110097338,"3,086.02",Ancil Services
http://statistics.data.gov.uk/id/local-authority/38,Oxfordshire County Council,SEN TRANSPORT,4330,Transport to School Activities,26/05/2016,3110099270,"4,188.17",Ancil Services
http://statistics.data.gov.uk/id/local-authority/38,Oxfordshire County Council,SM DISABILITIES,5899,Adult Social Care - Direct Payments,26/05/2016,3110098394,564.2,Redacted Personal Data
http://statistics.data.gov.uk/id/local-authority/38,Oxfordshire County Council,PD COMM SUPP - CITY,5899,Adult Social Care - Direct Payments,18/05/2016,3110094952,"4,000.00",Redacted Personal Data
http://statistics.data.gov.uk/id/local-authority/38,Oxfordshire County Council,LEGAL SERVICES,5251,Legal Costs,04/05/2016,2200154336,600,Andrew Sheriff
http://statistics.data.gov.uk/id/local-authority/38,Oxfordshire County Council,LEGAL SERVICES,5251,Legal Costs,04/05/2016,2200154337,650,Andrew Sheriff
http://statistics.data.gov.uk/id/local-authority/38,Oxfordshire County Council,TVERC,4494,Purchase of IT Equipment,25/05/2016,2200167946,"1,135.00",Andy Foy Consulting
http://statistics.data.gov.uk/id/local-authority/38,Oxfordshire County Council,PD COMM SUPP BANB,5899,Adult Social Care - Direct Payments,18/05/2016,3110095052,"1,833.60",Redacted Personal Data
http://statistics.data.gov.uk/id/local-authority/38,Oxfordshire County Council,PD COMM SUPP BANB,5899,Adult Social Care - Direct Payments,18/05/2016,3110095778,"1,402.80",Redacted Personal Data
http://statistics.data.gov.uk/id/local-authority/38,Oxfordshire County Council,MAINSTREAM-PRIMARY,4330,Transport to School Activities,16/05/2016,3110094119,615,Angelas Travel
http://statistics.data.gov.uk/id/local-authority/38,Oxfordshire County Council,SEN TRANSPORT,4330,Transport to School Activities,16/05/2016,3110094109,762.6,Angelas Travel
http://statistics.data.gov.uk/id/local-authority/38,Oxfordshire County Council,SEN TRANSPORT,4330,Transport to School Activities,16/05/2016,3110094134,900,Angelas Travel
http://statistics.data.gov.uk/id/local-authority/38,Oxfordshire County Council,SEN TRANSPORT,4330,Transport to School Activities,16/05/2016,3110094129,"1,098.72",Angelas Travel
http://statistics.data.gov.uk/id/local-authority/38,Oxfordshire County Council,SEN TRANSPORT,4330,Transport to School Activities,16/05/2016,3110094121,"1,110.00",Angelas Travel
http://statistics.data.gov.uk/id/local-authority/38,Oxfordshire County Council,MAINSTREAM-PRIMARY,4330,Transport to School Activities,16/05/2016,3110094115,"1,591.80",Angelas Travel
http://statistics.data.gov.uk/id/local-authority/38,Oxfordshire County Council,MAINSTREAM-SECONDARY,4330,Transport to School Activities,16/05/2016,3110094127,"1,869.75",Angelas Travel
http://statistics.data.gov.uk/id/local-authority/38,Oxfordshire County Council,MAINSTREAM-SECONDARY,4330,Transport to School Activities,16/05/2016,3110094132,"1,927.05",Angelas Travel
http://statistics.data.gov.uk/id/local-authority/38,Oxfordshire County Council,MAINSTREAM-SECONDARY,4330,Transport to School Activities,16/05/2016,3110094125,"2,528.70",Angelas Travel
http://statistics.data.gov.uk/id/local-authority/38,Oxfordshire County Council,FOSTERING MAIN,5548,B*Fostering - Special Rates & Plus Amou,04/05/2016,3110089640,680.74,Redacted Personal Data
http://statistics.data.gov.uk/id/local-authority/38,Oxfordshire County Council,FOSTERING MAIN,5548,B*Fostering - Special Rates & Plus Amou,11/05/2016,3110092647,680.74,Redacted Personal Data
http://statistics.data.gov.uk/id/local-authority/38,Oxfordshire County Council,FOSTERING MAIN,5548,B*Fostering - Special Rates & Plus Amou,18/05/2016,3110094736,680.74,Redacted Personal Data
http://statistics.data.gov.uk/id/local-authority/38,Oxfordshire County Council,FOSTERING MAIN,5548,B*Fostering - Special Rates & Plus Amou,25/05/2016,3110097756,680.74,Redacted Personal Data
http://statistics.data.gov.uk/id/local-authority/38,Oxfordshire County Council,OPERATIONS,4407,Equipment,16/05/2016,2200160646,"12,356.65",ANGUS FIRE LTD
http://statistics.data.gov.uk/id/local-authority/38,Oxfordshire County Council,PD COMM SUPP BANB,5899,Adult Social Care - Direct Payments,18/05/2016,3110095101,647.48,Redacted Personal Data
http://statistics.data.gov.uk/id/local-authority/38,Oxfordshire County Council,CSB - BANBURY,5899,Adult Social Care - Direct Payments,18/05/2016,3110095376,"2,848.00",Redacted Personal Data
http://statistics.data.gov.uk/id/local-authority/38,Oxfordshire County Council,FOSTERING MAIN,5542,B*Payments to carers,25/05/2016,3110097705,792.69,Redacted Personal Data
http://statistics.data.gov.uk/id/local-authority/38,Oxfordshire County Council,FOSTERING MAIN,5542,B*Payments to carers,04/05/2016,3110089542,840,Redacted Personal Data
http://statistics.data.gov.uk/id/local-authority/38,Oxfordshire County Council,FOSTERING MAIN,5542,B*Payments to carers,11/05/2016,3110092595,840,Redacted Personal Data
http://statistics.data.gov.uk/id/local-authority/38,Oxfordshire County Council,FOSTERING MAIN,5542,B*Payments to carers,18/05/2016,3110094656,840,Redacted Personal Data
http://statistics.data.gov.uk/id/local-authority/38,Oxfordshire County Council,LEGAL SERVICES,5251,Legal Costs,06/05/2016,2200156476,550,Annie Sayers
http://statistics.data.gov.uk/id/local-authority/38,Oxfordshire County Council,CENTRAL PRINTING,4719,Photocopying,16/05/2016,2200161231,"1,587.53",ANNODATA BUSINESS COMMUNICATIONS
http://statistics.data.gov.uk/id/local-authority/38,Oxfordshire County Council,CENTRAL PRINTING,5666,Hire of Admin Equipment,06/05/2016,2200155903,"42,439.87",ANNODATA BUSINESS COMMUNICATIONS
http://statistics.data.gov.uk/id/local-authority/38,Oxfordshire County Council,PD COMM SUPP AB'DON,5899,Adult Social Care - Direct Payments,18/05/2016,3110095303,"1,367.12",Redacted Personal Data
http://statistics.data.gov.uk/id/local-authority/38,Oxfordshire County Council,LD CLIENTS SOUTH,5899,Adult Social Care - Direct Payments,18/05/2016,3110095113,"3,337.60",Redacted Personal Data
http://statistics.data.gov.uk/id/local-authority/38,Oxfordshire County Council,CSB - BANBURY,5899,Adult Social Care - Direct Payments,18/05/2016,3110095570,"4,944.00",Redacted Personal Data
http://statistics.data.gov.uk/id/local-authority/38,Oxfordshire County Council,LD CLIENTS SOUTH,5899,Adult Social Care - Direct Payments,18/05/2016,3110095648,768,Redacted Personal Data
http://statistics.data.gov.uk/id/local-authority/38,Oxfordshire County Council,MH COMMUNITY SUP'T,5691,,04/05/2016,3110089778,"1,779.84",Redacted Personal Data
http://statistics.data.gov.uk/id/local-authority/38,Oxfordshire County Council,FLEET OPERATIONS,4516,Domestic and Cleaning Equipment,18/05/2016,2200167241,533.16,Aquajet Cleaning Equipment Ltd
http://statistics.data.gov.uk/id/local-authority/38,Oxfordshire County Council,UASC 16&17,5549,B*Fostering Allowance - Regulation 38,04/05/2016,3110089441,569.64,Redacted Personal Data
http://statistics.data.gov.uk/id/local-authority/38,Oxfordshire County Council,UASC 16&17,5549,B*Fostering Allowance - Regulation 38,11/05/2016,3110092549,569.64,Redacted Personal Data
http://statistics.data.gov.uk/id/local-authority/38,Oxfordshire County Council,UASC 16&17,5549,B*Fostering Allowance - Regulation 38,18/05/2016,3110094560,569.64,Redacted Personal Data
http://statistics.data.gov.uk/id/local-authority/38,Oxfordshire County Council,UASC 16&17,5663,B*Birthday Allowance,25/05/2016,3110097660,797.9,Redacted Personal Data
http://statistics.data.gov.uk/id/local-authority/38,Oxfordshire County Council,CORPORATE LANDLORD,4861,Hired and Contracted Services,01/05/2016,2200155695,"3,191.30",Ardington Archives LLP
http://statistics.data.gov.uk/id/local-authority/38,Oxfordshire County Council,ContrO ASC Payments Control Account,5899,Adult Social Care - Direct Payments,26/05/2016,3110098456,"4,731.44",Redacted Personal Data
http://statistics.data.gov.uk/id/local-authority/38,Oxfordshire County Council,TM MISCELLANEOUS,5668,Technical and Professional Consultant F,05/05/2016,2200155653,"6,250.00",ARLINGCLOSE LTD
http://statistics.data.gov.uk/id/local-authority/38,Oxfordshire County Council,BUS SUBSIDY,5781,Payments to Transport Operators,31/05/2016,3500018308,722.33,ARRIVA THE SHIRES LIMITED
http://statistics.data.gov.uk/id/local-authority/38,Oxfordshire County Council,WYCHWOOD PROJECT,5668,Technical and Professional Consultant F,10/05/2016,2200157806,"1,110.00",Ascent Business Support Ltd
http://statistics.data.gov.uk/id/local-authority/38,Oxfordshire County Council,TRANSPORT COSTS,4330,Transport to School Activities,25/05/2016,3110098568,500,Ash Cars (UK) Ltd
http://statistics.data.gov.uk/id/local-authority/38,Oxfordshire County Council,SEN TRANSPORT,5227,Other Transport Arrangements,16/05/2016,3110094087,585,Ash Cars (UK) Ltd
http://statistics.data.gov.uk/id/local-authority/38,Oxfordshire County Council,SEN TRANSPORT,5227,Other Transport Arrangements,16/05/2016,3110094083,588,Ash Cars (UK) Ltd
http://statistics.data.gov.uk/id/local-authority/38,Oxfordshire County Council,MEADOWBROOK TRANSPT,4330,Transport to School Activities,16/05/2016,3110094095,630,Ash Cars (UK) Ltd
http://statistics.data.gov.uk/id/local-authority/38,Oxfordshire County Council,SEN TRANSPORT,5227,Other Transport Arrangements,16/05/2016,3110094091,"1,120.00",Ash Cars (UK) Ltd
http://statistics.data.gov.uk/id/local-authority/38,Oxfordshire County Council,SEN TRANSPORT,4330,Transport to School Activities,16/05/2016,3110094089,"1,200.00",Ash Cars (UK) Ltd
http://statistics.data.gov.uk/id/local-authority/38,Oxfordshire County Council,MEADOWBROOK TRANSPT,4330,Transport to School Activities,16/05/2016,3110094093,"1,590.00",Ash Cars (UK) Ltd
http://statistics.data.gov.uk/id/local-authority/38,Oxfordshire County Council,SEN TRANSPORT,4330,Transport to School Activities,16/05/2016,3110094090,"1,596.00",Ash Cars (UK) Ltd
http://statistics.data.gov.uk/id/local-authority/38,Oxfordshire County Council,MEADOWBROOK TRANSPT,4330,Transport to School Activities,16/05/2016,3110094094,"1,745.00",Ash Cars (UK) Ltd
http://statistics.data.gov.uk/id/local-authority/38,Oxfordshire County Council,SEN TRANSPORT,4330,Transport to School Activities,16/05/2016,3110094073,"1,750.00",Ash Cars (UK) Ltd
http://statistics.data.gov.uk/id/local-authority/38,Oxfordshire County Council,SEN TRANSPORT,4330,Transport to School Activities,16/05/2016,3110094082,"1,904.00",Ash Cars (UK) Ltd
http://statistics.data.gov.uk/id/local-authority/38,Oxfordshire County Council,SEN TRANSPORT,4330,Transport to School Activities,16/05/2016,3110094086,"1,950.00",Ash Cars (UK) Ltd
http://statistics.data.gov.uk/id/local-authority/38,Oxfordshire County Council,SEN TRANSPORT,4330,Transport to School Activities,16/05/2016,3110094078,"2,250.00",Ash Cars (UK) Ltd
http://statistics.data.gov.uk/id/local-authority/38,Oxfordshire County Council,SEN TRANSPORT,4330,Transport to School Activities,16/05/2016,3110094085,"2,625.00",Ash Cars (UK) Ltd
http://statistics.data.gov.uk/id/local-authority/38,Oxfordshire County Council,POST 16 SEN,4330,Transport to School Activities,16/05/2016,3110094092,"2,644.00",Ash Cars (UK) Ltd
http://statistics.data.gov.uk/id/local-authority/38,Oxfordshire County Council,SEN TRANSPORT,4330,Transport to School Activities,16/05/2016,3110094080,"2,772.00",Ash Cars (UK) Ltd
http://statistics.data.gov.uk/id/local-authority/38,Oxfordshire County Council,SEN TRANSPORT,4330,Transport to School Activities,16/05/2016,3110094076,"3,893.70",Ash Cars (UK) Ltd
http://statistics.data.gov.uk/id/local-authority/38,Oxfordshire County Council,MH COMMUNITY SUP'T,5691,,13/05/2016,3110093919,"1,922.00",Ashamber Homes Limited
http://statistics.data.gov.uk/id/local-authority/38,Oxfordshire County Council,PD COMM SUPP DIDCOT,5688,,12/05/2016,3110093449,"3,704.50",Ashamber Homes Limited
http://statistics.data.gov.uk/id/local-authority/38,Oxfordshire County Council,CARE HOME SPOT CITY,5686,,12/05/2016,3110093600,"20,441.54",Ashamber Homes Limited
http://statistics.data.gov.uk/id/local-authority/38,Oxfordshire County Council,OUT OF COUNTY,5537,Payments to Other Establishments,10/05/2016,3110092234,"5,468.00",Redacted Personal Data
http://statistics.data.gov.uk/id/local-authority/38,Oxfordshire County Council,LD CLIENTS NORTH,5686,,12/05/2016,3110093624,"6,379.14",Ashgrange House
http://statistics.data.gov.uk/id/local-authority/38,Oxfordshire County Council,LD CLIENTS SOUTH,5899,Adult Social Care - Direct Payments,18/05/2016,3110094985,"3,339.32",Redacted Personal Data
http://statistics.data.gov.uk/id/local-authority/38,Oxfordshire County Council,LIBRARY COLLECTIONS,4539,"Books, DVDs and CDs",31/05/2016,3110099718,"-1,471.09",ASKEWS & HOLTS LIBRARY SERVICES LTD
http://statistics.data.gov.uk/id/local-authority/38,Oxfordshire County Council,LIBRARY COLLECTIONS,4539,"Books, DVDs and CDs",16/05/2016,3110094230,502.73,ASKEWS & HOLTS LIBRARY SERVICES LTD
http://statistics.data.gov.uk/id/local-authority/38,Oxfordshire County Council,LIBRARY COLLECTIONS,4539,"Books, DVDs and CDs",16/05/2016,3110094207,503.83,ASKEWS & HOLTS LIBRARY SERVICES LTD
http://statistics.data.gov.uk/id/local-authority/38,Oxfordshire County Council,LIBRARY COLLECTIONS,4539,"Books, DVDs and CDs",19/05/2016,3110096543,548.46,ASKEWS & HOLTS LIBRARY SERVICES LTD
http://statistics.data.gov.uk/id/local-authority/38,Oxfordshire County Council,LIBRARY COLLECTIONS,4539,"Books, DVDs and CDs",16/05/2016,3110094245,555.45,ASKEWS & HOLTS LIBRARY SERVICES LTD
http://statistics.data.gov.uk/id/local-authority/38,Oxfordshire County Council,LIBRARY COLLECTIONS,4539,"Books, DVDs and CDs",03/05/2016,3110089711,561.24,ASKEWS & HOLTS LIBRARY SERVICES LTD
http://statistics.data.gov.uk/id/local-authority/38,Oxfordshire County Council,LIBRARY COLLECTIONS,4539,"Books, DVDs and CDs",16/05/2016,3110094206,604.92,ASKEWS & HOLTS LIBRARY SERVICES LTD
http://statistics.data.gov.uk/id/local-authority/38,Oxfordshire County Council,LIBRARY COLLECTIONS,4539,"Books, DVDs and CDs",16/05/2016,3110094222,632.44,ASKEWS & HOLTS LIBRARY SERVICES LTD
http://statistics.data.gov.uk/id/local-authority/38,Oxfordshire County Council,LIBRARY COLLECTIONS,4539,"Books, DVDs and CDs",03/05/2016,3110089685,701.86,ASKEWS & HOLTS LIBRARY SERVICES LTD
http://statistics.data.gov.uk/id/local-authority/38,Oxfordshire County Council,LIBRARY COLLECTIONS,4539,"Books, DVDs and CDs",16/05/2016,3110094233,707.88,ASKEWS & HOLTS LIBRARY SERVICES LTD
http://statistics.data.gov.uk/id/local-authority/38,Oxfordshire County Council,LIBRARY COLLECTIONS,4539,"Books, DVDs and CDs",05/05/2016,3110091555,754.22,ASKEWS & HOLTS LIBRARY SERVICES LTD
http://statistics.data.gov.uk/id/local-authority/38,Oxfordshire County Council,LIBRARY COLLECTIONS,4539,"Books, DVDs and CDs",03/05/2016,3110089689,807.62,ASKEWS & HOLTS LIBRARY SERVICES LTD
http://statistics.data.gov.uk/id/local-authority/38,Oxfordshire County Council,LIBRARY COLLECTIONS,4539,"Books, DVDs and CDs",16/05/2016,3110094228,812.64,ASKEWS & HOLTS LIBRARY SERVICES LTD
http://statistics.data.gov.uk/id/local-authority/38,Oxfordshire County Council,LIBRARY COLLECTIONS,4539,"Books, DVDs and CDs",16/05/2016,3110094232,838.49,ASKEWS & HOLTS LIBRARY SERVICES LTD
http://statistics.data.gov.uk/id/local-authority/38,Oxfordshire County Council,LIBRARY COLLECTIONS,4539,"Books, DVDs and CDs",05/05/2016,3110091550,868.61,ASKEWS & HOLTS LIBRARY SERVICES LTD
http://statistics.data.gov.uk/id/local-authority/38,Oxfordshire County Council,LIBRARY COLLECTIONS,4539,"Books, DVDs and CDs",05/05/2016,3110091554,890.62,ASKEWS & HOLTS LIBRARY SERVICES LTD
http://statistics.data.gov.uk/id/local-authority/38,Oxfordshire County Council,LIBRARY COLLECTIONS,4539,"Books, DVDs and CDs",03/05/2016,3110089674,902.69,ASKEWS & HOLTS LIBRARY SERVICES LTD
http://statistics.data.gov.uk/id/local-authority/38,Oxfordshire County Council,LIBRARY COLLECTIONS,4539,"Books, DVDs and CDs",05/05/2016,3110091552,935.68,ASKEWS & HOLTS LIBRARY SERVICES LTD
http://statistics.data.gov.uk/id/local-authority/38,Oxfordshire County Council,LIBRARY COLLECTIONS,4539,"Books, DVDs and CDs",03/05/2016,3110089721,960.91,ASKEWS & HOLTS LIBRARY SERVICES LTD
http://statistics.data.gov.uk/id/local-authority/38,Oxfordshire County Council,LIBRARY COLLECTIONS,4539,"Books, DVDs and CDs",16/05/2016,3110094239,"1,003.02",ASKEWS & HOLTS LIBRARY SERVICES LTD
http://statistics.data.gov.uk/id/local-authority/38,Oxfordshire County Council,LIBRARY COLLECTIONS,4539,"Books, DVDs and CDs",16/05/2016,3110094197,"1,007.66",ASKEWS & HOLTS LIBRARY SERVICES LTD
http://statistics.data.gov.uk/id/local-authority/38,Oxfordshire County Council,LIBRARY COLLECTIONS,4539,"Books, DVDs and CDs",16/05/2016,3110094200,"1,058.32",ASKEWS & HOLTS LIBRARY SERVICES LTD
http://statistics.data.gov.uk/id/local-authority/38,Oxfordshire County Council,LIBRARY COLLECTIONS,4539,"Books, DVDs and CDs",03/05/2016,3110089712,"1,093.83",ASKEWS & HOLTS LIBRARY SERVICES LTD
http://statistics.data.gov.uk/id/local-authority/38,Oxfordshire County Council,LIBRARY COLLECTIONS,4539,"Books, DVDs and CDs",05/05/2016,3110091548,"1,221.36",ASKEWS & HOLTS LIBRARY SERVICES LTD
http://statistics.data.gov.uk/id/local-authority/38,Oxfordshire County Council,LIBRARY COLLECTIONS,4539,"Books, DVDs and CDs",19/05/2016,3110096541,"1,380.07",ASKEWS & HOLTS LIBRARY SERVICES LTD
http://statistics.data.gov.uk/id/local-authority/38,Oxfordshire County Council,LIBRARY COLLECTIONS,4539,"Books, DVDs and CDs",16/05/2016,3110094198,"1,446.39",ASKEWS & HOLTS LIBRARY SERVICES LTD
http://statistics.data.gov.uk/id/local-authority/38,Oxfordshire County Council,LIBRARY COLLECTIONS,4539,"Books, DVDs and CDs",03/05/2016,3110089668,"1,521.20",ASKEWS & HOLTS LIBRARY SERVICES LTD
http://statistics.data.gov.uk/id/local-authority/38,Oxfordshire County Council,LIBRARY COLLECTIONS,4539,"Books, DVDs and CDs",16/05/2016,3110094231,"1,554.61",ASKEWS & HOLTS LIBRARY SERVICES LTD
http://statistics.data.gov.uk/id/local-authority/38,Oxfordshire County Council,LIBRARY COLLECTIONS,4539,"Books, DVDs and CDs",16/05/2016,3110094199,"1,560.81",ASKEWS & HOLTS LIBRARY SERVICES LTD
http://statistics.data.gov.uk/id/local-authority/38,Oxfordshire County Council,LIBRARY COLLECTIONS,4539,"Books, DVDs and CDs",03/05/2016,3110089667,"1,944.00",ASKEWS & HOLTS LIBRARY SERVICES LTD
http://statistics.data.gov.uk/id/local-authority/38,Oxfordshire County Council,LD CLIENTS CITY,5688,,19/05/2016,3110096509,"28,303.44",Aspirations
http://statistics.data.gov.uk/id/local-authority/38,Oxfordshire County Council,LD CLIENTS NORTH,5688,,12/05/2016,3110093473,"4,597.92",Aspirations (North West Adults)
http://statistics.data.gov.uk/id/local-authority/38,Oxfordshire County Council,BSOG,5781,Payments to Transport Operators,25/05/2016,2200167944,"36,900.00",Aspire Oxfordshire
http://statistics.data.gov.uk/id/local-authority/38,Oxfordshire County Council,RISING BOLLARDS,5526,Payments to Private Contractors,26/05/2016,2200167257,"11,603.00",ATG ACCESS LTD
http://statistics.data.gov.uk/id/local-authority/38,Oxfordshire County Council,CONCESSIONARY FARES,5781,Payments to Transport Operators,18/05/2016,2200163612,"1,965.00",ATKINS LIMITED
http://statistics.data.gov.uk/id/local-authority/38,Oxfordshire County Council,CAP CHRGES-PRIM SCHS,8004,Design Consultant,09/05/2016,2200157159,"3,703.09",ATKINS LIMITED
http://statistics.data.gov.uk/id/local-authority/38,Oxfordshire County Council,OXFORD LOCALITY,4861,Hired and Contracted Services,11/05/2016,2200159011,"9,235.00",ATKINS LIMITED
http://statistics.data.gov.uk/id/local-authority/38,Oxfordshire County Council,P&S OPERATIONAL REV,4861,Hired and Contracted Services,03/05/2016,2200154444,"9,900.00",ATKINS LIMITED
http://statistics.data.gov.uk/id/local-authority/38,Oxfordshire County Council,OXFORD LOCALITY,4835,Management Consultant Fees,09/05/2016,2200157018,"14,000.00",ATKINS LIMITED
http://statistics.data.gov.uk/id/local-authority/38,Oxfordshire County Council,OXFORD LOCALITY,4861,Hired and Contracted Services,06/05/2016,2200156403,"15,393.00",ATKINS LIMITED
http://statistics.data.gov.uk/id/local-authority/38,Oxfordshire County Council,CSB - ABINGDON,5899,Adult Social Care - Direct Payments,18/05/2016,3110095909,586.48,Redacted Personal Data
http://statistics.data.gov.uk/id/local-authority/38,Oxfordshire County Council,LD CLIENTS NORTH,5686,,12/05/2016,3110093647,"63,395.81",Autism Care (Bedford) Ltd
http://statistics.data.gov.uk/id/local-authority/38,Oxfordshire County Council,LD CLIENTS NORTH,5688,,12/05/2016,3110093475,"7,294.71",AUTISM CARE (UK) LTD
http://statistics.data.gov.uk/id/local-authority/38,Oxfordshire County Council,LEAVING CARE NORTH,4859,Medical and Counselling Fees,25/05/2016,2200167306,571,Autism Live Training
http://statistics.data.gov.uk/id/local-authority/38,Oxfordshire County Council,MH COMMUNITY SUP'T,5691,,25/05/2016,3110098468,750,Autism Oxford
http://statistics.data.gov.uk/id/local-authority/38,Oxfordshire County Council,CSB - CITY,5899,Adult Social Care - Direct Payments,18/05/2016,3110095274,"1,940.00",Redacted Personal Data
http://statistics.data.gov.uk/id/local-authority/38,Oxfordshire County Council,LD CLIENTS CITY,5687,,12/05/2016,3110093683,"6,018.43",Avondale Care Home
http://statistics.data.gov.uk/id/local-authority/38,Oxfordshire County Council,PD COMM SUPP BANB,5689,,04/05/2016,3110090872,502.72,AVR (Oxon) Ltd
http://statistics.data.gov.uk/id/local-authority/38,Oxfordshire County Council,CSB - BANBURY,5689,,04/05/2016,3110090865,617.71,AVR (Oxon) Ltd
http://statistics.data.gov.uk/id/local-authority/38,Oxfordshire County Council,CSB - BANBURY,5689,,04/05/2016,3110090855,708.16,AVR (Oxon) Ltd
http://statistics.data.gov.uk/id/local-authority/38,Oxfordshire County Council,CSB - BANBURY,5689,,04/05/2016,3110090854,720.55,AVR (Oxon) Ltd
http://statistics.data.gov.uk/id/local-authority/38,Oxfordshire County Council,CSB - BANBURY,5689,,04/05/2016,3110090857,722.85,AVR (Oxon) Ltd
http://statistics.data.gov.uk/id/local-authority/38,Oxfordshire County Council,CSB - BANBURY,5689,,04/05/2016,3110090856,829.21,AVR (Oxon) Ltd
http://statistics.data.gov.uk/id/local-authority/38,Oxfordshire County Council,CSB - BANBURY,5689,,04/05/2016,3110090849,867.77,AVR (Oxon) Ltd
http://statistics.data.gov.uk/id/local-authority/38,Oxfordshire County Council,CSB - BANBURY,5689,,04/05/2016,3110090858,873.36,AVR (Oxon) Ltd
http://statistics.data.gov.uk/id/local-authority/38,Oxfordshire County Council,CSB - BANBURY,5689,,04/05/2016,3110090859,896.7,AVR (Oxon) Ltd
http://statistics.data.gov.uk/id/local-authority/38,Oxfordshire County Council,CSB - BANBURY,5689,,04/05/2016,3110090853,899.85,AVR (Oxon) Ltd
http://statistics.data.gov.uk/id/local-authority/38,Oxfordshire County Council,CSB - BANBURY,5689,,04/05/2016,3110090863,922.57,AVR (Oxon) Ltd
http://statistics.data.gov.uk/id/local-authority/38,Oxfordshire County Council,CSB - BANBURY,5689,,04/05/2016,3110090861,"1,102.11",AVR (Oxon) Ltd
http://statistics.data.gov.uk/id/local-authority/38,Oxfordshire County Council,PDPB CONTCARE H SUPP,5689,,04/05/2016,3110090869,"1,266.36",AVR (Oxon) Ltd
http://statistics.data.gov.uk/id/local-authority/38,Oxfordshire County Council,PD COMM SUPP BANB,5689,,04/05/2016,3110090870,"1,789.93",AVR (Oxon) Ltd
http://statistics.data.gov.uk/id/local-authority/38,Oxfordshire County Council,CSB - BANBURY,5689,,04/05/2016,3110090867,"1,808.18",AVR (Oxon) Ltd
http://statistics.data.gov.uk/id/local-authority/38,Oxfordshire County Council,CSB - BANBURY,5689,,04/05/2016,3110090852,"1,859.63",AVR (Oxon) Ltd
http://statistics.data.gov.uk/id/local-authority/38,Oxfordshire County Council,CSB - BANBURY,5689,,04/05/2016,3110090848,"2,150.57",AVR (Oxon) Ltd
http://statistics.data.gov.uk/id/local-authority/38,Oxfordshire County Council,OPPB CONTCARE H SUPP,5689,,04/05/2016,3110090844,"3,101.72",AVR (Oxon) Ltd
http://statistics.data.gov.uk/id/local-authority/38,Oxfordshire County Council,LD CLIENTS NORTH,5899,Adult Social Care - Direct Payments,18/05/2016,3110095673,"2,600.00",Redacted Personal Data
http://statistics.data.gov.uk/id/local-authority/38,Oxfordshire County Council,OPPB CONTCARE H SUPP,5691,,10/05/2016,3110092053,511.65,B CARERS LTD
http://statistics.data.gov.uk/id/local-authority/38,Oxfordshire County Council,OPPB CONTCARE H SUPP,5691,,19/05/2016,3110096612,511.65,B CARERS LTD
http://statistics.data.gov.uk/id/local-authority/38,Oxfordshire County Council,OPPB CONTCARE H SUPP,5691,,19/05/2016,3110096616,511.65,B CARERS LTD
http://statistics.data.gov.uk/id/local-authority/38,Oxfordshire County Council,RESOURCE EFFICIENCY,4407,Equipment,06/05/2016,2200155798,"1,650.00",B Global Metering Limited
http://statistics.data.gov.uk/id/local-authority/38,Oxfordshire County Council,MH SPOT FUNDING,5686,,12/05/2016,3110093743,"5,314.29",B O'CONNOR T/A DUNRAVEN
http://statistics.data.gov.uk/id/local-authority/38,Oxfordshire County Council,Mockingbird,5549,B*Fostering Allowance - Regulation 38,11/05/2016,3110092506,541.86,Redacted Personal Data
http://statistics.data.gov.uk/id/local-authority/38,Oxfordshire County Council,Mockingbird,5549,B*Fostering Allowance - Regulation 38,18/05/2016,3110094514,777.31,Redacted Personal Data
http://statistics.data.gov.uk/id/local-authority/38,Oxfordshire County Council,CARE HOME SPOT SOUTH,5687,,12/05/2016,3110093631,"71,173.61",Badby Park Ltd
http://statistics.data.gov.uk/id/local-authority/38,Oxfordshire County Council,MAINSTREAM-SECONDARY,4330,Transport to School Activities,16/05/2016,3110094044,"2,450.00",Bakers Commercial Services Ltd
http://statistics.data.gov.uk/id/local-authority/38,Oxfordshire County Council,MAINSTREAM-SECONDARY,4330,Transport to School Activities,16/05/2016,3110094045,"2,730.00",Bakers Commercial Services Ltd
http://statistics.data.gov.uk/id/local-authority/38,Oxfordshire County Council,MAINSTREAM-SECONDARY,4330,Transport to School Activities,16/05/2016,3110094046,"2,730.00",Bakers Commercial Services Ltd
http://statistics.data.gov.uk/id/local-authority/38,Oxfordshire County Council,MAINSTREAM-SECONDARY,4330,Transport to School Activities,16/05/2016,3110094047,"2,940.00",Bakers Commercial Services Ltd
http://statistics.data.gov.uk/id/local-authority/38,Oxfordshire County Council,PROCUREMENT,4685,Clothing and Uniforms,04/05/2016,2200154853,"23,536.67",Ballyclare LHD Ltd
http://statistics.data.gov.uk/id/local-authority/38,Oxfordshire County Council,NHS HEALTHCHECK PROG,4933,,09/05/2016,3110093193,870,Bampton Surgery
http://statistics.data.gov.uk/id/local-authority/38,Oxfordshire County Council,NHS HEALTHCHECK PROG,4933,,09/05/2016,3110092851,"1,635.00",Bampton Surgery
http://statistics.data.gov.uk/id/local-authority/38,Oxfordshire County Council,BANBURY HUB,4940,Other Services,09/05/2016,2200156694,"1,020.60",Banbury & District Comm Bus Project
http://statistics.data.gov.uk/id/local-authority/38,Oxfordshire County Council,RURAL CHILDRN CENTRE,5520,Payments to Voluntary bodies,04/05/2016,2200155142,"27,414.50",Banbury & District Comm Bus Project
http://statistics.data.gov.uk/id/local-authority/38,Oxfordshire County Council,OPPB CONTCARE RNCC,5687,,12/05/2016,3110093578,"78,476.91",Banbury Heights Nursing Home
http://statistics.data.gov.uk/id/local-authority/38,Oxfordshire County Council,COUNTY PRINT FINSHRS,4705,Printing,04/05/2016,2200154342,997,Banbury Litho Ltd
http://statistics.data.gov.uk/id/local-authority/38,Oxfordshire County Council,NHS HEALTHCHECK PROG,4933,,09/05/2016,3110092877,912,Banbury Road Medical Centre
http://statistics.data.gov.uk/id/local-authority/38,Oxfordshire County Council,PLAYGROUP FEES,5537,Payments to Other Establishments,11/05/2016,3110093001,"1,270.50",Banbury School Day Nursery Ltd
http://statistics.data.gov.uk/id/local-authority/38,Oxfordshire County Council,HN IN SEC SCHOOLS,5537,Payments to Other Establishments,19/05/2016,3110096408,"4,672.00",Banbury Schools AAT
http://statistics.data.gov.uk/id/local-authority/38,Oxfordshire County Council,GRASS CUTTING DIST.,5526,Payments to Private Contractors,23/05/2016,2200164900,"36,471.04",Banbury Town Council
http://statistics.data.gov.uk/id/local-authority/38,Oxfordshire County Council,LD CLIENTS NORTH,5686,,12/05/2016,3110093297,"5,411.36",BANYA FAMILY PLACEMENT
http://statistics.data.gov.uk/id/local-authority/38,Oxfordshire County Council,CSB - BANBURY,5899,Adult Social Care - Direct Payments,18/05/2016,3110095054,"1,360.00",Redacted Personal Data
http://statistics.data.gov.uk/id/local-authority/38,Oxfordshire County Council,CSB - BANBURY,5899,Adult Social Care - Direct Payments,18/05/2016,3110095208,"1,172.00",Redacted Personal Data
http://statistics.data.gov.uk/id/local-authority/38,Oxfordshire County Council,CSB - BANBURY,5899,Adult Social Care - Direct Payments,18/05/2016,3110095261,"3,148.00",Redacted Personal Data
http://statistics.data.gov.uk/id/local-authority/38,Oxfordshire County Council,OPPB CONTCARE RNCC,5687,,12/05/2016,3110093308,"165,720.28",Barchester Healthcare Homes Ltd
http://statistics.data.gov.uk/id/local-authority/38,Oxfordshire County Council,LD CLIENTS NORTH,5899,Adult Social Care - Direct Payments,18/05/2016,3110095280,"2,261.00",Redacted Personal Data
http://statistics.data.gov.uk/id/local-authority/38,Oxfordshire County Council,RESOURCE CENTRES,5558,,11/05/2016,2200160032,"7,880.54",BARNARDO SERVICES LTD
http://statistics.data.gov.uk/id/local-authority/38,Oxfordshire County Council,RESOURCE CENTRES,5558,,11/05/2016,2200160031,"8,120.98",BARNARDO SERVICES LTD
http://statistics.data.gov.uk/id/local-authority/38,Oxfordshire County Council,RESOURCE CENTRES,5558,,25/05/2016,2200166777,"96,234.50",BARNARDO SERVICES LTD
http://statistics.data.gov.uk/id/local-authority/38,Oxfordshire County Council,RESOURCE CENTRES,5558,,25/05/2016,2200166776,"208,248.83",BARNARDO SERVICES LTD
http://statistics.data.gov.uk/id/local-authority/38,Oxfordshire County Council,MAINSTREAM-SECONDARY,4330,Transport to School Activities,09/05/2016,3110091979,"1,410.00",Barnes Coaches Ltd
http://statistics.data.gov.uk/id/local-authority/38,Oxfordshire County Council,MAINSTREAM-SECONDARY,4330,Transport to School Activities,09/05/2016,3110091981,"2,160.00",Barnes Coaches Ltd
http://statistics.data.gov.uk/id/local-authority/38,Oxfordshire County Council,MAINSTREAM-PRIMARY,4330,Transport to School Activities,09/05/2016,3110091971,"2,670.00",Barnes Coaches Ltd
http://statistics.data.gov.uk/id/local-authority/38,Oxfordshire County Council,MAINSTREAM-SECONDARY,4330,Transport to School Activities,09/05/2016,3110091973,"3,105.90",Barnes Coaches Ltd
http://statistics.data.gov.uk/id/local-authority/38,Oxfordshire County Council,MAINSTREAM-SECONDARY,4330,Transport to School Activities,09/05/2016,3110091975,"3,289.50",Barnes Coaches Ltd
http://statistics.data.gov.uk/id/local-authority/38,Oxfordshire County Council,MAINSTREAM-SECONDARY,4330,Transport to School Activities,09/05/2016,3110091977,"3,675.00",Barnes Coaches Ltd
http://statistics.data.gov.uk/id/local-authority/38,Oxfordshire County Council,LD CLIENTS NORTH,5899,Adult Social Care - Direct Payments,18/05/2016,3110095079,840.68,Redacted Personal Data
http://statistics.data.gov.uk/id/local-authority/38,Oxfordshire County Council,NHS HEALTHCHECK PROG,4933,,09/05/2016,3110093221,630,Bartlemas Surgery
http://statistics.data.gov.uk/id/local-authority/38,Oxfordshire County Council,NHS HEALTHCHECK PROG,4933,,09/05/2016,3110092893,"1,296.00",Bartlemas Surgery
http://statistics.data.gov.uk/id/local-authority/38,Oxfordshire County Council,GP + PHARMACY SERVS,4934,,06/05/2016,3110092109,728,Barton Pharmacy
http://statistics.data.gov.uk/id/local-authority/38,Oxfordshire County Council,MINERALS & WASTE,4861,Hired and Contracted Services,12/05/2016,2200159629,"3,669.00",BBP CONSULTING
http://statistics.data.gov.uk/id/local-authority/38,Oxfordshire County Council,PD RES PURCH - SOUTH,5687,,12/05/2016,3110093548,"26,286.43",Beacher Hall Nursing Centre
http://statistics.data.gov.uk/id/local-authority/38,Oxfordshire County Council,OPPB CONTCARE RNCC,5687,,12/05/2016,3110093371,"35,605.60",Beech Court Nursing Home
http://statistics.data.gov.uk/id/local-authority/38,Oxfordshire County Council,CARE HOME SPOT CHERW,5686,,12/05/2016,3110093551,"45,543.67",Beech Haven Care Home
http://statistics.data.gov.uk/id/local-authority/38,Oxfordshire County Council,INSTRU PURCHASE SCHM,4407,Equipment,24/05/2016,2200167951,"2,960.83",Beecher Acoustics Ltd
http://statistics.data.gov.uk/id/local-authority/38,Oxfordshire County Council,CARE HOME SPOT CITY,5686,,12/05/2016,3110093644,"2,474.60",Belmont Sandbanks Ltd
http://statistics.data.gov.uk/id/local-authority/38,Oxfordshire County Council,LD CLIENTS NORTH,5899,Adult Social Care - Direct Payments,18/05/2016,3110095747,756,Redacted Personal Data
http://statistics.data.gov.uk/id/local-authority/38,Oxfordshire County Council,NHS HEALTHCHECK PROG,4933,,09/05/2016,3110092857,652,Berinsfield Health Centre
http://statistics.data.gov.uk/id/local-authority/38,Oxfordshire County Council,NHS HEALTHCHECK PROG,4933,,09/05/2016,3110093212,675,Berinsfield Health Centre
http://statistics.data.gov.uk/id/local-authority/38,Oxfordshire County Council,NHS HEALTHCHECK PROG,4933,,09/05/2016,3110092880,744,Berinsfield Health Centre
http://statistics.data.gov.uk/id/local-authority/38,Oxfordshire County Council,EXTERNAL DAY CARE,5505,Payments to Health Authorities,04/05/2016,3500017618,"12,341.00",Berinsfield Voluntary Day Centre
http://statistics.data.gov.uk/id/local-authority/38,Oxfordshire County Council,OPPB CONTCARE DEL HE,5691,,12/05/2016,3110093810,"1,056.21",Redacted Personal Data
http://statistics.data.gov.uk/id/local-authority/38,Oxfordshire County Council,PD COMM SUPP DIDCOT,5899,Adult Social Care - Direct Payments,18/05/2016,3110095832,"3,428.00",Redacted Personal Data
http://statistics.data.gov.uk/id/local-authority/38,Oxfordshire County Council,CSB - ABINGDON,5899,Adult Social Care - Direct Payments,18/05/2016,3110095839,992,Redacted Personal Data
http://statistics.data.gov.uk/id/local-authority/38,Oxfordshire County Council,CAP CHRGES-PRIM SCHS,8102,Payments to main contractor,10/05/2016,2200159624,870.18,Bicester Learning Academy
http://statistics.data.gov.uk/id/local-authority/38,Oxfordshire County Council,HN IN SEC SCHOOLS,5537,Payments to Other Establishments,19/05/2016,3110096414,"4,114.00",Bicester Learning Academy
http://statistics.data.gov.uk/id/local-authority/38,Oxfordshire County Council,SEN DELEGATION,5537,Payments to Other Establishments,24/05/2016,3110097510,"12,071.16",Bicester Learning Academy
http://statistics.data.gov.uk/id/local-authority/38,Oxfordshire County Council,CHC - CARE HOME PLAC,5689,,03/05/2016,2200155308,"3,225.89",Bicester PA and Care LLP
http://statistics.data.gov.uk/id/local-authority/38,Oxfordshire County Council,CLOSED LANDFILL,4861,Hired and Contracted Services,01/05/2016,2200160981,"1,620.00",Biomarsh Environmental Ltd
http://statistics.data.gov.uk/id/local-authority/38,Oxfordshire County Council,CLOSED LANDFILL,4861,Hired and Contracted Services,03/05/2016,2200160769,"2,673.00",Biomarsh Environmental Ltd
http://statistics.data.gov.uk/id/local-authority/38,Oxfordshire County Council,CAP CHRGES-PRIM SCHS,8510,Other expenses,23/05/2016,2200164831,"21,769.17",Birmingham Roman Catholic Diocesan
http://statistics.data.gov.uk/id/local-authority/38,Oxfordshire County Council,SEN TRANSPORT,5227,Other Transport Arrangements,25/05/2016,3110098361,530.85,Black and White Cars T/A Banbury Ta
http://statistics.data.gov.uk/id/local-authority/38,Oxfordshire County Council,MEADOWBROOK TRANSPT,4330,Transport to School Activities,27/05/2016,3110099276,580,Black and White Cars T/A Banbury Ta
http://statistics.data.gov.uk/id/local-authority/38,Oxfordshire County Council,SEN TRANSPORT,5227,Other Transport Arrangements,25/05/2016,3110098350,600,Black and White Cars T/A Banbury Ta
http://statistics.data.gov.uk/id/local-authority/38,Oxfordshire County Council,SEN TRANSPORT,5227,Other Transport Arrangements,25/05/2016,3110098354,616,Black and White Cars T/A Banbury Ta
http://statistics.data.gov.uk/id/local-authority/38,Oxfordshire County Council,SEN TRANSPORT,4330,Transport to School Activities,25/05/2016,3110098357,666.67,Black and White Cars T/A Banbury Ta
http://statistics.data.gov.uk/id/local-authority/38,Oxfordshire County Council,SEN TRANSPORT,5227,Other Transport Arrangements,25/05/2016,3110098364,720,Black and White Cars T/A Banbury Ta
http://statistics.data.gov.uk/id/local-authority/38,Oxfordshire County Council,SEN TRANSPORT,5227,Other Transport Arrangements,25/05/2016,3110098359,810,Black and White Cars T/A Banbury Ta
http://statistics.data.gov.uk/id/local-authority/38,Oxfordshire County Council,SEN TRANSPORT,5227,Other Transport Arrangements,25/05/2016,3110098356,840,Black and White Cars T/A Banbury Ta
http://statistics.data.gov.uk/id/local-authority/38,Oxfordshire County Council,SEN TRANSPORT,5227,Other Transport Arrangements,25/05/2016,3110098348,900,Black and White Cars T/A Banbury Ta
http://statistics.data.gov.uk/id/local-authority/38,Oxfordshire County Council,MEADOWBROOK TRANSPT,4330,Transport to School Activities,25/05/2016,3110098351,"1,285.00",Black and White Cars T/A Banbury Ta
http://statistics.data.gov.uk/id/local-authority/38,Oxfordshire County Council,SEN TRANSPORT,4330,Transport to School Activities,25/05/2016,3110098355,"1,400.00",Black and White Cars T/A Banbury Ta
http://statistics.data.gov.uk/id/local-authority/38,Oxfordshire County Council,SEN TRANSPORT,4330,Transport to School Activities,25/05/2016,3110098363,"1,440.00",Black and White Cars T/A Banbury Ta
http://statistics.data.gov.uk/id/local-authority/38,Oxfordshire County Council,LD CLIENTS NORTH,5227,Other Transport Arrangements,09/05/2016,3110091950,"1,508.00",Black and White Cars T/A Banbury Ta
http://statistics.data.gov.uk/id/local-authority/38,Oxfordshire County Council,LD CLIENTS NORTH,5227,Other Transport Arrangements,24/05/2016,3110097466,"1,508.00",Black and White Cars T/A Banbury Ta
http://statistics.data.gov.uk/id/local-authority/38,Oxfordshire County Council,SEN TRANSPORT,4330,Transport to School Activities,25/05/2016,3110098349,"1,650.00",Black and White Cars T/A Banbury Ta
http://statistics.data.gov.uk/id/local-authority/38,Oxfordshire County Council,TRANSPORT COSTS,4330,Transport to School Activities,23/05/2016,3110097296,"1,666.00",Black and White Cars T/A Banbury Ta
http://statistics.data.gov.uk/id/local-authority/38,Oxfordshire County Council,SEN TRANSPORT,4330,Transport to School Activities,25/05/2016,3110098353,"1,750.00",Black and White Cars T/A Banbury Ta
http://statistics.data.gov.uk/id/local-authority/38,Oxfordshire County Council,SEN TRANSPORT,4330,Transport to School Activities,25/05/2016,3110098360,"1,774.35",Black and White Cars T/A Banbury Ta
http://statistics.data.gov.uk/id/local-authority/38,Oxfordshire County Council,POST 16 SEN,4330,Transport to School Activities,25/05/2016,3110098346,"1,830.00",Black and White Cars T/A Banbury Ta
http://statistics.data.gov.uk/id/local-authority/38,Oxfordshire County Council,SEN TRANSPORT,4330,Transport to School Activities,25/05/2016,3110098362,"1,872.00",Black and White Cars T/A Banbury Ta
http://statistics.data.gov.uk/id/local-authority/38,Oxfordshire County Council,SEN TRANSPORT,4330,Transport to School Activities,25/05/2016,3110098365,"2,119.50",Black and White Cars T/A Banbury Ta
http://statistics.data.gov.uk/id/local-authority/38,Oxfordshire County Council,RESPITE,4330,Transport to School Activities,27/05/2016,3110099275,"2,618.00",Black and White Cars T/A Banbury Ta
http://statistics.data.gov.uk/id/local-authority/38,Oxfordshire County Council,LOOKED AFTER NORTH,4314,"Other Trans Contract Costs (CRB, Car Sea",25/05/2016,3110098345,"2,640.00",Black and White Cars T/A Banbury Ta
http://statistics.data.gov.uk/id/local-authority/38,Oxfordshire County Council,SEN TRANSPORT,4330,Transport to School Activities,25/05/2016,3110098347,"2,700.00",Black and White Cars T/A Banbury Ta
http://statistics.data.gov.uk/id/local-authority/38,Oxfordshire County Council,MEADOWBROOK TRANSPT,4330,Transport to School Activities,25/05/2016,3110098344,"2,940.00",Black and White Cars T/A Banbury Ta
http://statistics.data.gov.uk/id/local-authority/38,Oxfordshire County Council,SEN TRANSPORT,4330,Transport to School Activities,25/05/2016,3110098358,"3,240.00",Black and White Cars T/A Banbury Ta
http://statistics.data.gov.uk/id/local-authority/38,Oxfordshire County Council,SEN DELEGATION,5537,Payments to Other Establishments,09/05/2016,3110092015,"5,920.65",Blackbird Academy Trust
http://statistics.data.gov.uk/id/local-authority/38,Oxfordshire County Council,SEN DELEGATION,5537,Payments to Other Establishments,09/05/2016,3110092021,"17,566.40",Blackbird Academy Trust
http://statistics.data.gov.uk/id/local-authority/38,Oxfordshire County Council,SEN DELEGATION,5537,Payments to Other Establishments,09/05/2016,3110092033,"28,035.16",Blackbird Academy Trust
http://statistics.data.gov.uk/id/local-authority/38,Oxfordshire County Council,CARE HOME SPOT VALE,5686,,12/05/2016,3110093721,"2,856.43",Blackwood House
http://statistics.data.gov.uk/id/local-authority/38,Oxfordshire County Council,,1162,VAT - Input Adjustment,13/05/2016,3110093952,"2,912.86",Blake Morgan LLP
http://statistics.data.gov.uk/id/local-authority/38,Oxfordshire County Council,SEN DELEGATION,5500,Payments to Other Local Authorities,12/05/2016,2200160495,"2,850.00",Bledington School
http://statistics.data.gov.uk/id/local-authority/38,Oxfordshire County Council,HN IN SEC SCHOOLS,5537,Payments to Other Establishments,19/05/2016,3110096433,"2,530.00",Blessed George Napier C School
http://statistics.data.gov.uk/id/local-authority/38,Oxfordshire County Council,COMMUNICATIONS,2040,Agency Staff,09/05/2016,2200159256,"4,180.00",Blue Skies Services Ltd
http://statistics.data.gov.uk/id/local-authority/38,Oxfordshire County Council,OPPB CONTCARE DEL HE,5691,,12/05/2016,3110093805,"1,125.00",Bluebird Care
http://statistics.data.gov.uk/id/local-authority/38,Oxfordshire County Council,OPPB CONTCARE H SUPP,5691,,23/05/2016,3110097427,"2,341.00",Bluebird Care
http://statistics.data.gov.uk/id/local-authority/38,Oxfordshire County Council,OPPB FAST TRACK,5691,,10/05/2016,3110092072,"5,415.00",Bluebird Care
http://statistics.data.gov.uk/id/local-authority/38,Oxfordshire County Council,OPPB CONTCARE H SUPP,5691,,23/05/2016,3110097441,973.7,Bluebird Care (South Oxfordshire)
http://statistics.data.gov.uk/id/local-authority/38,Oxfordshire County Council,OPPB FAST TRACK,5691,,19/05/2016,3110096630,"1,193.60",Bluebird Care (South Oxfordshire)
http://statistics.data.gov.uk/id/local-authority/38,Oxfordshire County Council,OPPB FAST TRACK,5691,,19/05/2016,3110096631,"1,668.56",Bluebird Care (South Oxfordshire)
http://statistics.data.gov.uk/id/local-authority/38,Oxfordshire County Council,OPPB CONTCARE H SUPP,5691,,19/05/2016,3110096648,"1,947.40",Bluebird Care (South Oxfordshire)
http://statistics.data.gov.uk/id/local-authority/38,Oxfordshire County Council,OPPB CONTCARE H SUPP,5691,,23/05/2016,3110097422,"2,027.40",Bluebird Care (South Oxfordshire)
http://statistics.data.gov.uk/id/local-authority/38,Oxfordshire County Council,OPPB CONTCARE H SUPP,5691,,10/05/2016,3110092038,"2,040.65",Bluebird Care (South Oxfordshire)
http://statistics.data.gov.uk/id/local-authority/38,Oxfordshire County Council,PDPB CONTCARE H SUPP,5691,,10/05/2016,3110092056,"2,298.98",Bluebird Care Oxford (Bayford New
http://statistics.data.gov.uk/id/local-authority/38,Oxfordshire County Council,PDPB CONTCARE H SUPP,5691,,23/05/2016,3110097424,"2,790.52",Bluebird Care Oxford (Bayford New
http://statistics.data.gov.uk/id/local-authority/38,Oxfordshire County Council,MAINSTREAM-SECONDARY,4330,Transport to School Activities,11/05/2016,3110093092,"2,581.05",Blunsdons Coach Travel
http://statistics.data.gov.uk/id/local-authority/38,Oxfordshire County Council,MAINSTREAM-SECONDARY,4330,Transport to School Activities,11/05/2016,3110093094,"2,699.70",Blunsdons Coach Travel
http://statistics.data.gov.uk/id/local-authority/38,Oxfordshire County Council,LEGAL BUDGET,5251,Legal Costs,19/05/2016,2200163564,720,Blythe Liggines Solicitors
http://statistics.data.gov.uk/id/local-authority/38,Oxfordshire County Council,OPERATIONS,4407,Equipment,03/05/2016,2200154272,542.08,Boc Ltd
http://statistics.data.gov.uk/id/local-authority/38,Oxfordshire County Council,LAC PUPIL PREMIUM,5380,"Author, Speaker and Lecturer Fees",05/05/2016,2200155181,"19,376.87",Booktrust
http://statistics.data.gov.uk/id/local-authority/38,Oxfordshire County Council,HARM REDUC SERVICES,4934,,05/05/2016,3110093197,621.6,Boots the Chemist
http://statistics.data.gov.uk/id/local-authority/38,Oxfordshire County Council,CONTRACEPTION,4934,,07/05/2016,3110092199,962.4,Boots the Chemist
http://statistics.data.gov.uk/id/local-authority/38,Oxfordshire County Council,GP + PHARMACY SERVS,4934,,06/05/2016,3110092123,"1,288.00",Boswells of Oxford Pharmacy
http://statistics.data.gov.uk/id/local-authority/38,Oxfordshire County Council,NHS HEALTHCHECK PROG,4933,,09/05/2016,3110092861,536,Botley Medical Centre
http://statistics.data.gov.uk/id/local-authority/38,Oxfordshire County Council,NHS HEALTHCHECK PROG,4933,,09/05/2016,3110093214,930,Botley Medical Centre
http://statistics.data.gov.uk/id/local-authority/38,Oxfordshire County Council,NHS HEALTHCHECK PROG,4933,,09/05/2016,3110092883,"1,437.00",Botley Medical Centre
http://statistics.data.gov.uk/id/local-authority/38,Oxfordshire County Council,ICT Operations & Maintenance,4495,IT Software,18/05/2016,2200162471,"6,600.00",Bottomline Technologies Ltd
http://statistics.data.gov.uk/id/local-authority/38,Oxfordshire County Council,MEMBERS SERVICES,3103,Other Training Courses and Qualification,09/05/2016,2200156903,765,Bournemouth Convention Bureau Ltd
http://statistics.data.gov.uk/id/local-authority/38,Oxfordshire County Council,ASC & CS,3942,Hire of Accommodation and Facilities,17/05/2016,2200163034,"3,000.00",BOURNEMOUTH UNIVERSITY
http://statistics.data.gov.uk/id/local-authority/38,Oxfordshire County Council,Lib ICT Supprt&Maint,5039,ITC Services,26/05/2016,2200166701,700,BPH Data Ltd
http://statistics.data.gov.uk/id/local-authority/38,Oxfordshire County Council,LD CLIENTS CITY,5686,,12/05/2016,3110093609,"2,956.20",Bradbury House Organisation
http://statistics.data.gov.uk/id/local-authority/38,Oxfordshire County Council,PD COMM SUPP - CITY,5899,Adult Social Care - Direct Payments,18/05/2016,3110095822,"3,160.00",Redacted Personal Data
http://statistics.data.gov.uk/id/local-authority/38,Oxfordshire County Council,OPPB CONTCARE RNCC,5687,,12/05/2016,3110093672,"31,814.99",Bridge House
http://statistics.data.gov.uk/id/local-authority/38,Oxfordshire County Council,CC NH SPOT OVER 65,5687,,12/05/2016,3110093737,"17,757.14",BRIDGE HOUSE NURSING HOME
http://statistics.data.gov.uk/id/local-authority/38,Oxfordshire County Council,CSB - DIDCOT,5689,,04/05/2016,3110091392,521.34,Bridges Home Care Ltd
http://statistics.data.gov.uk/id/local-authority/38,Oxfordshire County Council,CSB - DIDCOT,5689,,04/05/2016,3110091385,580.71,Bridges Home Care Ltd
http://statistics.data.gov.uk/id/local-authority/38,Oxfordshire County Council,LD CLIENTS SOUTH,5689,,04/05/2016,3110091396,612.34,Bridges Home Care Ltd
http://statistics.data.gov.uk/id/local-authority/38,Oxfordshire County Council,CSB - DIDCOT,5689,,04/05/2016,3110091382,651.41,Bridges Home Care Ltd
http://statistics.data.gov.uk/id/local-authority/38,Oxfordshire County Council,CSB - DIDCOT,5689,,04/05/2016,3110091387,804.1,Bridges Home Care Ltd
http://statistics.data.gov.uk/id/local-authority/38,Oxfordshire County Council,CSB - DIDCOT,5689,,04/05/2016,3110091388,903.14,Bridges Home Care Ltd
http://statistics.data.gov.uk/id/local-authority/38,Oxfordshire County Council,CSB - DIDCOT,5689,,04/05/2016,3110091395,944.4,Bridges Home Care Ltd
http://statistics.data.gov.uk/id/local-authority/38,Oxfordshire County Council,CSB - DIDCOT,5689,,04/05/2016,3110091381,"1,128.69",Bridges Home Care Ltd
http://statistics.data.gov.uk/id/local-authority/38,Oxfordshire County Council,CSB - DIDCOT,5689,,04/05/2016,3110091384,"1,204.53",Bridges Home Care Ltd
http://statistics.data.gov.uk/id/local-authority/38,Oxfordshire County Council,CSB - DIDCOT,5689,,04/05/2016,3110091386,"1,592.81",Bridges Home Care Ltd
http://statistics.data.gov.uk/id/local-authority/38,Oxfordshire County Council,CSB - DIDCOT,5689,,04/05/2016,3110091389,"1,644.09",Bridges Home Care Ltd
http://statistics.data.gov.uk/id/local-authority/38,Oxfordshire County Council,CSB - DIDCOT,5689,,04/05/2016,3110091390,"2,082.16",Bridges Home Care Ltd
http://statistics.data.gov.uk/id/local-authority/38,Oxfordshire County Council,CSB - DIDCOT,5689,,04/05/2016,3110091394,"2,206.74",Bridges Home Care Ltd
http://statistics.data.gov.uk/id/local-authority/38,Oxfordshire County Council,PD COMM SUPP DIDCOT,5689,,04/05/2016,3110091397,"2,363.19",Bridges Home Care Ltd
http://statistics.data.gov.uk/id/local-authority/38,Oxfordshire County Council,ContrO ASC Payments Control Account,5689,,19/05/2016,3110096465,"15,300.00",Bridges Home Care Ltd
http://statistics.data.gov.uk/id/local-authority/38,Oxfordshire County Council,ContrO ASC Payments Control Account,5689,,27/05/2016,3110099303,"49,775.00",Bridges Home Care Ltd
http://statistics.data.gov.uk/id/local-authority/38,Oxfordshire County Council,LD CLIENTS NORTH,5899,Adult Social Care - Direct Payments,18/05/2016,3110095073,"10,452.48",Redacted Personal Data
http://statistics.data.gov.uk/id/local-authority/38,Oxfordshire County Council,LIBRARY COLLECTIONS,4539,"Books, DVDs and CDs",23/05/2016,2200165749,"1,176.10",BRIGHT BOOK SUPPLIES
http://statistics.data.gov.uk/id/local-authority/38,Oxfordshire County Council,PD COMM SUPP BANB,5689,,04/05/2016,3110090646,537.73,Bright Yellow Group Plc
http://statistics.data.gov.uk/id/local-authority/38,Oxfordshire County Council,CMPB WITNEY,5689,,04/05/2016,3110090626,551.56,Bright Yellow Group Plc
http://statistics.data.gov.uk/id/local-authority/38,Oxfordshire County Council,CSB - DIDCOT,5689,,04/05/2016,3110090616,662.49,Bright Yellow Group Plc
http://statistics.data.gov.uk/id/local-authority/38,Oxfordshire County Council,OPPB CONTCARE H SUPP,5689,,04/05/2016,3110090604,684.68,Bright Yellow Group Plc
http://statistics.data.gov.uk/id/local-authority/38,Oxfordshire County Council,CMPB WITNEY,5689,,04/05/2016,3110090640,688.88,Bright Yellow Group Plc
http://statistics.data.gov.uk/id/local-authority/38,Oxfordshire County Council,CMPB WITNEY,5689,,04/05/2016,3110090643,690.41,Bright Yellow Group Plc
http://statistics.data.gov.uk/id/local-authority/38,Oxfordshire County Council,CMPB WITNEY,5689,,04/05/2016,3110090630,703.8,Bright Yellow Group Plc
http://statistics.data.gov.uk/id/local-authority/38,Oxfordshire County Council,PD COMM SUPP BANB,5689,,04/05/2016,3110090648,807.08,Bright Yellow Group Plc
http://statistics.data.gov.uk/id/local-authority/38,Oxfordshire County Council,CMPB WITNEY,5689,,04/05/2016,3110090638,823.91,Bright Yellow Group Plc
http://statistics.data.gov.uk/id/local-authority/38,Oxfordshire County Council,PD COMM SUPP WITNEY,5689,,04/05/2016,3110090653,864.45,Bright Yellow Group Plc
http://statistics.data.gov.uk/id/local-authority/38,Oxfordshire County Council,CSB - DIDCOT,5689,,04/05/2016,3110090618,926.8,Bright Yellow Group Plc
http://statistics.data.gov.uk/id/local-authority/38,Oxfordshire County Council,CSB - DIDCOT,5689,,04/05/2016,3110090621,929.86,Bright Yellow Group Plc
http://statistics.data.gov.uk/id/local-authority/38,Oxfordshire County Council,CMPB WITNEY,5689,,04/05/2016,3110090629,938.27,Bright Yellow Group Plc
http://statistics.data.gov.uk/id/local-authority/38,Oxfordshire County Council,CMPB WITNEY,5689,,04/05/2016,3110090623,962.75,Bright Yellow Group Plc
http://statistics.data.gov.uk/id/local-authority/38,Oxfordshire County Council,CSB - BANBURY,5689,,04/05/2016,3110090610,"1,066.03",Bright Yellow Group Plc
http://statistics.data.gov.uk/id/local-authority/38,Oxfordshire County Council,CSB - BANBURY,5689,,04/05/2016,3110090613,"1,365.53",Bright Yellow Group Plc
http://statistics.data.gov.uk/id/local-authority/38,Oxfordshire County Council,CMPB WITNEY,5689,,04/05/2016,3110090628,"1,399.95",Bright Yellow Group Plc
http://statistics.data.gov.uk/id/local-authority/38,Oxfordshire County Council,CMPB WITNEY,5689,,04/05/2016,3110090639,"1,434.76",Bright Yellow Group Plc
http://statistics.data.gov.uk/id/local-authority/38,Oxfordshire County Council,CSB - BANBURY,5689,,04/05/2016,3110090608,"1,472.25",Bright Yellow Group Plc
http://statistics.data.gov.uk/id/local-authority/38,Oxfordshire County Council,CSB - DIDCOT,5689,,04/05/2016,3110090620,"1,548.36",Bright Yellow Group Plc
http://statistics.data.gov.uk/id/local-authority/38,Oxfordshire County Council,CSB - BANBURY,5689,,04/05/2016,3110090614,"1,570.93",Bright Yellow Group Plc
http://statistics.data.gov.uk/id/local-authority/38,Oxfordshire County Council,CSB - BANBURY,5689,,04/05/2016,3110090609,"1,890.32",Bright Yellow Group Plc
http://statistics.data.gov.uk/id/local-authority/38,Oxfordshire County Council,PD COMM SUPP BANB,5689,,04/05/2016,3110090647,"2,054.03",Bright Yellow Group Plc
http://statistics.data.gov.uk/id/local-authority/38,Oxfordshire County Council,CSB - DIDCOT,5689,,04/05/2016,3110090617,"2,710.78",Bright Yellow Group Plc
http://statistics.data.gov.uk/id/local-authority/38,Oxfordshire County Council,CSB - BANBURY,5689,,04/05/2016,3110090607,"3,260.43",Bright Yellow Group Plc
http://statistics.data.gov.uk/id/local-authority/38,Oxfordshire County Council,FOODWISE PROJECT,4835,Management Consultant Fees,04/05/2016,2200160773,"40,763.00",Brighton Paper Round
http://statistics.data.gov.uk/id/local-authority/38,Oxfordshire County Council,FLEET MAINTENANCE,4201,Purchase of Vehicle,03/05/2016,2200153464,"23,493.67",Bristol Street Motors
http://statistics.data.gov.uk/id/local-authority/38,Oxfordshire County Council,FLEET MAINTENANCE,4201,Purchase of Vehicle,03/05/2016,2200153466,"23,493.67",Bristol Street Motors
http://statistics.data.gov.uk/id/local-authority/38,Oxfordshire County Council,ON ST PARK OXFD SPA,5190,Subscriptions,10/05/2016,2200157790,866,BRITISH PARKING ASSOCIATION
http://statistics.data.gov.uk/id/local-authority/38,Oxfordshire County Council,COUNTY PRINT FINSHRS,4861,Hired and Contracted Services,03/05/2016,2200153966,"1,295.00",British Printing Industries Fed
http://statistics.data.gov.uk/id/local-authority/38,Oxfordshire County Council,TRANSPORT,4330,Transport to School Activities,09/05/2016,3110091870,"10,428.62",British Red Cross Society
http://statistics.data.gov.uk/id/local-authority/38,Oxfordshire County Council,TRANSPORT,4330,Transport to School Activities,09/05/2016,3110091872,"80,653.50",British Red Cross Society
http://statistics.data.gov.uk/id/local-authority/38,Oxfordshire County Council,SEN DELEGATION,5537,Payments to Other Establishments,24/05/2016,3110097506,"14,010.74",Brize Norton Primary School
http://statistics.data.gov.uk/id/local-authority/38,Oxfordshire County Council,RESIDENTIAL TREATMEN,5686,,01/05/2016,2200158332,777.81,BROADREACH HOUSE
http://statistics.data.gov.uk/id/local-authority/38,Oxfordshire County Council,NHS HEALTHCHECK PROG,4933,,09/05/2016,3110093256,660,Broadshires Health Centre
http://statistics.data.gov.uk/id/local-authority/38,Oxfordshire County Council,NHS HEALTHCHECK PROG,4933,,09/05/2016,3110092906,"1,404.00",Broadshires Health Centre
http://statistics.data.gov.uk/id/local-authority/38,Oxfordshire County Council,RESIDENTIAL TREATMEN,5686,,01/05/2016,2200158333,"2,447.20",BROADWAY LODGE LTD
http://statistics.data.gov.uk/id/local-authority/38,Oxfordshire County Council,LEAVING CARE SOUTH,5665,B*Fostering Project Care Fee,09/05/2016,3500017668,570,Redacted Personal Data
http://statistics.data.gov.uk/id/local-authority/38,Oxfordshire County Council,LD EXT RESP CONTRACT,5544,B*Fostering - Temp/Respite,12/05/2016,3110093590,"1,993.21",Bromford Support
http://statistics.data.gov.uk/id/local-authority/38,Oxfordshire County Council,EXTERNAL DAY CARE,5505,Payments to Health Authorities,05/05/2016,3500017647,"7,120.00",Bromsgrove Day Centre
http://statistics.data.gov.uk/id/local-authority/38,Oxfordshire County Council,LD CLIENTS SOUTH,5688,,12/05/2016,3110093453,"3,809.90",Brook House Residential
http://statistics.data.gov.uk/id/local-authority/38,Oxfordshire County Council,LD CLIENTS SOUTH,5686,,12/05/2016,3110093605,"16,000.39",Brook House Residential
http://statistics.data.gov.uk/id/local-authority/38,Oxfordshire County Council,MH SPOT FUNDING,5686,,12/05/2016,3110093572,"29,906.71",Brookdale Care
http://statistics.data.gov.uk/id/local-authority/38,Oxfordshire County Council,CARE HOME SPOT SOUTH,5686,,12/05/2016,3110093655,"2,122.70",Broome End Ltd
http://statistics.data.gov.uk/id/local-authority/38,Oxfordshire County Council,,1162,VAT - Input Adjustment,18/05/2016,3110096402,622.97,Browne Jacobson LLP
http://statistics.data.gov.uk/id/local-authority/38,Oxfordshire County Council,SEN TRANSPORT,4330,Transport to School Activities,09/05/2016,3110091969,"2,800.00",Browns Taxis Ltd
http://statistics.data.gov.uk/id/local-authority/38,Oxfordshire County Council,OPPB CONTCARE H SUPP,5899,Adult Social Care - Direct Payments,18/05/2016,3110095198,"5,932.96",Redacted Personal Data
http://statistics.data.gov.uk/id/local-authority/38,Oxfordshire County Council,LD CLIENTS CITY,5686,,12/05/2016,3110093589,"5,582.21",Bryn-y-Wawr
http://statistics.data.gov.uk/id/local-authority/38,Oxfordshire County Council,COMMUNICATIONS,5079,Telephone - Calls,05/05/2016,2200155598,"4,829.10",BT Payment Services Ltd
http://statistics.data.gov.uk/id/local-authority/38,Oxfordshire County Council,ICT Operations & Maintenance,5083,HPSN dataline rentals,16/05/2016,2200162623,"87,204.60",BT Plc (One Bill)
http://statistics.data.gov.uk/id/local-authority/38,Oxfordshire County Council,ICT Operations & Maintenance,5039,ITC Services,11/05/2016,2200159092,950,BTI Computer Systems (UK) Ltd
http://statistics.data.gov.uk/id/local-authority/38,Oxfordshire County Council,LD CLIENTS SOUTH,5690,,12/05/2016,3110093360,"2,023.64",Buckinghamshire County Council
http://statistics.data.gov.uk/id/local-authority/38,Oxfordshire County Council,P&S OPERATIONAL REV,4861,Hired and Contracted Services,20/05/2016,2200164848,"3,000.00",Buckinghamshire County Council
http://statistics.data.gov.uk/id/local-authority/38,Oxfordshire County Council,SM MISCELLANEOUS,6100,Interest on loans etc,25/05/2016,2200166468,"44,056.63",Buckinghamshire County Council
http://statistics.data.gov.uk/id/local-authority/38,Oxfordshire County Council,STI TESTING+TREATMEN,4940,Other Services,24/05/2016,3110097865,"4,904.02",Buckinghamshire Healthcare NHS Trus
http://statistics.data.gov.uk/id/local-authority/38,Oxfordshire County Council,OPPB OTHER DD FINES,5394,Other Expenses,23/05/2016,2200164904,"1,920.00",BUCKINGHAMSHIRE HOSPITALS NHS TRUST
http://statistics.data.gov.uk/id/local-authority/38,Oxfordshire County Council,RD COND SURVEYS/INV,4861,Hired and Contracted Services,01/05/2016,2200155110,"11,770.00",BUILDING SOFTWARE LTD
http://statistics.data.gov.uk/id/local-authority/38,Oxfordshire County Council,CARE HOME SPOT CITY,5686,,12/05/2016,3110093293,"1,984.49",BUPA CARE SERVICES
http://statistics.data.gov.uk/id/local-authority/38,Oxfordshire County Council,HN IN SEC SCHOOLS,5537,Payments to Other Establishments,19/05/2016,3110096415,"3,270.00",Burford Academy
http://statistics.data.gov.uk/id/local-authority/38,Oxfordshire County Council,NHS HEALTHCHECK PROG,4933,,09/05/2016,3110093238,510,Burford Surgery
http://statistics.data.gov.uk/id/local-authority/38,Oxfordshire County Council,NHS HEALTHCHECK PROG,4933,,09/05/2016,3110092874,648,Burford Surgery
http://statistics.data.gov.uk/id/local-authority/38,Oxfordshire County Council,LD CLIENTS NORTH,5686,,12/05/2016,3110093709,"26,571.47",Burgess Care Ltd.
http://statistics.data.gov.uk/id/local-authority/38,Oxfordshire County Council,CARE HOME SPOT CITY,5687,,12/05/2016,3110093703,"2,457.86",Burnham House Care Home
http://statistics.data.gov.uk/id/local-authority/38,Oxfordshire County Council,VEHICLE MAINTENANCE,4270,HTM / Other Vehicle - Hire Charges,24/05/2016,2200165758,"28,681.00",BURNT TREE GROUP LTD
http://statistics.data.gov.uk/id/local-authority/38,Oxfordshire County Council,NHS HEALTHCHECK PROG,4933,,09/05/2016,3110093191,615,Bury Knowle Health Centre
http://statistics.data.gov.uk/id/local-authority/38,Oxfordshire County Council,NHS HEALTHCHECK PROG,4933,,09/05/2016,3110092849,"1,650.00",Bury Knowle Health Centre
http://statistics.data.gov.uk/id/local-authority/38,Oxfordshire County Council,ROW MAINT,4861,Hired and Contracted Services,06/05/2016,2200156007,"1,605.00",Buryhook Countryside Management
http://statistics.data.gov.uk/id/local-authority/38,Oxfordshire County Council,COMM DRAWDOWN FUNDNG,8350,Furn. & Equip. costing 6000 or more,24/05/2016,2200167947,"13,707.68",Bus Shelters Ltd.
http://statistics.data.gov.uk/id/local-authority/38,Oxfordshire County Council,FOSTERING MAIN,5542,B*Payments to carers,04/05/2016,3110089443,654.32,Redacted Personal Data
http://statistics.data.gov.uk/id/local-authority/38,Oxfordshire County Council,FOSTERING MAIN,5542,B*Payments to carers,11/05/2016,3110092550,654.32,Redacted Personal Data
http://statistics.data.gov.uk/id/local-authority/38,Oxfordshire County Council,FOSTERING MAIN,5542,B*Payments to carers,18/05/2016,3110094562,654.32,Redacted Personal Data
http://statistics.data.gov.uk/id/local-authority/38,Oxfordshire County Council,FOSTERING MAIN,5542,B*Payments to carers,25/05/2016,3110097661,654.32,Redacted Personal Data
http://statistics.data.gov.uk/id/local-authority/38,Oxfordshire County Council,FOSTERING MAIN,5549,B*Fostering Allowance - Regulation 38,04/05/2016,3110089490,787.64,Redacted Personal Data
http://statistics.data.gov.uk/id/local-authority/38,Oxfordshire County Council,FOSTERING MAIN,5549,B*Fostering Allowance - Regulation 38,11/05/2016,3110092573,787.64,Redacted Personal Data
http://statistics.data.gov.uk/id/local-authority/38,Oxfordshire County Council,FOSTERING MAIN,5549,B*Fostering Allowance - Regulation 38,18/05/2016,3110094608,787.64,Redacted Personal Data
http://statistics.data.gov.uk/id/local-authority/38,Oxfordshire County Council,TRANSPORT COSTS,4330,Transport to School Activities,25/05/2016,3110097682,892.52,Redacted Personal Data
http://statistics.data.gov.uk/id/local-authority/38,Oxfordshire County Council,FOSTERING MAIN,5542,B*Payments to carers,04/05/2016,3110089387,701.79,Redacted Personal Data
http://statistics.data.gov.uk/id/local-authority/38,Oxfordshire County Council,FOSTERING MAIN,5542,B*Payments to carers,11/05/2016,3110092483,701.79,Redacted Personal Data
http://statistics.data.gov.uk/id/local-authority/38,Oxfordshire County Council,FOSTERING MAIN,5542,B*Payments to carers,18/05/2016,3110094496,701.79,Redacted Personal Data
http://statistics.data.gov.uk/id/local-authority/38,Oxfordshire County Council,FOSTERING MAIN,5542,B*Payments to carers,25/05/2016,3110097629,701.79,Redacted Personal Data
http://statistics.data.gov.uk/id/local-authority/38,Oxfordshire County Council,FOSTERING MAIN,5542,B*Payments to carers,04/05/2016,3110089397,922.82,Redacted Personal Data
http://statistics.data.gov.uk/id/local-authority/38,Oxfordshire County Council,FOSTERING MAIN,5542,B*Payments to carers,11/05/2016,3110092497,922.82,Redacted Personal Data
http://statistics.data.gov.uk/id/local-authority/38,Oxfordshire County Council,FOSTERING MAIN,5542,B*Payments to carers,18/05/2016,3110094509,922.82,Redacted Personal Data
http://statistics.data.gov.uk/id/local-authority/38,Oxfordshire County Council,FOSTERING MAIN,5542,B*Payments to carers,25/05/2016,3110097635,922.82,Redacted Personal Data
http://statistics.data.gov.uk/id/local-authority/38,Oxfordshire County Council,LEGAL SERVICES,5251,Legal Costs,25/05/2016,2200166168,"1,000.00",C MCDEVITT
http://statistics.data.gov.uk/id/local-authority/38,Oxfordshire County Council,SPECIAL GUARDIANSHIP,5664,B*Holiday Allowance,03/05/2016,3110089456,568.56,Redacted Personal Data
http://statistics.data.gov.uk/id/local-authority/38,Oxfordshire County Council,SPECIAL GUARDIANSHIP,5664,B*Holiday Allowance,11/05/2016,3110092393,568.56,Redacted Personal Data
http://statistics.data.gov.uk/id/local-authority/38,Oxfordshire County Council,SPECIAL GUARDIANSHIP,5664,B*Holiday Allowance,18/05/2016,3110094529,568.56,Redacted Personal Data
http://statistics.data.gov.uk/id/local-authority/38,Oxfordshire County Council,SPECIAL GUARDIANSHIP,5664,B*Holiday Allowance,25/05/2016,3110097916,568.56,Redacted Personal Data
http://statistics.data.gov.uk/id/local-authority/38,Oxfordshire County Council,SEN TRANSPORT,5227,Other Transport Arrangements,24/05/2016,3110097470,540,C S Comley
http://statistics.data.gov.uk/id/local-authority/38,Oxfordshire County Council,SEN TRANSPORT,4330,Transport to School Activities,16/05/2016,3110094099,"1,260.00",C S Comley
http://statistics.data.gov.uk/id/local-authority/38,Oxfordshire County Council,SEN TRANSPORT,4330,Transport to School Activities,24/05/2016,3110097467,"1,325.80",C S Comley
http://statistics.data.gov.uk/id/local-authority/38,Oxfordshire County Council,SEN TRANSPORT,4330,Transport to School Activities,24/05/2016,3110097469,"1,365.00",C S Comley
http://statistics.data.gov.uk/id/local-authority/38,Oxfordshire County Council,POST 16 SEN,4330,Transport to School Activities,24/05/2016,3110097471,"1,484.00",C S Comley
http://statistics.data.gov.uk/id/local-authority/38,Oxfordshire County Council,TRANSPORT COSTS,5227,Other Transport Arrangements,09/05/2016,3110091964,560,C V OSullivan
http://statistics.data.gov.uk/id/local-authority/38,Oxfordshire County Council,POST 16 SEN,5227,Other Transport Arrangements,11/05/2016,3110093177,560,C V OSullivan
http://statistics.data.gov.uk/id/local-authority/38,Oxfordshire County Council,SEN TRANSPORT,5227,Other Transport Arrangements,11/05/2016,3110093175,687.96,C V OSullivan
http://statistics.data.gov.uk/id/local-authority/38,Oxfordshire County Council,SEN TRANSPORT,4330,Transport to School Activities,11/05/2016,3110093180,882,C V OSullivan
http://statistics.data.gov.uk/id/local-authority/38,Oxfordshire County Council,POST 16 SEN,4330,Transport to School Activities,11/05/2016,3110093179,"1,235.00",C V OSullivan
http://statistics.data.gov.uk/id/local-authority/38,Oxfordshire County Council,POST 16 SEN,4330,Transport to School Activities,11/05/2016,3110093176,"1,540.00",C V OSullivan
http://statistics.data.gov.uk/id/local-authority/38,Oxfordshire County Council,SEN TRANSPORT,4330,Transport to School Activities,11/05/2016,3110093174,"2,153.76",C V OSullivan
http://statistics.data.gov.uk/id/local-authority/38,Oxfordshire County Council,SEN TRANSPORT,5227,Other Transport Arrangements,11/05/2016,3110093057,556.64,C&M Management Services Ltd
http://statistics.data.gov.uk/id/local-authority/38,Oxfordshire County Council,SEN TRANSPORT,4330,Transport to School Activities,11/05/2016,3110093045,675,C&M Management Services Ltd
http://statistics.data.gov.uk/id/local-authority/38,Oxfordshire County Council,SEN TRANSPORT,4330,Transport to School Activities,11/05/2016,3110093047,713,C&M Management Services Ltd
http://statistics.data.gov.uk/id/local-authority/38,Oxfordshire County Council,SEN TRANSPORT,5227,Other Transport Arrangements,11/05/2016,3110093059,"1,185.00",C&M Management Services Ltd
http://statistics.data.gov.uk/id/local-authority/38,Oxfordshire County Council,SEN TRANSPORT,4330,Transport to School Activities,11/05/2016,3110093053,"1,199.24",C&M Management Services Ltd
http://statistics.data.gov.uk/id/local-authority/38,Oxfordshire County Council,SEN TRANSPORT,4330,Transport to School Activities,11/05/2016,3110093060,"1,512.56",C&M Management Services Ltd
http://statistics.data.gov.uk/id/local-authority/38,Oxfordshire County Council,SEN TRANSPORT,4330,Transport to School Activities,11/05/2016,3110093049,"1,557.50",C&M Management Services Ltd
http://statistics.data.gov.uk/id/local-authority/38,Oxfordshire County Council,SEN TRANSPORT,4330,Transport to School Activities,11/05/2016,3110093040,"1,792.00",C&M Management Services Ltd
http://statistics.data.gov.uk/id/local-authority/38,Oxfordshire County Council,SEN TRANSPORT,4330,Transport to School Activities,11/05/2016,3110093056,"1,828.26",C&M Management Services Ltd
http://statistics.data.gov.uk/id/local-authority/38,Oxfordshire County Council,SEN TRANSPORT,4330,Transport to School Activities,11/05/2016,3110093062,"1,915.34",C&M Management Services Ltd
http://statistics.data.gov.uk/id/local-authority/38,Oxfordshire County Council,SEN TRANSPORT,4330,Transport to School Activities,11/05/2016,3110093043,"2,176.00",C&M Management Services Ltd
http://statistics.data.gov.uk/id/local-authority/38,Oxfordshire County Council,POST 16 SEN,4330,Transport to School Activities,11/05/2016,3110093051,"2,190.00",C&M Management Services Ltd
http://statistics.data.gov.uk/id/local-authority/38,Oxfordshire County Council,SEN TRANSPORT,4330,Transport to School Activities,11/05/2016,3110093065,"2,210.46",C&M Management Services Ltd
http://statistics.data.gov.uk/id/local-authority/38,Oxfordshire County Council,LD CLIENTS CITY,5227,Other Transport Arrangements,13/05/2016,3110093962,"2,330.62",C&M Management Services Ltd
http://statistics.data.gov.uk/id/local-authority/38,Oxfordshire County Council,SEN TRANSPORT,4330,Transport to School Activities,11/05/2016,3110093052,"2,334.30",C&M Management Services Ltd
http://statistics.data.gov.uk/id/local-authority/38,Oxfordshire County Council,SEN TRANSPORT,4330,Transport to School Activities,11/05/2016,3110093058,"2,878.50",C&M Management Services Ltd
http://statistics.data.gov.uk/id/local-authority/38,Oxfordshire County Council,OPPB FAST TRACK,5691,,04/05/2016,3110091439,504,C3Care Ltd
http://statistics.data.gov.uk/id/local-authority/38,Oxfordshire County Council,OPPB CONTCARE DEL HE,5691,,04/05/2016,3110091449,504,C3Care Ltd
http://statistics.data.gov.uk/id/local-authority/38,Oxfordshire County Council,OPPB FAST TRACK,5691,,26/05/2016,3110099494,516.6,C3Care Ltd
http://statistics.data.gov.uk/id/local-authority/38,Oxfordshire County Council,OPPB FAST TRACK,5691,,26/05/2016,3110099524,516.6,C3Care Ltd
http://statistics.data.gov.uk/id/local-authority/38,Oxfordshire County Council,OPPB CONTCARE DEL HE,5691,,10/05/2016,3110092066,544,C3Care Ltd
http://statistics.data.gov.uk/id/local-authority/38,Oxfordshire County Council,OPPB FAST TRACK,5691,,04/05/2016,3110091450,616,C3Care Ltd
http://statistics.data.gov.uk/id/local-authority/38,Oxfordshire County Council,OPPB FAST TRACK,5691,,04/05/2016,3110091444,644,C3Care Ltd
http://statistics.data.gov.uk/id/local-authority/38,Oxfordshire County Council,OPPB FAST TRACK,5691,,10/05/2016,3110092065,644,C3Care Ltd
http://statistics.data.gov.uk/id/local-authority/38,Oxfordshire County Council,OPPB FAST TRACK,5691,,26/05/2016,3110099487,644,C3Care Ltd
http://statistics.data.gov.uk/id/local-authority/38,Oxfordshire County Council,OPPB FAST TRACK,5691,,26/05/2016,3110099521,644,C3Care Ltd
http://statistics.data.gov.uk/id/local-authority/38,Oxfordshire County Council,OPPB FAST TRACK,5691,,12/05/2016,3110093804,660,C3Care Ltd
http://statistics.data.gov.uk/id/local-authority/38,Oxfordshire County Council,OPPB FAST TRACK,5691,,04/05/2016,3110091447,687.05,C3Care Ltd
http://statistics.data.gov.uk/id/local-authority/38,Oxfordshire County Council,OPPB FAST TRACK,5691,,10/05/2016,3110092068,687.05,C3Care Ltd
http://statistics.data.gov.uk/id/local-authority/38,Oxfordshire County Council,OPPB FAST TRACK,5691,,26/05/2016,3110099485,687.05,C3Care Ltd
http://statistics.data.gov.uk/id/local-authority/38,Oxfordshire County Council,OPPB FAST TRACK,5691,,26/05/2016,3110099520,687.05,C3Care Ltd
http://statistics.data.gov.uk/id/local-authority/38,Oxfordshire County Council,OPPB FAST TRACK,5691,,12/05/2016,3110093803,690,C3Care Ltd
http://statistics.data.gov.uk/id/local-authority/38,Oxfordshire County Council,OPPB FAST TRACK,5691,,12/05/2016,3110093760,736.12,C3Care Ltd
http://statistics.data.gov.uk/id/local-authority/38,Oxfordshire County Council,OPPB FAST TRACK,5691,,04/05/2016,3110091446,764.8,C3Care Ltd
http://statistics.data.gov.uk/id/local-authority/38,Oxfordshire County Council,OPPB FAST TRACK,5691,,04/05/2016,3110091448,793.8,C3Care Ltd
http://statistics.data.gov.uk/id/local-authority/38,Oxfordshire County Council,OPPB FAST TRACK,5691,,04/05/2016,3110091441,840,C3Care Ltd
http://statistics.data.gov.uk/id/local-authority/38,Oxfordshire County Council,OPPB FAST TRACK,5691,,04/05/2016,3110091445,840,C3Care Ltd
http://statistics.data.gov.uk/id/local-authority/38,Oxfordshire County Council,OPPB FAST TRACK,5691,,10/05/2016,3110092060,840,C3Care Ltd
http://statistics.data.gov.uk/id/local-authority/38,Oxfordshire County Council,OPPB FAST TRACK,5691,,10/05/2016,3110092067,840,C3Care Ltd
http://statistics.data.gov.uk/id/local-authority/38,Oxfordshire County Council,OPPB FAST TRACK,5691,,26/05/2016,3110099493,840,C3Care Ltd
http://statistics.data.gov.uk/id/local-authority/38,Oxfordshire County Council,OPPB FAST TRACK,5691,,26/05/2016,3110099523,840,C3Care Ltd
http://statistics.data.gov.uk/id/local-authority/38,Oxfordshire County Council,OPPB FAST TRACK,5691,,12/05/2016,3110093797,846,C3Care Ltd
http://statistics.data.gov.uk/id/local-authority/38,Oxfordshire County Council,OPPB FAST TRACK,5691,,26/05/2016,3110099491,848,C3Care Ltd
http://statistics.data.gov.uk/id/local-authority/38,Oxfordshire County Council,OPPB CONTCARE H SUPP,5691,,19/05/2016,3110096636,882,C3Care Ltd
http://statistics.data.gov.uk/id/local-authority/38,Oxfordshire County Council,OPPB CONTCARE H SUPP,5691,,19/05/2016,3110096637,882,C3Care Ltd
http://statistics.data.gov.uk/id/local-authority/38,Oxfordshire County Council,OPPB CONTCARE H SUPP,5691,,19/05/2016,3110096609,952.7,C3Care Ltd
http://statistics.data.gov.uk/id/local-authority/38,Oxfordshire County Council,OPPB CONTCARE H SUPP,5691,,19/05/2016,3110096629,"1,020.75",C3Care Ltd
http://statistics.data.gov.uk/id/local-authority/38,Oxfordshire County Council,MANAGEMENT & ADMIN,4495,IT Software,05/05/2016,2200155640,"9,363.55",CACI LTD
http://statistics.data.gov.uk/id/local-authority/38,Oxfordshire County Council,ICT Operations & Maintenance,5039,ITC Services,06/05/2016,2200156207,505.4,CADLINE LTD
http://statistics.data.gov.uk/id/local-authority/38,Oxfordshire County Council,PLACEMENTS- RELEVANT,5785,Client Lodgings and Accommodation,10/05/2016,2200159348,"7,465.50",CALCOT SERVICES FOR CHILDREN
http://statistics.data.gov.uk/id/local-authority/38,Oxfordshire County Council,PD COMM SUPP DIDCOT,5899,Adult Social Care - Direct Payments,18/05/2016,3110095662,"1,152.00",Redacted Personal Data
http://statistics.data.gov.uk/id/local-authority/38,Oxfordshire County Council,LD CLIENTS NORTH,5686,,12/05/2016,3110093304,"15,329.68",Cambian Autism Services Ltd
http://statistics.data.gov.uk/id/local-authority/38,Oxfordshire County Council,LD CLIENTS SOUTH,5686,,12/05/2016,3110093299,"39,028.91",CAMBIAN LEARNING DISABILITIES LTD
http://statistics.data.gov.uk/id/local-authority/38,Oxfordshire County Council,LD CLIENTS SOUTH,5899,Adult Social Care - Direct Payments,18/05/2016,3110095774,736,Redacted Personal Data
http://statistics.data.gov.uk/id/local-authority/38,Oxfordshire County Council,LD CLIENTS NORTH,5688,,12/05/2016,3110093450,"3,758.44",Camphill Communities Thornbury
http://statistics.data.gov.uk/id/local-authority/38,Oxfordshire County Council,YP TREATMENT&SERVS,3100,Educational and Vocational Training,26/05/2016,3500017963,"28,333.33",CAN
http://statistics.data.gov.uk/id/local-authority/38,Oxfordshire County Council,COMM DRAWDOWN FUNDNG,8441,Miscellaneous Grants to others,09/05/2016,2200157667,"30,000.00",CANAL & RIVER TRUST
http://statistics.data.gov.uk/id/local-authority/38,Oxfordshire County Council,CENTRAL PRINTING,4719,Photocopying,04/05/2016,2200155020,"1,047.35",Canon (UK) Ltd
http://statistics.data.gov.uk/id/local-authority/38,Oxfordshire County Council,BRENT GYPSY & TRAV,3787,Premises Repairs,10/05/2016,2200159444,"2,263.86",Capital Heating Ltd / CH Maintenanc
http://statistics.data.gov.uk/id/local-authority/38,Oxfordshire County Council,PD COMM SUPP DIDCOT,5899,Adult Social Care - Direct Payments,18/05/2016,3110094999,"3,720.00",Redacted Personal Data
http://statistics.data.gov.uk/id/local-authority/38,Oxfordshire County Council,LD CLIENTS NORTH,5899,Adult Social Care - Direct Payments,18/05/2016,3110095447,916,Redacted Personal Data
http://statistics.data.gov.uk/id/local-authority/38,Oxfordshire County Council,OPPB FAST TRACK,5691,,12/05/2016,3110093771,642,CARE COMPASSION AND CONVERSATIONS
http://statistics.data.gov.uk/id/local-authority/38,Oxfordshire County Council,OPPB CONTCARE H SUPP,5691,,19/05/2016,3110096619,"2,180.00",CARE COMPASSION AND CONVERSATIONS
http://statistics.data.gov.uk/id/local-authority/38,Oxfordshire County Council,OPPB CONTCARE H SUPP,5691,,10/05/2016,3110092050,"2,340.00",CARE COMPASSION AND CONVERSATIONS
http://statistics.data.gov.uk/id/local-authority/38,Oxfordshire County Council,ETMS,4861,Hired and Contracted Services,17/05/2016,2200165283,"13,571.28",CARE MONITORING 2000 LTD
http://statistics.data.gov.uk/id/local-authority/38,Oxfordshire County Council,CSB - CITY,5689,,04/05/2016,3110090230,538,Care Outlook Ltd
http://statistics.data.gov.uk/id/local-authority/38,Oxfordshire County Council,CSB - CITY,5689,,04/05/2016,3110090237,563.5,Care Outlook Ltd
http://statistics.data.gov.uk/id/local-authority/38,Oxfordshire County Council,CSB - CITY,5689,,04/05/2016,3110090220,577.5,Care Outlook Ltd
http://statistics.data.gov.uk/id/local-authority/38,Oxfordshire County Council,CSB - CITY,5689,,04/05/2016,3110090241,582.25,Care Outlook Ltd
http://statistics.data.gov.uk/id/local-authority/38,Oxfordshire County Council,CSB - CITY,5689,,04/05/2016,3110090239,589.5,Care Outlook Ltd
http://statistics.data.gov.uk/id/local-authority/38,Oxfordshire County Council,CSB - CITY,5689,,04/05/2016,3110090229,622.75,Care Outlook Ltd
http://statistics.data.gov.uk/id/local-authority/38,Oxfordshire County Council,CSB - CITY,5689,,04/05/2016,3110090245,656.25,Care Outlook Ltd
http://statistics.data.gov.uk/id/local-authority/38,Oxfordshire County Council,CSB - CITY,5689,,04/05/2016,3110090213,658.75,Care Outlook Ltd
http://statistics.data.gov.uk/id/local-authority/38,Oxfordshire County Council,CSB - CITY,5689,,04/05/2016,3110090216,661.75,Care Outlook Ltd
http://statistics.data.gov.uk/id/local-authority/38,Oxfordshire County Council,CSB - CITY,5689,,04/05/2016,3110090215,700.75,Care Outlook Ltd
http://statistics.data.gov.uk/id/local-authority/38,Oxfordshire County Council,CSB - BANBURY,5689,,04/05/2016,3110090206,708.25,Care Outlook Ltd
http://statistics.data.gov.uk/id/local-authority/38,Oxfordshire County Council,CSB - BANBURY,5689,,04/05/2016,3110090210,732.5,Care Outlook Ltd
http://statistics.data.gov.uk/id/local-authority/38,Oxfordshire County Council,CSB - CITY,5689,,04/05/2016,3110090243,824.25,Care Outlook Ltd
http://statistics.data.gov.uk/id/local-authority/38,Oxfordshire County Council,CSB - ABINGDON,5689,,04/05/2016,3110090248,878.75,Care Outlook Ltd
http://statistics.data.gov.uk/id/local-authority/38,Oxfordshire County Council,CSB - CITY,5689,,04/05/2016,3110090235,"1,019.25",Care Outlook Ltd
http://statistics.data.gov.uk/id/local-authority/38,Oxfordshire County Council,CSB - CITY,5689,,04/05/2016,3110090238,"1,306.00",Care Outlook Ltd
http://statistics.data.gov.uk/id/local-authority/38,Oxfordshire County Council,CSB - BANBURY,5689,,04/05/2016,3110090208,"1,407.25",Care Outlook Ltd
http://statistics.data.gov.uk/id/local-authority/38,Oxfordshire County Council,CSB - CITY,5689,,04/05/2016,3110090246,"1,789.75",Care Outlook Ltd
http://statistics.data.gov.uk/id/local-authority/38,Oxfordshire County Council,CSB - BANBURY,5689,,04/05/2016,3110090211,"2,438.25",Care Outlook Ltd
http://statistics.data.gov.uk/id/local-authority/38,Oxfordshire County Council,LAUNDRY SERVICE,5505,Payments to Health Authorities,13/05/2016,2200164452,"5,187.65",Care Outlook Ltd
http://statistics.data.gov.uk/id/local-authority/38,Oxfordshire County Council,ContrO ASC Payments Control Account,5689,,19/05/2016,3110096455,"10,100.00",Care Outlook Ltd
http://statistics.data.gov.uk/id/local-authority/38,Oxfordshire County Council,ContrO ASC Payments Control Account,5689,,27/05/2016,3110099300,"21,825.00",Care Outlook Ltd
http://statistics.data.gov.uk/id/local-authority/38,Oxfordshire County Council,LD CLIENTS NORTH,5686,,12/05/2016,3110093670,"9,571.25",Care UK
http://statistics.data.gov.uk/id/local-authority/38,Oxfordshire County Council,LD CLIENTS NORTH,5686,,12/05/2016,3110093501,"12,742.02",Care UK Learning Disabilities
http://statistics.data.gov.uk/id/local-authority/38,Oxfordshire County Council,CMPB WITNEY,5691,,03/05/2016,2200153479,841.35,Care with Care Ltd
http://statistics.data.gov.uk/id/local-authority/38,Oxfordshire County Council,CSB - DIDCOT,5689,,04/05/2016,3110090918,505.01,Care2Care Ltd
http://statistics.data.gov.uk/id/local-authority/38,Oxfordshire County Council,CSB - DIDCOT,5689,,04/05/2016,3110090916,510.86,Care2Care Ltd
http://statistics.data.gov.uk/id/local-authority/38,Oxfordshire County Council,CSB - DIDCOT,5689,,04/05/2016,3110090906,523.71,Care2Care Ltd
http://statistics.data.gov.uk/id/local-authority/38,Oxfordshire County Council,CSB - DIDCOT,5689,,04/05/2016,3110090951,539.38,Care2Care Ltd
http://statistics.data.gov.uk/id/local-authority/38,Oxfordshire County Council,CSB - DIDCOT,5689,,04/05/2016,3110090928,549.28,Care2Care Ltd
http://statistics.data.gov.uk/id/local-authority/38,Oxfordshire County Council,PD COMM SUPP DIDCOT,5689,,04/05/2016,3110090999,568.12,Care2Care Ltd
http://statistics.data.gov.uk/id/local-authority/38,Oxfordshire County Council,CSB - DIDCOT,5689,,04/05/2016,3110090908,573.32,Care2Care Ltd
http://statistics.data.gov.uk/id/local-authority/38,Oxfordshire County Council,CSB - ABINGDON,5689,,04/05/2016,3110090986,576.92,Care2Care Ltd
http://statistics.data.gov.uk/id/local-authority/38,Oxfordshire County Council,CSB - ABINGDON,5689,,04/05/2016,3110090964,587.43,Care2Care Ltd
http://statistics.data.gov.uk/id/local-authority/38,Oxfordshire County Council,CSB - ABINGDON,5689,,04/05/2016,3110090989,613.15,Care2Care Ltd
http://statistics.data.gov.uk/id/local-authority/38,Oxfordshire County Council,CSB - DIDCOT,5689,,04/05/2016,3110090907,613.36,Care2Care Ltd
http://statistics.data.gov.uk/id/local-authority/38,Oxfordshire County Council,CSB - ABINGDON,5689,,04/05/2016,3110090972,624.35,Care2Care Ltd
http://statistics.data.gov.uk/id/local-authority/38,Oxfordshire County Council,CSB - DIDCOT,5689,,04/05/2016,3110090896,626.69,Care2Care Ltd
http://statistics.data.gov.uk/id/local-authority/38,Oxfordshire County Council,CSB - ABINGDON,5689,,04/05/2016,3110090983,628.48,Care2Care Ltd
http://statistics.data.gov.uk/id/local-authority/38,Oxfordshire County Council,CSB - DIDCOT,5689,,04/05/2016,3110090958,631.3,Care2Care Ltd
http://statistics.data.gov.uk/id/local-authority/38,Oxfordshire County Council,CSB - DIDCOT,5689,,04/05/2016,3110090927,635.01,Care2Care Ltd
http://statistics.data.gov.uk/id/local-authority/38,Oxfordshire County Council,CSB - DIDCOT,5689,,04/05/2016,3110090945,674.56,Care2Care Ltd
http://statistics.data.gov.uk/id/local-authority/38,Oxfordshire County Council,CSB - DIDCOT,5689,,04/05/2016,3110090942,683.36,Care2Care Ltd
http://statistics.data.gov.uk/id/local-authority/38,Oxfordshire County Council,CSB - ABINGDON,5689,,04/05/2016,3110090971,690.28,Care2Care Ltd
http://statistics.data.gov.uk/id/local-authority/38,Oxfordshire County Council,CSB - ABINGDON,5689,,04/05/2016,3110090982,699.76,Care2Care Ltd
http://statistics.data.gov.uk/id/local-authority/38,Oxfordshire County Council,CSB - DIDCOT,5689,,04/05/2016,3110090930,729.74,Care2Care Ltd
http://statistics.data.gov.uk/id/local-authority/38,Oxfordshire County Council,CSB - DIDCOT,5689,,04/05/2016,3110090926,766.25,Care2Care Ltd
http://statistics.data.gov.uk/id/local-authority/38,Oxfordshire County Council,CSB - DIDCOT,5689,,04/05/2016,3110090912,797.04,Care2Care Ltd
http://statistics.data.gov.uk/id/local-authority/38,Oxfordshire County Council,CSB - DIDCOT,5689,,04/05/2016,3110090895,837.76,Care2Care Ltd
http://statistics.data.gov.uk/id/local-authority/38,Oxfordshire County Council,CSB - DIDCOT,5689,,04/05/2016,3110090885,840.01,Care2Care Ltd
http://statistics.data.gov.uk/id/local-authority/38,Oxfordshire County Council,PD COMM SUPP DIDCOT,5689,,04/05/2016,3110091004,861.87,Care2Care Ltd
http://statistics.data.gov.uk/id/local-authority/38,Oxfordshire County Council,CSB - DIDCOT,5689,,04/05/2016,3110090954,873.34,Care2Care Ltd
http://statistics.data.gov.uk/id/local-authority/38,Oxfordshire County Council,CSB - ABINGDON,5689,,04/05/2016,3110090984,885.59,Care2Care Ltd
http://statistics.data.gov.uk/id/local-authority/38,Oxfordshire County Council,PD COMM SUPP DIDCOT,5689,,04/05/2016,3110091003,953.1,Care2Care Ltd
http://statistics.data.gov.uk/id/local-authority/38,Oxfordshire County Council,CSB - DIDCOT,5689,,04/05/2016,3110090936,954.88,Care2Care Ltd
http://statistics.data.gov.uk/id/local-authority/38,Oxfordshire County Council,CSB - CITY,5689,,04/05/2016,3110090879,972.43,Care2Care Ltd
http://statistics.data.gov.uk/id/local-authority/38,Oxfordshire County Council,PD COMM SUPP DIDCOT,5689,,27/05/2016,3110099309,"1,011.26",Care2Care Ltd
http://statistics.data.gov.uk/id/local-authority/38,Oxfordshire County Council,PD COMM SUPP DIDCOT,5689,,04/05/2016,3110090995,"1,042.94",Care2Care Ltd
http://statistics.data.gov.uk/id/local-authority/38,Oxfordshire County Council,CSB - DIDCOT,5689,,04/05/2016,3110090901,"1,050.45",Care2Care Ltd
http://statistics.data.gov.uk/id/local-authority/38,Oxfordshire County Council,CSB - ABINGDON,5689,,04/05/2016,3110090973,"1,123.39",Care2Care Ltd
http://statistics.data.gov.uk/id/local-authority/38,Oxfordshire County Council,CSB - DIDCOT,5689,,04/05/2016,3110090893,"1,168.59",Care2Care Ltd
http://statistics.data.gov.uk/id/local-authority/38,Oxfordshire County Council,CSB - DIDCOT,5689,,04/05/2016,3110090922,"1,231.52",Care2Care Ltd
http://statistics.data.gov.uk/id/local-authority/38,Oxfordshire County Council,CSB - DIDCOT,5689,,04/05/2016,3110090884,"1,234.42",Care2Care Ltd
http://statistics.data.gov.uk/id/local-authority/38,Oxfordshire County Council,CSB - DIDCOT,5689,,04/05/2016,3110090935,"1,292.71",Care2Care Ltd
http://statistics.data.gov.uk/id/local-authority/38,Oxfordshire County Council,CSB - DIDCOT,5689,,04/05/2016,3110090953,"1,327.84",Care2Care Ltd
http://statistics.data.gov.uk/id/local-authority/38,Oxfordshire County Council,CSB - DIDCOT,5689,,04/05/2016,3110090897,"1,368.26",Care2Care Ltd
http://statistics.data.gov.uk/id/local-authority/38,Oxfordshire County Council,CSB - DIDCOT,5689,,04/05/2016,3110090905,"1,383.04",Care2Care Ltd
http://statistics.data.gov.uk/id/local-authority/38,Oxfordshire County Council,CSB - DIDCOT,5689,,04/05/2016,3110090919,"1,392.46",Care2Care Ltd
http://statistics.data.gov.uk/id/local-authority/38,Oxfordshire County Council,CSB - ABINGDON,5689,,04/05/2016,3110090969,"1,435.07",Care2Care Ltd
http://statistics.data.gov.uk/id/local-authority/38,Oxfordshire County Council,CSB - DIDCOT,5689,,04/05/2016,3110090911,"1,528.91",Care2Care Ltd
http://statistics.data.gov.uk/id/local-authority/38,Oxfordshire County Council,CSB - DIDCOT,5689,,04/05/2016,3110090950,"1,644.68",Care2Care Ltd
http://statistics.data.gov.uk/id/local-authority/38,Oxfordshire County Council,CSB - DIDCOT,5689,,04/05/2016,3110090944,"1,647.30",Care2Care Ltd
http://statistics.data.gov.uk/id/local-authority/38,Oxfordshire County Council,CSB - DIDCOT,5689,,04/05/2016,3110090943,"1,748.16",Care2Care Ltd
http://statistics.data.gov.uk/id/local-authority/38,Oxfordshire County Council,CSB - DIDCOT,5689,,04/05/2016,3110090899,"1,802.11",Care2Care Ltd
http://statistics.data.gov.uk/id/local-authority/38,Oxfordshire County Council,CSB - ABINGDON,5689,,04/05/2016,3110090967,"1,897.67",Care2Care Ltd
http://statistics.data.gov.uk/id/local-authority/38,Oxfordshire County Council,CSB - DIDCOT,5689,,27/05/2016,3110099308,"9,497.76",Care2Care Ltd
http://statistics.data.gov.uk/id/local-authority/38,Oxfordshire County Council,OPPB CONTCARE RNCC,5687,,12/05/2016,3110093603,"144,110.41",Carebase (Abingdon) Limited
http://statistics.data.gov.uk/id/local-authority/38,Oxfordshire County Council,CMPB WITNEY,5689,,04/05/2016,3110090182,"-1,929.09",Caremark (West Oxfordshire & Cherwe
http://statistics.data.gov.uk/id/local-authority/38,Oxfordshire County Council,CMPB WITNEY,5689,,04/05/2016,3110090147,500.9,Caremark (West Oxfordshire & Cherwe
http://statistics.data.gov.uk/id/local-authority/38,Oxfordshire County Council,CSB - BANBURY,5689,,04/05/2016,3110090141,538.89,Caremark (West Oxfordshire & Cherwe
http://statistics.data.gov.uk/id/local-authority/38,Oxfordshire County Council,CMPB WITNEY,5689,,04/05/2016,3110090179,574,Caremark (West Oxfordshire & Cherwe
http://statistics.data.gov.uk/id/local-authority/38,Oxfordshire County Council,OPPB CONTCARE H SUPP,5689,,04/05/2016,3110090135,584.39,Caremark (West Oxfordshire & Cherwe
http://statistics.data.gov.uk/id/local-authority/38,Oxfordshire County Council,PD COMM SUPP WITNEY,5689,,04/05/2016,3110090192,591.19,Caremark (West Oxfordshire & Cherwe
http://statistics.data.gov.uk/id/local-authority/38,Oxfordshire County Council,CMPB WITNEY,5689,,04/05/2016,3110090150,592.27,Caremark (West Oxfordshire & Cherwe
http://statistics.data.gov.uk/id/local-authority/38,Oxfordshire County Council,CMPB WITNEY,5689,,04/05/2016,3110090185,596.21,Caremark (West Oxfordshire & Cherwe
http://statistics.data.gov.uk/id/local-authority/38,Oxfordshire County Council,CMPB WITNEY,5689,,04/05/2016,3110090165,599.08,Caremark (West Oxfordshire & Cherwe
http://statistics.data.gov.uk/id/local-authority/38,Oxfordshire County Council,CSB - BANBURY,5689,,04/05/2016,3110090138,600.15,Caremark (West Oxfordshire & Cherwe
http://statistics.data.gov.uk/id/local-authority/38,Oxfordshire County Council,OPPB CONTCARE H SUPP,5689,,04/05/2016,3110090134,614.84,Caremark (West Oxfordshire & Cherwe
http://statistics.data.gov.uk/id/local-authority/38,Oxfordshire County Council,CMPB WITNEY,5689,,04/05/2016,3110090154,660.35,Caremark (West Oxfordshire & Cherwe
http://statistics.data.gov.uk/id/local-authority/38,Oxfordshire County Council,CMPB WITNEY,5689,,04/05/2016,3110090175,677.19,Caremark (West Oxfordshire & Cherwe
http://statistics.data.gov.uk/id/local-authority/38,Oxfordshire County Council,CSB - BANBURY,5689,,04/05/2016,3110090139,740.25,Caremark (West Oxfordshire & Cherwe
http://statistics.data.gov.uk/id/local-authority/38,Oxfordshire County Council,CMPB WITNEY,5689,,04/05/2016,3110090166,745.62,Caremark (West Oxfordshire & Cherwe
http://statistics.data.gov.uk/id/local-authority/38,Oxfordshire County Council,PD COMM SUPP WITNEY,5689,,04/05/2016,3110090190,776.08,Caremark (West Oxfordshire & Cherwe
http://statistics.data.gov.uk/id/local-authority/38,Oxfordshire County Council,CMPB WITNEY,5689,,04/05/2016,3110090186,812.27,Caremark (West Oxfordshire & Cherwe
http://statistics.data.gov.uk/id/local-authority/38,Oxfordshire County Council,CSB - BANBURY,5689,,19/05/2016,3110096448,827.75,Caremark (West Oxfordshire & Cherwe
http://statistics.data.gov.uk/id/local-authority/38,Oxfordshire County Council,CMPB WITNEY,5689,,04/05/2016,3110090181,852.75,Caremark (West Oxfordshire & Cherwe
http://statistics.data.gov.uk/id/local-authority/38,Oxfordshire County Council,CMPB WITNEY,5689,,04/05/2016,3110090161,854.55,Caremark (West Oxfordshire & Cherwe
http://statistics.data.gov.uk/id/local-authority/38,Oxfordshire County Council,CMPB WITNEY,5689,,04/05/2016,3110090173,981.74,Caremark (West Oxfordshire & Cherwe
http://statistics.data.gov.uk/id/local-authority/38,Oxfordshire County Council,CSB - BANBURY,5689,,04/05/2016,3110090140,"1,033.33",Caremark (West Oxfordshire & Cherwe
http://statistics.data.gov.uk/id/local-authority/38,Oxfordshire County Council,CMPB WITNEY,5689,,04/05/2016,3110090148,"1,044.09",Caremark (West Oxfordshire & Cherwe
http://statistics.data.gov.uk/id/local-authority/38,Oxfordshire County Council,CMPB WITNEY,5689,,04/05/2016,3110090171,"1,075.61",Caremark (West Oxfordshire & Cherwe
http://statistics.data.gov.uk/id/local-authority/38,Oxfordshire County Council,CMPB WITNEY,5689,,04/05/2016,3110090172,"1,185.97",Caremark (West Oxfordshire & Cherwe
http://statistics.data.gov.uk/id/local-authority/38,Oxfordshire County Council,CMPB WITNEY,5689,,04/05/2016,3110090156,"1,232.19",Caremark (West Oxfordshire & Cherwe
http://statistics.data.gov.uk/id/local-authority/38,Oxfordshire County Council,CMPB WITNEY,5689,,04/05/2016,3110090184,"1,339.68",Caremark (West Oxfordshire & Cherwe
http://statistics.data.gov.uk/id/local-authority/38,Oxfordshire County Council,CMPB WITNEY,5689,,04/05/2016,3110090170,"1,366.56",Caremark (West Oxfordshire & Cherwe
http://statistics.data.gov.uk/id/local-authority/38,Oxfordshire County Council,CSB - BANBURY,5689,,04/05/2016,3110090144,"1,384.47",Caremark (West Oxfordshire & Cherwe
http://statistics.data.gov.uk/id/local-authority/38,Oxfordshire County Council,CMPB WITNEY,5689,,04/05/2016,3110090159,"1,472.25",Caremark (West Oxfordshire & Cherwe
http://statistics.data.gov.uk/id/local-authority/38,Oxfordshire County Council,CSB - BANBURY,5689,,04/05/2016,3110090145,"1,607.33",Caremark (West Oxfordshire & Cherwe
http://statistics.data.gov.uk/id/local-authority/38,Oxfordshire County Council,CMPB WITNEY,5689,,04/05/2016,3110090160,"1,746.71",Caremark (West Oxfordshire & Cherwe
http://statistics.data.gov.uk/id/local-authority/38,Oxfordshire County Council,CMPB WITNEY,5689,,04/05/2016,3110090155,"1,993.94",Caremark (West Oxfordshire & Cherwe
http://statistics.data.gov.uk/id/local-authority/38,Oxfordshire County Council,CMPB WITNEY,5689,,04/05/2016,3110090152,"2,217.16",Caremark (West Oxfordshire & Cherwe
http://statistics.data.gov.uk/id/local-authority/38,Oxfordshire County Council,PD COMM SUPP WITNEY,5689,,04/05/2016,3110090189,"2,415.66",Caremark (West Oxfordshire & Cherwe
http://statistics.data.gov.uk/id/local-authority/38,Oxfordshire County Council,PD COMM SUPP WITNEY,5689,,04/05/2016,3110090188,"2,616.30",Caremark (West Oxfordshire & Cherwe
http://statistics.data.gov.uk/id/local-authority/38,Oxfordshire County Council,CMPB WITNEY,5689,,04/05/2016,3110090177,"2,789.36",Caremark (West Oxfordshire & Cherwe
http://statistics.data.gov.uk/id/local-authority/38,Oxfordshire County Council,CMPB WITNEY,5689,,04/05/2016,3110090174,"2,952.39",Caremark (West Oxfordshire & Cherwe
http://statistics.data.gov.uk/id/local-authority/38,Oxfordshire County Council,CMPB WITNEY,5689,,31/05/2016,3110099379,"4,490.04",Caremark (West Oxfordshire & Cherwe
http://statistics.data.gov.uk/id/local-authority/38,Oxfordshire County Council,LD CLIENTS NORTH,5688,,12/05/2016,3110093395,"9,635.24",Caretech Community Services Ltd
http://statistics.data.gov.uk/id/local-authority/38,Oxfordshire County Council,LD CLIENTS NORTH,5686,,12/05/2016,3110093312,"35,931.92",Caretech Community Services Ltd
http://statistics.data.gov.uk/id/local-authority/38,Oxfordshire County Council,CSB - DIDCOT,5689,,04/05/2016,3110090711,599.72,Caretree Ltd
http://statistics.data.gov.uk/id/local-authority/38,Oxfordshire County Council,CSB - DIDCOT,5689,,04/05/2016,3110090713,686.88,Caretree Ltd
http://statistics.data.gov.uk/id/local-authority/38,Oxfordshire County Council,CSB - ABINGDON,5689,,04/05/2016,3110090728,691.43,Caretree Ltd
http://statistics.data.gov.uk/id/local-authority/38,Oxfordshire County Council,CSB - DIDCOT,5689,,04/05/2016,3110090715,732.56,Caretree Ltd
http://statistics.data.gov.uk/id/local-authority/38,Oxfordshire County Council,OPPB CONTCARE H SUPP,5689,,04/05/2016,3110090708,831.18,Caretree Ltd
http://statistics.data.gov.uk/id/local-authority/38,Oxfordshire County Council,CSB - DIDCOT,5689,,04/05/2016,3110090720,889.54,Caretree Ltd
http://statistics.data.gov.uk/id/local-authority/38,Oxfordshire County Council,CSB - ABINGDON,5689,,04/05/2016,3110090723,"1,100.53",Caretree Ltd
http://statistics.data.gov.uk/id/local-authority/38,Oxfordshire County Council,CSB - ABINGDON,5689,,04/05/2016,3110090727,"1,263.47",Caretree Ltd
http://statistics.data.gov.uk/id/local-authority/38,Oxfordshire County Council,OPPB CONTCARE H SUPP,5689,,04/05/2016,3110090707,"1,289.81",Caretree Ltd
http://statistics.data.gov.uk/id/local-authority/38,Oxfordshire County Council,CSB - ABINGDON,5689,,04/05/2016,3110090729,"1,470.29",Caretree Ltd
http://statistics.data.gov.uk/id/local-authority/38,Oxfordshire County Council,CSB - ABINGDON,5689,,04/05/2016,3110090724,"1,689.17",Caretree Ltd
http://statistics.data.gov.uk/id/local-authority/38,Oxfordshire County Council,PD COMM SUPP DIDCOT,5689,,04/05/2016,3110090731,"2,194.85",Caretree Ltd
http://statistics.data.gov.uk/id/local-authority/38,Oxfordshire County Council,CSB - ABINGDON,5689,,04/05/2016,3110090722,"2,507.39",Caretree Ltd
http://statistics.data.gov.uk/id/local-authority/38,Oxfordshire County Council,CSB - DIDCOT,5689,,04/05/2016,3110090712,"2,517.98",Caretree Ltd
http://statistics.data.gov.uk/id/local-authority/38,Oxfordshire County Council,CSB - ABINGDON,5689,,04/05/2016,3110090726,"2,596.96",Caretree Ltd
http://statistics.data.gov.uk/id/local-authority/38,Oxfordshire County Council,CSB - ABINGDON,5689,,04/05/2016,3110090725,"2,624.37",Caretree Ltd
http://statistics.data.gov.uk/id/local-authority/38,Oxfordshire County Council,CSB - DIDCOT,5689,,04/05/2016,3110090714,"2,693.63",Caretree Ltd
http://statistics.data.gov.uk/id/local-authority/38,Oxfordshire County Council,CSB - DIDCOT,5689,,04/05/2016,3110090719,"3,042.50",Caretree Ltd
http://statistics.data.gov.uk/id/local-authority/38,Oxfordshire County Council,CSB - DIDCOT,5689,,04/05/2016,3110090718,"3,332.34",Caretree Ltd
http://statistics.data.gov.uk/id/local-authority/38,Oxfordshire County Council,CAP CHRGES-PRIM SCHS,8102,Payments to main contractor,12/05/2016,2200159654,"-15,859.19",Carillion LGS Ltd
http://statistics.data.gov.uk/id/local-authority/38,Oxfordshire County Council,CAP CHRGES-PRIM SCHS,8103,Payments to sub contractor,09/05/2016,2200159911,"-5,199.61",Carillion LGS Ltd
http://statistics.data.gov.uk/id/local-authority/38,Oxfordshire County Council,CAP CHRGES-PREM,8103,Payments to sub contractor,20/05/2016,2200164118,"-2,943.98",Carillion LGS Ltd
http://statistics.data.gov.uk/id/local-authority/38,Oxfordshire County Council,OXFORD OPTIONS,4070,Cleaning services,16/05/2016,2200162312,521.3,Carillion LGS Ltd
http://statistics.data.gov.uk/id/local-authority/38,Oxfordshire County Council,THE LEYS CC,4861,Hired and Contracted Services,06/05/2016,2200157561,675,Carillion LGS Ltd
http://statistics.data.gov.uk/id/local-authority/38,Oxfordshire County Council,CORPORATE LANDLORD,3787,Premises Repairs,17/05/2016,2200163177,876.96,Carillion LGS Ltd
http://statistics.data.gov.uk/id/local-authority/38,Oxfordshire County Council,CAP CHRGES-PRIM SCHS,8102,Payments to main contractor,10/05/2016,2200159887,960.19,Carillion LGS Ltd
http://statistics.data.gov.uk/id/local-authority/38,Oxfordshire County Council,CORPORATE LANDLORD,8102,Payments to main contractor,17/05/2016,2200163192,"1,118.76",Carillion LGS Ltd
http://statistics.data.gov.uk/id/local-authority/38,Oxfordshire County Council,CAP CHRGES-PRIM SCHS,8004,Design Consultant,10/05/2016,2200159657,"1,326.29",Carillion LGS Ltd
http://statistics.data.gov.uk/id/local-authority/38,Oxfordshire County Council,LD INFORM & CONSUL,5526,Payments to Private Contractors,05/05/2016,2200156941,"1,554.49",Carillion LGS Ltd
http://statistics.data.gov.uk/id/local-authority/38,Oxfordshire County Council,CAP CHRGES-PRIM SCHS,8102,Payments to main contractor,12/05/2016,2200161277,"1,915.56",Carillion LGS Ltd
http://statistics.data.gov.uk/id/local-authority/38,Oxfordshire County Council,PROGRAMME OFFICE,5526,Payments to Private Contractors,13/05/2016,2200162207,"2,291.67",Carillion LGS Ltd
http://statistics.data.gov.uk/id/local-authority/38,Oxfordshire County Council,CAP CHRGES-PREM,8103,Payments to sub contractor,26/05/2016,2200166661,"2,459.81",Carillion LGS Ltd
http://statistics.data.gov.uk/id/local-authority/38,Oxfordshire County Council,CAP CHRGES-PRIM SCHS,8103,Payments to sub contractor,23/05/2016,2200164876,"2,506.11",Carillion LGS Ltd
http://statistics.data.gov.uk/id/local-authority/38,Oxfordshire County Council,CAP CHRGES-PREM,8102,Payments to main contractor,20/05/2016,2200164116,"2,943.98",Carillion LGS Ltd
http://statistics.data.gov.uk/id/local-authority/38,Oxfordshire County Council,CAP CHRGES-PRIM SCHS,8102,Payments to main contractor,11/05/2016,2200161279,"3,110.51",Carillion LGS Ltd
http://statistics.data.gov.uk/id/local-authority/38,Oxfordshire County Council,CAP CHRGES-PRIM SCHS,8102,Payments to main contractor,10/05/2016,2200159903,"3,165.85",Carillion LGS Ltd
http://statistics.data.gov.uk/id/local-authority/38,Oxfordshire County Council,HARD FM,3787,Premises Repairs,24/05/2016,2200167470,"3,422.10",Carillion LGS Ltd
http://statistics.data.gov.uk/id/local-authority/38,Oxfordshire County Council,HARD FM,3787,Premises Repairs,26/05/2016,2200167009,"3,451.38",Carillion LGS Ltd
http://statistics.data.gov.uk/id/local-authority/38,Oxfordshire County Council,HARD FM,4122,Other premises related costs,13/05/2016,2200164130,"3,518.74",Carillion LGS Ltd
http://statistics.data.gov.uk/id/local-authority/38,Oxfordshire County Council,SOFT FM,4070,Cleaning services,13/05/2016,2200164535,"3,604.96",Carillion LGS Ltd
http://statistics.data.gov.uk/id/local-authority/38,Oxfordshire County Council,CORPORATE LANDLORD,4122,Other premises related costs,17/05/2016,2200163189,"3,952.09",Carillion LGS Ltd
http://statistics.data.gov.uk/id/local-authority/38,Oxfordshire County Council,CNTRACT & PERF MGMNT,5526,Payments to Private Contractors,13/05/2016,2200164547,"5,817.50",Carillion LGS Ltd
http://statistics.data.gov.uk/id/local-authority/38,Oxfordshire County Council,CNTRACT & PERF MGMNT,5526,Payments to Private Contractors,13/05/2016,2200164549,"6,190.17",Carillion LGS Ltd
http://statistics.data.gov.uk/id/local-authority/38,Oxfordshire County Council,CAP CHRGES-PRIM SCHS,8102,Payments to main contractor,10/05/2016,2200159883,"6,509.24",Carillion LGS Ltd
http://statistics.data.gov.uk/id/local-authority/38,Oxfordshire County Council,CAP CHRGES-PRIM SCHS,8103,Payments to sub contractor,10/05/2016,2200159877,"6,919.46",Carillion LGS Ltd
http://statistics.data.gov.uk/id/local-authority/38,Oxfordshire County Council,CORPORATE LANDLORD,8102,Payments to main contractor,17/05/2016,2200163193,"7,155.84",Carillion LGS Ltd
http://statistics.data.gov.uk/id/local-authority/38,Oxfordshire County Council,HARD FM,3787,Premises Repairs,20/05/2016,2200163725,"7,547.40",Carillion LGS Ltd
http://statistics.data.gov.uk/id/local-authority/38,Oxfordshire County Council,CAP CHRGES-PRIM SCHS,8004,Design Consultant,10/05/2016,2200159658,"7,764.14",Carillion LGS Ltd
http://statistics.data.gov.uk/id/local-authority/38,Oxfordshire County Council,PROGRAMME OFFICE,5526,Payments to Private Contractors,03/05/2016,2200153720,"9,166.67",Carillion LGS Ltd
http://statistics.data.gov.uk/id/local-authority/38,Oxfordshire County Council,HARD FM,3787,Premises Repairs,24/05/2016,2200167606,"9,185.26",Carillion LGS Ltd
http://statistics.data.gov.uk/id/local-authority/38,Oxfordshire County Council,CAP CHRGES-SEC SCHS,8004,Design Consultant,10/05/2016,2200159871,"9,196.42",Carillion LGS Ltd
http://statistics.data.gov.uk/id/local-authority/38,Oxfordshire County Council,CNTRACT & PERF MGMNT,5526,Payments to Private Contractors,13/05/2016,2200164544,"11,205.60",Carillion LGS Ltd
http://statistics.data.gov.uk/id/local-authority/38,Oxfordshire County Council,CAP CHRGES-PRIM SCHS,8102,Payments to main contractor,17/05/2016,2200163180,"12,575.25",Carillion LGS Ltd
http://statistics.data.gov.uk/id/local-authority/38,Oxfordshire County Council,CAP CHRGES-SEC SCHS,8102,Payments to main contractor,10/05/2016,2200159895,"14,055.10",Carillion LGS Ltd
http://statistics.data.gov.uk/id/local-authority/38,Oxfordshire County Council,"SERVICE MGRS, DC",4122,Other premises related costs,23/05/2016,2200164829,"14,209.66",Carillion LGS Ltd
http://statistics.data.gov.uk/id/local-authority/38,Oxfordshire County Council,SCHOOLS FM,4531,Materials,23/05/2016,2200164782,"14,270.58",Carillion LGS Ltd
http://statistics.data.gov.uk/id/local-authority/38,Oxfordshire County Council,CAP CHRGES-PRIM SCHS,8102,Payments to main contractor,10/05/2016,2200159866,"14,675.38",Carillion LGS Ltd
http://statistics.data.gov.uk/id/local-authority/38,Oxfordshire County Council,HARD FM,5526,Payments to Private Contractors,17/05/2016,2200162010,"14,689.08",Carillion LGS Ltd
http://statistics.data.gov.uk/id/local-authority/38,Oxfordshire County Council,CAP CHRGES-PRIM SCHS,8102,Payments to main contractor,12/05/2016,2200159661,"15,859.19",Carillion LGS Ltd
http://statistics.data.gov.uk/id/local-authority/38,Oxfordshire County Council,WEST KIDLINGTON SCH,3787,Premises Repairs,11/05/2016,2200161291,"22,087.87",Carillion LGS Ltd
http://statistics.data.gov.uk/id/local-authority/38,Oxfordshire County Council,SOFT FM,5526,Payments to Private Contractors,13/05/2016,2200164531,"23,414.52",Carillion LGS Ltd
http://statistics.data.gov.uk/id/local-authority/38,Oxfordshire County Council,SONNING COMMON CP,3787,Premises Repairs,11/05/2016,2200161284,"26,134.21",Carillion LGS Ltd
http://statistics.data.gov.uk/id/local-authority/38,Oxfordshire County Council,CAP CHRGES-SPEC SCHS,8004,Design Consultant,10/05/2016,2200159901,"26,222.73",Carillion LGS Ltd
http://statistics.data.gov.uk/id/local-authority/38,Oxfordshire County Council,CNTRACT & PERF MGMNT,5526,Payments to Private Contractors,13/05/2016,2200164527,"26,681.71",Carillion LGS Ltd
http://statistics.data.gov.uk/id/local-authority/38,Oxfordshire County Council,CAP CHRGES-PRIM SCHS,8102,Payments to main contractor,10/05/2016,2200159909,"27,137.82",Carillion LGS Ltd
http://statistics.data.gov.uk/id/local-authority/38,Oxfordshire County Council,CNTRACT & PERF MGMNT,5526,Payments to Private Contractors,16/05/2016,2200160621,"28,941.34",Carillion LGS Ltd
http://statistics.data.gov.uk/id/local-authority/38,Oxfordshire County Council,CAP CHRGES-SPEC SCHS,8102,Payments to main contractor,17/05/2016,2200163188,"30,111.00",Carillion LGS Ltd
http://statistics.data.gov.uk/id/local-authority/38,Oxfordshire County Council,CAP CHRGES-PRIM SCHS,8102,Payments to main contractor,10/05/2016,2200159868,"31,312.87",Carillion LGS Ltd
http://statistics.data.gov.uk/id/local-authority/38,Oxfordshire County Council,CAP CHRGES-PRIM SCHS,8102,Payments to main contractor,10/05/2016,2200159666,"38,783.95",Carillion LGS Ltd
http://statistics.data.gov.uk/id/local-authority/38,Oxfordshire County Council,SCHOOLS FM,5526,Payments to Private Contractors,13/05/2016,2200164546,"59,013.40",Carillion LGS Ltd
http://statistics.data.gov.uk/id/local-authority/38,Oxfordshire County Council,PROGRAMME OFFICE,5526,Payments to Private Contractors,13/05/2016,2200164551,"59,866.33",Carillion LGS Ltd
http://statistics.data.gov.uk/id/local-authority/38,Oxfordshire County Council,CNTRACT & PERF MGMNT,5526,Payments to Private Contractors,13/05/2016,2200161303,"70,491.08",Carillion LGS Ltd
http://statistics.data.gov.uk/id/local-authority/38,Oxfordshire County Council,SOFT FM,5526,Payments to Private Contractors,13/05/2016,2200161925,"101,409.63",Carillion LGS Ltd
http://statistics.data.gov.uk/id/local-authority/38,Oxfordshire County Council,HARD FM,5526,Payments to Private Contractors,13/05/2016,2200164764,"114,425.50",Carillion LGS Ltd
http://statistics.data.gov.uk/id/local-authority/38,Oxfordshire County Council,CAP CHRGES-PREM,8102,Payments to main contractor,10/05/2016,2200159669,"122,309.68",Carillion LGS Ltd
http://statistics.data.gov.uk/id/local-authority/38,Oxfordshire County Council,CAP CHRGES-PREM,8102,Payments to main contractor,10/05/2016,2200159648,"187,668.98",Carillion LGS Ltd
http://statistics.data.gov.uk/id/local-authority/38,Oxfordshire County Council,SCHOOLS FM,4665,Catering,13/05/2016,2200164233,"226,994.93",Carillion LGS Ltd
http://statistics.data.gov.uk/id/local-authority/38,Oxfordshire County Council,CAP CHRGES-PRIM SCHS,8102,Payments to main contractor,05/05/2016,2200156919,"228,446.76",Carillion LGS Ltd
http://statistics.data.gov.uk/id/local-authority/38,Oxfordshire County Council,DEPARTMENTAL MANAGE,8102,Payments to main contractor,11/05/2016,2200161288,"229,777.10",Carillion LGS Ltd
http://statistics.data.gov.uk/id/local-authority/38,Oxfordshire County Council,CAP CHRGES-PRIM SCHS,8102,Payments to main contractor,26/05/2016,2200166678,"288,175.16",Carillion LGS Ltd
http://statistics.data.gov.uk/id/local-authority/38,Oxfordshire County Council,CAP CHRGES-PRIM SCHS,8102,Payments to main contractor,10/05/2016,2200159663,"293,548.26",Carillion LGS Ltd
http://statistics.data.gov.uk/id/local-authority/38,Oxfordshire County Council,CAP CHRGES-PRIM SCHS,8102,Payments to main contractor,10/05/2016,2200159651,"486,321.90",Carillion LGS Ltd
http://statistics.data.gov.uk/id/local-authority/38,Oxfordshire County Council,CAP CHRGES-PRIM SCHS,8102,Payments to main contractor,10/05/2016,2200159662,"549,887.60",Carillion LGS Ltd
http://statistics.data.gov.uk/id/local-authority/38,Oxfordshire County Council,CAP CHRGES-PRIM SCHS,8102,Payments to main contractor,10/05/2016,2200159659,"684,121.31",Carillion LGS Ltd
http://statistics.data.gov.uk/id/local-authority/38,Oxfordshire County Council,CAP CHRGES-PRIM SCHS,8004,Design Consultant,10/05/2016,2200159656,"880,233.96",Carillion LGS Ltd
http://statistics.data.gov.uk/id/local-authority/38,Oxfordshire County Council,EMERGENCY DUTY TEAM,2040,Agency Staff,09/05/2016,2200157082,630,Caritas Recruitment Ltd
http://statistics.data.gov.uk/id/local-authority/38,Oxfordshire County Council,LOCALITY TEAM - CITY,2040,Agency Staff,04/05/2016,2200154813,838.8,Caritas Recruitment Ltd
http://statistics.data.gov.uk/id/local-authority/38,Oxfordshire County Council,ABINGDON HUB,2040,Agency Staff,12/05/2016,2200159144,987,Caritas Recruitment Ltd
http://statistics.data.gov.uk/id/local-authority/38,Oxfordshire County Council,LOCALITY TEAM - CITY,2040,Agency Staff,12/05/2016,2200159128,"1,069.25",Caritas Recruitment Ltd
http://statistics.data.gov.uk/id/local-authority/38,Oxfordshire County Council,LOCALITY TEAM - WEST,2040,Agency Staff,26/05/2016,2200166796,"1,076.40",Caritas Recruitment Ltd
http://statistics.data.gov.uk/id/local-authority/38,Oxfordshire County Council,LITTLEMORE HUB,2040,Agency Staff,03/05/2016,2200153920,"1,080.00",Caritas Recruitment Ltd
http://statistics.data.gov.uk/id/local-authority/38,Oxfordshire County Council,LITTLEMORE HUB,2040,Agency Staff,04/05/2016,2200154603,"1,080.00",Caritas Recruitment Ltd
http://statistics.data.gov.uk/id/local-authority/38,Oxfordshire County Council,THRIVING FAMILY SOTH,2040,Agency Staff,12/05/2016,2200159145,"1,092.00",Caritas Recruitment Ltd
http://statistics.data.gov.uk/id/local-authority/38,Oxfordshire County Council,ASSESSMENT TEAM NORT,2040,Agency Staff,18/05/2016,2200162245,"1,092.00",Caritas Recruitment Ltd
http://statistics.data.gov.uk/id/local-authority/38,Oxfordshire County Council,DIDCOT HUB,2040,Agency Staff,20/05/2016,2200164027,"1,092.00",Caritas Recruitment Ltd
http://statistics.data.gov.uk/id/local-authority/38,Oxfordshire County Council,FAMILY SUPPORT S'TH2,2040,Agency Staff,20/05/2016,2200164092,"1,092.00",Caritas Recruitment Ltd
http://statistics.data.gov.uk/id/local-authority/38,Oxfordshire County Council,FAMILY SUPPORT S'TH2,2040,Agency Staff,23/05/2016,2200164842,"1,092.00",Caritas Recruitment Ltd
http://statistics.data.gov.uk/id/local-authority/38,Oxfordshire County Council,LOCALITY TEAM - CITY,2040,Agency Staff,06/05/2016,2200156031,"1,118.60",Caritas Recruitment Ltd
http://statistics.data.gov.uk/id/local-authority/38,Oxfordshire County Council,DIDCOT HUB,2040,Agency Staff,16/05/2016,2200161025,"1,153.20",Caritas Recruitment Ltd
http://statistics.data.gov.uk/id/local-authority/38,Oxfordshire County Council,LOCALITY TEAM - CITY,2040,Agency Staff,04/05/2016,2200154825,"1,153.35",Caritas Recruitment Ltd
http://statistics.data.gov.uk/id/local-authority/38,Oxfordshire County Council,FAMILY SUPPORT S'TH2,2040,Agency Staff,04/05/2016,2200154897,"1,217.30",Caritas Recruitment Ltd
http://statistics.data.gov.uk/id/local-authority/38,Oxfordshire County Council,ABINGDON HUB,2040,Agency Staff,06/05/2016,2200156066,"1,217.30",Caritas Recruitment Ltd
http://statistics.data.gov.uk/id/local-authority/38,Oxfordshire County Council,ABINGDON HUB,2040,Agency Staff,06/05/2016,2200156067,"1,217.30",Caritas Recruitment Ltd
http://statistics.data.gov.uk/id/local-authority/38,Oxfordshire County Council,FAMILY SUPPORT S'TH2,2040,Agency Staff,20/05/2016,2200163951,"1,217.30",Caritas Recruitment Ltd
http://statistics.data.gov.uk/id/local-authority/38,Oxfordshire County Council,ABINGDON HUB,2040,Agency Staff,20/05/2016,2200164015,"1,217.30",Caritas Recruitment Ltd
http://statistics.data.gov.uk/id/local-authority/38,Oxfordshire County Council,LOCALITY TEAM - CITY,2040,Agency Staff,23/05/2016,2200164512,"1,217.30",Caritas Recruitment Ltd
http://statistics.data.gov.uk/id/local-authority/38,Oxfordshire County Council,EMERGENCY DUTY TEAM,2040,Agency Staff,06/05/2016,2200156344,"1,226.25",Caritas Recruitment Ltd
http://statistics.data.gov.uk/id/local-authority/38,Oxfordshire County Council,LOCALITY TEAM - CITY,2040,Agency Staff,04/05/2016,2200154835,"1,310.63",Caritas Recruitment Ltd
http://statistics.data.gov.uk/id/local-authority/38,Oxfordshire County Council,LITTLEMORE HUB,2040,Agency Staff,04/05/2016,2200154605,"1,332.00",Caritas Recruitment Ltd
http://statistics.data.gov.uk/id/local-authority/38,Oxfordshire County Council,FAMILY SUPPORT S'TH2,2040,Agency Staff,01/05/2016,2200163534,"1,346.80",Caritas Recruitment Ltd
http://statistics.data.gov.uk/id/local-authority/38,Oxfordshire County Council,ASSESSMENT TEAM NORT,2040,Agency Staff,06/05/2016,2200155941,"1,346.80",Caritas Recruitment Ltd
http://statistics.data.gov.uk/id/local-authority/38,Oxfordshire County Council,THRIVING FAMILY SOTH,2040,Agency Staff,06/05/2016,2200156069,"1,346.80",Caritas Recruitment Ltd
http://statistics.data.gov.uk/id/local-authority/38,Oxfordshire County Council,DIDCOT HUB,2040,Agency Staff,11/05/2016,2200158919,"1,346.80",Caritas Recruitment Ltd
http://statistics.data.gov.uk/id/local-authority/38,Oxfordshire County Council,ASSESSMENT TEAM NORT,2040,Agency Staff,18/05/2016,2200162255,"1,346.80",Caritas Recruitment Ltd
http://statistics.data.gov.uk/id/local-authority/38,Oxfordshire County Council,THRIVING FAMILY SOTH,2040,Agency Staff,20/05/2016,2200164017,"1,346.80",Caritas Recruitment Ltd
http://statistics.data.gov.uk/id/local-authority/38,Oxfordshire County Council,FAMILY SUPPORT S'TH2,2040,Agency Staff,20/05/2016,2200164096,"1,346.80",Caritas Recruitment Ltd
http://statistics.data.gov.uk/id/local-authority/38,Oxfordshire County Council,FPT SOUTH/VALE,2040,Agency Staff,20/05/2016,2200164098,"1,346.80",Caritas Recruitment Ltd
http://statistics.data.gov.uk/id/local-authority/38,Oxfordshire County Council,MASH PROJECT,2040,Agency Staff,31/05/2016,2200168043,"1,346.80",Caritas Recruitment Ltd
http://statistics.data.gov.uk/id/local-authority/38,Oxfordshire County Council,FAM SUPP CITY 1,2040,Agency Staff,06/05/2016,2200156071,"1,376.74",Caritas Recruitment Ltd
http://statistics.data.gov.uk/id/local-authority/38,Oxfordshire County Council,LOCALITY TEAM - CITY,2040,Agency Staff,04/05/2016,2200154831,"1,415.48",Caritas Recruitment Ltd
http://statistics.data.gov.uk/id/local-authority/38,Oxfordshire County Council,DIDCOT HUB,2040,Agency Staff,03/05/2016,2200153804,"1,420.15",Caritas Recruitment Ltd
http://statistics.data.gov.uk/id/local-authority/38,Oxfordshire County Council,EMERGENCY DUTY TEAM,2040,Agency Staff,31/05/2016,2200168077,"1,863.90",Caritas Recruitment Ltd
http://statistics.data.gov.uk/id/local-authority/38,Oxfordshire County Council,EMERGENCY DUTY TEAM,2040,Agency Staff,06/05/2016,2200156100,"2,330.00",Caritas Recruitment Ltd
http://statistics.data.gov.uk/id/local-authority/38,Oxfordshire County Council,EMERGENCY DUTY TEAM,2040,Agency Staff,03/05/2016,2200153847,"2,354.40",Caritas Recruitment Ltd
http://statistics.data.gov.uk/id/local-authority/38,Oxfordshire County Council,EMERGENCY DUTY TEAM,2040,Agency Staff,18/05/2016,2200162364,"3,139.20",Caritas Recruitment Ltd
http://statistics.data.gov.uk/id/local-authority/38,Oxfordshire County Council,LD CLIENTS CITY,5899,Adult Social Care - Direct Payments,18/05/2016,3110095799,644,Redacted Personal Data
http://statistics.data.gov.uk/id/local-authority/38,Oxfordshire County Council,PD COMM SUPP - CITY,5899,Adult Social Care - Direct Payments,18/05/2016,3110095484,"2,400.00",Redacted Personal Data
http://statistics.data.gov.uk/id/local-authority/38,Oxfordshire County Council,PD COMM SUPP AB'DON,5899,Adult Social Care - Direct Payments,18/05/2016,3110094877,"5,060.00",Redacted Personal Data
http://statistics.data.gov.uk/id/local-authority/38,Oxfordshire County Council,CSB - CITY,5899,Adult Social Care - Direct Payments,18/05/2016,3110094948,"6,016.00",Redacted Personal Data
http://statistics.data.gov.uk/id/local-authority/38,Oxfordshire County Council,BUS SUBSIDY,5781,Payments to Transport Operators,31/05/2016,3500018316,"1,250.00",Carousel Buses Ltd
http://statistics.data.gov.uk/id/local-authority/38,Oxfordshire County Council,CONCESSIONARY FARES,5781,Payments to Transport Operators,04/05/2016,2200155005,"2,418.76",Carousel Buses Ltd
http://statistics.data.gov.uk/id/local-authority/38,Oxfordshire County Council,EXTERNAL DAY CARE,5505,Payments to Health Authorities,05/05/2016,3500017644,"10,000.00",Carterton Day Centre
http://statistics.data.gov.uk/id/local-authority/38,Oxfordshire County Council,CSB - BANBURY,5689,,04/05/2016,3110091354,"-2,515.29",Casa Care Ltd
http://statistics.data.gov.uk/id/local-authority/38,Oxfordshire County Council,CSB - BANBURY,5689,,04/05/2016,3110091355,"1,460.29",Casa Care Ltd
http://statistics.data.gov.uk/id/local-authority/38,Oxfordshire County Council,CSB - BANBURY,5689,,05/05/2016,3110091544,"2,631.72",Casa Care Ltd
http://statistics.data.gov.uk/id/local-authority/38,Oxfordshire County Council,PD COMM SUPP BANB,5689,,16/05/2016,3110093996,"3,959.76",Casa Care Ltd
http://statistics.data.gov.uk/id/local-authority/38,Oxfordshire County Council,CSB - ABINGDON,5689,,27/05/2016,3110099314,"8,933.61",Casa Care Ltd
http://statistics.data.gov.uk/id/local-authority/38,Oxfordshire County Council,PLAYGROUP FEES,5537,Payments to Other Establishments,10/05/2016,3110092237,"2,116.41",Redacted Personal Data
http://statistics.data.gov.uk/id/local-authority/38,Oxfordshire County Council,CSB - BANBURY,5899,Adult Social Care - Direct Payments,18/05/2016,3110095412,976,Redacted Personal Data
http://statistics.data.gov.uk/id/local-authority/38,Oxfordshire County Council,MH SPOT FUNDING,5686,,12/05/2016,3110093651,"6,642.86",Catherine Care Ltd
http://statistics.data.gov.uk/id/local-authority/38,Oxfordshire County Council,CSB - BANBURY,5899,Adult Social Care - Direct Payments,18/05/2016,3110095341,"2,632.00",Redacted Personal Data
http://statistics.data.gov.uk/id/local-authority/38,Oxfordshire County Council,INFRA FUNDING,4861,Hired and Contracted Services,23/05/2016,2200166499,"10,457.92",CDPSoft Ltd
http://statistics.data.gov.uk/id/local-authority/38,Oxfordshire County Council,PD RES PURC - VALE,5686,,12/05/2016,3110093625,"138,682.28",Cedar Court Care Home
http://statistics.data.gov.uk/id/local-authority/38,Oxfordshire County Council,MH COMMUNITY SUP'T,5691,,25/05/2016,3110098470,500,Cedarwood Care
http://statistics.data.gov.uk/id/local-authority/38,Oxfordshire County Council,OPPB FAST TRACK,5691,,04/05/2016,3110091465,950,Cedarwood Care
http://statistics.data.gov.uk/id/local-authority/38,Oxfordshire County Council,OPPB FAST TRACK,5691,,12/05/2016,3110093770,"1,023.64",Cedarwood Care
http://statistics.data.gov.uk/id/local-authority/38,Oxfordshire County Council,OPPB FAST TRACK,5691,,04/05/2016,3110091471,"1,085.71",Cedarwood Care
http://statistics.data.gov.uk/id/local-authority/38,Oxfordshire County Council,MH COMMUNITY SUP'T,5691,,25/05/2016,3110098466,"1,625.00",Cedarwood Care
http://statistics.data.gov.uk/id/local-authority/38,Oxfordshire County Council,OPPB FAST TRACK,5691,,19/05/2016,3110096632,"1,900.00",Cedarwood Care
http://statistics.data.gov.uk/id/local-authority/38,Oxfordshire County Council,OPPB FAST TRACK,5691,,23/05/2016,3110097402,"2,678.57",Cedarwood Care
http://statistics.data.gov.uk/id/local-authority/38,Oxfordshire County Council,SM QUALITY ASSURANCE,2040,Agency Staff,25/05/2016,2200166378,615,Censeo Oxford Ltd
http://statistics.data.gov.uk/id/local-authority/38,Oxfordshire County Council,Mockingbird,2040,Agency Staff,24/05/2016,2200166155,800,Censeo Oxford Ltd
http://statistics.data.gov.uk/id/local-authority/38,Oxfordshire County Council,Mockingbird,2040,Agency Staff,25/05/2016,2200166384,"2,124.50",Censeo Oxford Ltd
http://statistics.data.gov.uk/id/local-authority/38,Oxfordshire County Council,Mockingbird,4861,Hired and Contracted Services,26/05/2016,2200166599,"2,267.00",Censeo Oxford Ltd
http://statistics.data.gov.uk/id/local-authority/38,Oxfordshire County Council,Mockingbird,2040,Agency Staff,09/05/2016,2200157357,"2,296.00",Censeo Oxford Ltd
http://statistics.data.gov.uk/id/local-authority/38,Oxfordshire County Council,CARE HOME SPOT WEST,5687,,12/05/2016,3110093707,"2,993.71",Central London Community
http://statistics.data.gov.uk/id/local-authority/38,Oxfordshire County Council,ROW MAINT,4407,Equipment,10/05/2016,2200158140,884,CENTREWIRE LTD
http://statistics.data.gov.uk/id/local-authority/38,Oxfordshire County Council,ROW MAINT,4861,Hired and Contracted Services,11/05/2016,2200158847,"1,014.00",CENTREWIRE LTD
http://statistics.data.gov.uk/id/local-authority/38,Oxfordshire County Council,ICT Strategy & Partnerships,4705,Printing,04/05/2016,2200154569,"1,550.00",CFH Docmail Ltd
http://statistics.data.gov.uk/id/local-authority/38,Oxfordshire County Council,ICT Strategy & Partnerships,4705,Printing,23/05/2016,2200164642,"1,550.00",CFH Docmail Ltd
http://statistics.data.gov.uk/id/local-authority/38,Oxfordshire County Council,SAPCOMPETENCYCENTRE,4705,Printing,04/05/2016,2200154379,"6,257.72",CFH Docmail Ltd
http://statistics.data.gov.uk/id/local-authority/38,Oxfordshire County Council,ICT Strategy & Partnerships,4705,Printing,04/05/2016,2200154570,"6,257.72",CFH Docmail Ltd
http://statistics.data.gov.uk/id/local-authority/38,Oxfordshire County Council,CARE HOME SPOT CHERW,5686,,12/05/2016,3110093502,"55,237.00",Chacombe Park Care Home
http://statistics.data.gov.uk/id/local-authority/38,Oxfordshire County Council,PD RES CONT TO POOL,5687,,12/05/2016,3110093506,"5,314.42",Chalfont Lodge Care Centre
http://statistics.data.gov.uk/id/local-authority/38,Oxfordshire County Council,EMERGENCY DUTY TEAM,2040,Agency Staff,17/05/2016,2200161849,"-1,621.62",Champion Employment Ltd
http://statistics.data.gov.uk/id/local-authority/38,Oxfordshire County Council,SOC&HEALTH CARE TEAM,2040,Agency Staff,23/05/2016,2200164753,"-1,395.39",Champion Employment Ltd
http://statistics.data.gov.uk/id/local-authority/38,Oxfordshire County Council,SOC&HEALTH CARE TEAM,2040,Agency Staff,23/05/2016,2200164750,-976.05,Champion Employment Ltd
http://statistics.data.gov.uk/id/local-authority/38,Oxfordshire County Council,OXFORD OPTIONS,2040,Agency Staff,06/05/2016,2200156354,-651.52,Champion Employment Ltd
http://statistics.data.gov.uk/id/local-authority/38,Oxfordshire County Council,CARERS OXFORDSHIRE,2040,Agency Staff,09/05/2016,2200157251,501.26,Champion Employment Ltd
http://statistics.data.gov.uk/id/local-authority/38,Oxfordshire County Council,BROADBAND PROJECT,2040,Agency Staff,17/05/2016,2200161976,513.92,Champion Employment Ltd
http://statistics.data.gov.uk/id/local-authority/38,Oxfordshire County Council,ETMS,2040,Agency Staff,17/05/2016,2200161975,515,Champion Employment Ltd
http://statistics.data.gov.uk/id/local-authority/38,Oxfordshire County Council,BUSINESS SYST STAFF,2040,Agency Staff,19/05/2016,2200162956,522.48,Champion Employment Ltd
http://statistics.data.gov.uk/id/local-authority/38,Oxfordshire County Council,ICT Operations & Maintenance,5668,Technical and Professional Consultant F,17/05/2016,2200161979,537,Champion Employment Ltd
http://statistics.data.gov.uk/id/local-authority/38,Oxfordshire County Council,LEGAL SERVICES,2040,Agency Staff,27/05/2016,2200167347,546.87,Champion Employment Ltd
http://statistics.data.gov.uk/id/local-authority/38,Oxfordshire County Council,BROADBAND PROJECT,2040,Agency Staff,17/05/2016,2200161669,577.72,Champion Employment Ltd
http://statistics.data.gov.uk/id/local-authority/38,Oxfordshire County Council,ECC,2040,Agency Staff,11/05/2016,2200159565,639.36,Champion Employment Ltd
http://statistics.data.gov.uk/id/local-authority/38,Oxfordshire County Council,Financial Assessment,2040,Agency Staff,16/05/2016,2200161139,650.7,Champion Employment Ltd
http://statistics.data.gov.uk/id/local-authority/38,Oxfordshire County Council,ASC Payments,2040,Agency Staff,17/05/2016,2200161400,699.55,Champion Employment Ltd
http://statistics.data.gov.uk/id/local-authority/38,Oxfordshire County Council,DEPUTY DIRECTOR &MAN,2040,Agency Staff,11/05/2016,2200159261,705.06,Champion Employment Ltd
http://statistics.data.gov.uk/id/local-authority/38,Oxfordshire County Council,ASC Payments,2040,Agency Staff,04/05/2016,2200154649,728.81,Champion Employment Ltd
http://statistics.data.gov.uk/id/local-authority/38,Oxfordshire County Council,CYPF ADMIN,2040,Agency Staff,18/05/2016,2200162136,754.11,Champion Employment Ltd
http://statistics.data.gov.uk/id/local-authority/38,Oxfordshire County Council,BUSINESS & PLANNING,2040,Agency Staff,17/05/2016,2200161393,766.75,Champion Employment Ltd
http://statistics.data.gov.uk/id/local-authority/38,Oxfordshire County Council,FM STH & EAST STAFF,2040,Agency Staff,17/05/2016,2200161723,768.74,Champion Employment Ltd
http://statistics.data.gov.uk/id/local-authority/38,Oxfordshire County Council,FLEET OPERATIONS,2040,Agency Staff,11/05/2016,2200159086,768.75,Champion Employment Ltd
http://statistics.data.gov.uk/id/local-authority/38,Oxfordshire County Council,FY SALARIES,2040,Agency Staff,16/05/2016,2200161096,773.52,Champion Employment Ltd
http://statistics.data.gov.uk/id/local-authority/38,Oxfordshire County Council,FM NORTH & WEST STAF,2040,Agency Staff,11/05/2016,2200160444,779.73,Champion Employment Ltd
http://statistics.data.gov.uk/id/local-authority/38,Oxfordshire County Council,FLEET OPERATIONS,2040,Agency Staff,17/05/2016,2200161600,805.25,Champion Employment Ltd
http://statistics.data.gov.uk/id/local-authority/38,Oxfordshire County Council,DEFINITIVE MAP,2040,Agency Staff,11/05/2016,2200160326,814.93,Champion Employment Ltd
http://statistics.data.gov.uk/id/local-authority/38,Oxfordshire County Council,FLEET OPERATIONS,2040,Agency Staff,11/05/2016,2200159088,823.5,Champion Employment Ltd
http://statistics.data.gov.uk/id/local-authority/38,Oxfordshire County Council,FLEET OPERATIONS,2040,Agency Staff,12/05/2016,2200159728,823.5,Champion Employment Ltd
http://statistics.data.gov.uk/id/local-authority/38,Oxfordshire County Council,CYPF ADMIN,2040,Agency Staff,17/05/2016,2200161598,830.54,Champion Employment Ltd
http://statistics.data.gov.uk/id/local-authority/38,Oxfordshire County Council,ICT Operations & Maintenance,2040,Agency Staff,17/05/2016,2200161835,836.4,Champion Employment Ltd
http://statistics.data.gov.uk/id/local-authority/38,Oxfordshire County Council,SAMUELSON HOUSE,2040,Agency Staff,23/05/2016,2200165059,852.6,Champion Employment Ltd
http://statistics.data.gov.uk/id/local-authority/38,Oxfordshire County Council,BUSINESS & PLANNING,2040,Agency Staff,11/05/2016,2200159082,853.22,Champion Employment Ltd
http://statistics.data.gov.uk/id/local-authority/38,Oxfordshire County Council,FLEET OPERATIONS,2040,Agency Staff,11/05/2016,2200159083,900.75,Champion Employment Ltd
http://statistics.data.gov.uk/id/local-authority/38,Oxfordshire County Council,BUSINESS & PLANNING,2040,Agency Staff,17/05/2016,2200161703,910.88,Champion Employment Ltd
http://statistics.data.gov.uk/id/local-authority/38,Oxfordshire County Council,INCOME TEAM,2040,Agency Staff,10/05/2016,2200157975,912.42,Champion Employment Ltd
http://statistics.data.gov.uk/id/local-authority/38,Oxfordshire County Council,ICT Business Services,2040,Agency Staff,11/05/2016,2200161021,921.51,Champion Employment Ltd
http://statistics.data.gov.uk/id/local-authority/38,Oxfordshire County Council,FY TRADED SERVICES,2040,Agency Staff,17/05/2016,2200161524,932.16,Champion Employment Ltd
http://statistics.data.gov.uk/id/local-authority/38,Oxfordshire County Council,FM CENTRAL STAFF,2040,Agency Staff,06/05/2016,2200156204,933.24,Champion Employment Ltd
http://statistics.data.gov.uk/id/local-authority/38,Oxfordshire County Council,FM NORTH & WEST STAF,2040,Agency Staff,16/05/2016,2200160836,938.32,Champion Employment Ltd
http://statistics.data.gov.uk/id/local-authority/38,Oxfordshire County Council,ICT Operations & Maintenance,2040,Agency Staff,17/05/2016,2200161696,946,Champion Employment Ltd
http://statistics.data.gov.uk/id/local-authority/38,Oxfordshire County Council,COMMERCIAL MANAGEMEN,2040,Agency Staff,01/05/2016,2200160013,963.05,Champion Employment Ltd
http://statistics.data.gov.uk/id/local-authority/38,Oxfordshire County Council,SOC&HEALTH CARE TEAM,2040,Agency Staff,17/05/2016,2200161898,976.05,Champion Employment Ltd
http://statistics.data.gov.uk/id/local-authority/38,Oxfordshire County Council,SOC&HEALTH CARE TEAM,2040,Agency Staff,20/05/2016,2200163813,976.05,Champion Employment Ltd
http://statistics.data.gov.uk/id/local-authority/38,Oxfordshire County Council,FLEET OPERATIONS,2040,Agency Staff,17/05/2016,2200161616,978.82,Champion Employment Ltd
http://statistics.data.gov.uk/id/local-authority/38,Oxfordshire County Council,FLEET OPERATIONS,2040,Agency Staff,12/05/2016,2200159153,983.5,Champion Employment Ltd
http://statistics.data.gov.uk/id/local-authority/38,Oxfordshire County Council,CYPF ADMIN,2040,Agency Staff,09/05/2016,2200157347,986.58,Champion Employment Ltd
http://statistics.data.gov.uk/id/local-authority/38,Oxfordshire County Council,SOC&HEALTH CARE TEAM,2040,Agency Staff,17/05/2016,2200161592,987.05,Champion Employment Ltd
http://statistics.data.gov.uk/id/local-authority/38,Oxfordshire County Council,FLEET OPERATIONS,2040,Agency Staff,17/05/2016,2200161606,996.84,Champion Employment Ltd
http://statistics.data.gov.uk/id/local-authority/38,Oxfordshire County Council,STRATEGY,2040,Agency Staff,17/05/2016,2200161435,"1,006.98",Champion Employment Ltd
http://statistics.data.gov.uk/id/local-authority/38,Oxfordshire County Council,CYPF ADMIN,2040,Agency Staff,17/05/2016,2200161643,"1,014.65",Champion Employment Ltd
http://statistics.data.gov.uk/id/local-authority/38,Oxfordshire County Council,40 THE MOORS,5500,Payments to Other Local Authorities,11/05/2016,2200158373,"1,026.27",Champion Employment Ltd
http://statistics.data.gov.uk/id/local-authority/38,Oxfordshire County Council,LEADING THE EYFS,2040,Agency Staff,17/05/2016,2200161566,"1,027.04",Champion Employment Ltd
http://statistics.data.gov.uk/id/local-authority/38,Oxfordshire County Council,FLEET OPERATIONS,2040,Agency Staff,11/05/2016,2200159080,"1,027.08",Champion Employment Ltd
http://statistics.data.gov.uk/id/local-authority/38,Oxfordshire County Council,ASC Payments,2040,Agency Staff,11/05/2016,2200159085,"1,030.00",Champion Employment Ltd
http://statistics.data.gov.uk/id/local-authority/38,Oxfordshire County Council,CYPF ADMIN,2040,Agency Staff,09/05/2016,2200157233,"1,047.48",Champion Employment Ltd
http://statistics.data.gov.uk/id/local-authority/38,Oxfordshire County Council,ICT INFRASTRUCTURE,2040,Agency Staff,17/05/2016,2200161974,"1,057.84",Champion Employment Ltd
http://statistics.data.gov.uk/id/local-authority/38,Oxfordshire County Council,CSC MAIN TEAM,2040,Agency Staff,06/05/2016,2200156105,"1,069.26",Champion Employment Ltd
http://statistics.data.gov.uk/id/local-authority/38,Oxfordshire County Council,MASH PROJECT,2040,Agency Staff,11/05/2016,2200159193,"1,072.20",Champion Employment Ltd
http://statistics.data.gov.uk/id/local-authority/38,Oxfordshire County Council,40 THE MOORS,5500,Payments to Other Local Authorities,11/05/2016,2200158374,"1,075.89",Champion Employment Ltd
http://statistics.data.gov.uk/id/local-authority/38,Oxfordshire County Council,LEARN DISAB TEAM NTH,2040,Agency Staff,18/05/2016,2200162194,"1,079.66",Champion Employment Ltd
http://statistics.data.gov.uk/id/local-authority/38,Oxfordshire County Council,QUALITY&CONTRACTS OP,2040,Agency Staff,11/05/2016,2200160328,"1,101.12",Champion Employment Ltd
http://statistics.data.gov.uk/id/local-authority/38,Oxfordshire County Council,CORPORATE FINANCE,2040,Agency Staff,24/05/2016,2200165779,"1,102.20",Champion Employment Ltd
http://statistics.data.gov.uk/id/local-authority/38,Oxfordshire County Council,FLEET OPERATIONS,2040,Agency Staff,17/05/2016,2200161635,"1,134.86",Champion Employment Ltd
http://statistics.data.gov.uk/id/local-authority/38,Oxfordshire County Council,FLEET OPERATIONS,2040,Agency Staff,17/05/2016,2200161614,"1,161.05",Champion Employment Ltd
http://statistics.data.gov.uk/id/local-authority/38,Oxfordshire County Council,40 THE MOORS,5500,Payments to Other Local Authorities,12/05/2016,2200159119,"1,179.64",Champion Employment Ltd
http://statistics.data.gov.uk/id/local-authority/38,Oxfordshire County Council,FM STH & EAST STAFF,2040,Agency Staff,11/05/2016,2200166490,"1,179.68",Champion Employment Ltd
http://statistics.data.gov.uk/id/local-authority/38,Oxfordshire County Council,LEARN DISAB TEAM NTH,2040,Agency Staff,18/05/2016,2200162199,"1,188.88",Champion Employment Ltd
http://statistics.data.gov.uk/id/local-authority/38,Oxfordshire County Council,FM CENTRAL STAFF,2040,Agency Staff,01/05/2016,2200163578,"1,190.68",Champion Employment Ltd
http://statistics.data.gov.uk/id/local-authority/38,Oxfordshire County Council,FLEET OPERATIONS,2040,Agency Staff,01/05/2016,2200158913,"1,198.70",Champion Employment Ltd
http://statistics.data.gov.uk/id/local-authority/38,Oxfordshire County Council,FLEET OPERATIONS,2040,Agency Staff,01/05/2016,2200157437,"1,202.18",Champion Employment Ltd
http://statistics.data.gov.uk/id/local-authority/38,Oxfordshire County Council,SOC&HEALTH CARE TEAM,2040,Agency Staff,17/05/2016,2200161428,"1,203.69",Champion Employment Ltd
http://statistics.data.gov.uk/id/local-authority/38,Oxfordshire County Council,BUSINESS & PLANNING,2040,Agency Staff,31/05/2016,2200168049,"1,213.38",Champion Employment Ltd
http://statistics.data.gov.uk/id/local-authority/38,Oxfordshire County Council,STRATEGY,2040,Agency Staff,17/05/2016,2200161743,"1,216.00",Champion Employment Ltd
http://statistics.data.gov.uk/id/local-authority/38,Oxfordshire County Council,ICT Business Services,5668,Technical and Professional Consultant F,17/05/2016,2200161991,"1,230.00",Champion Employment Ltd
http://statistics.data.gov.uk/id/local-authority/38,Oxfordshire County Council,DEFINITIVE MAP,2040,Agency Staff,16/05/2016,2200161091,"1,259.60",Champion Employment Ltd
http://statistics.data.gov.uk/id/local-authority/38,Oxfordshire County Council,FLEET OPERATIONS,2040,Agency Staff,11/05/2016,2200159090,"1,268.00",Champion Employment Ltd
http://statistics.data.gov.uk/id/local-authority/38,Oxfordshire County Council,BUSINESS & PLANNING,2040,Agency Staff,17/05/2016,2200161964,"1,268.31",Champion Employment Ltd
